Workbook

Sheet 1. Information Sheet
U1: a | AA1: =IF(OR(F16="", F16="(if applicable)"), F14, F14 & " - " & F16) -> Bluewater Power Distribution Corporation
M12: Version | N12: 1.1
E14: Utility Name | F14: Bluewater Power Distribution Corporation
E16: Service Territory
E18: Assigned EB Number | F18: EB-2014-0057
E20: Name of Contact and Title | F20: Leslie Dugas
E22: Phone Number | F22: 519-337-8201 Ext 2255
E24: Email Address | F24: ldugas@bluewaterpower.com
E26: We are applying for rates effective | F26: 2015-05-01
E28: Rate-Setting Method | F28: Price Cap IR
A30: Please indicate in which Rate Year the Group 1 accounts were last cleared1 | F30: 2014
A32: Please indicate the last Cost of Service Re-Basing Year | F32: 2013
B35: Notes
C37: Pale green cells represent input cells.
C39: Pale blue cells represent drop-down lists. The applicant should select the appropriate item from the drop-down list.
C41: White cells contain fixed values, automatically generated values or formulae.
A44: Note: 1. Rate year of application

Sheet 2. Related Links
A13: ● | B13: Ontario Energy Board's 2015 Electricity Distribution Rates Webpage
A15: ● | B15: An updated version of Chapter 3 of the Filing Requirements for Electricity Distribution Rate Applications for 2015 rates.

Sheet 3. Rate Class Selection
A12: Select the appropriate rate classes as they appear on your most recent Board-Approved Tariff of Rates and Charges, including the MicroFit Class.
A14: How many classes are on your most recent Board-Approved Tariff of Rates and Charges? | J14: 11
A16: Select Your Rate Classes from the Blue Cells below. Please ensure that a rate class is assigned to each shaded cell.
B18: Rate Class Classification | Q18: # of duplicates
A19: 1 | B19: RESIDENTIAL | P19: =COUNTIF($B$19:$J$40, B19) -> 1 | Q19: =COUNTIF(P19:P40, 2)/2 -> 0
A20: 2 | B20: GENERAL SERVICE LESS THAN 50 KW | P20: =COUNTIF($B$19:$J$40, B20) -> 1
A21: 3 | B21: GENERAL SERVICE 50 TO 999 KW | P21: 1
A22: 4 | B22: GENERAL SERVICE GREATER THAN 50 kW - WMP | P22: 1
A23: 5 | B23: GENERAL SERVICE 1,000 TO 4,999 KW | P23: 1
A24: 6 | B24: LARGE USE | P24: 1
A25: 7 | B25: LARGE USE - WMP | P25: 1
A26: 8 | B26: UNMETERED SCATTERED LOAD | P26: 1
A27: 9 | B27: SENTINEL LIGHTING | P27: 1
A28: 10 | B28: STREET LIGHTING | P28: 1
A29: 11 | B29: microFIT | P29: 1
P30: 0
P31: 0
P32: 0
P33: 0

Sheet 4. Current Tariff Schedule
Z1: 3 | AA1: January | AB1: ≥
AA2: February
AA3: March
AA4: April
AA5: May
AA6: June
AA7: July
AA8: August
AA9: September
AA10: October
AA11: November
B12: For each class, Applicants are required to copy and paste the class descriptions (located directly under the class name) and the description of the applicability of those rates (description is found under the class name and directly under the word "APPLICATION"). By using the drop-down lists located under the column labeled "Rate Description", please select the descriptions of the rates and charges that BEST MATCHES the descriptions on your most recent Board-Approved Tariff of Rates and Charges. If the description is not found in the drop-down list, please enter the description in the green cells under the correct class exactly as it appears on the tariff. Please do not enter more than one "Service Charge" for each class for which a base monthly fixed charge applies. | AA12: December
B21: =IF(ISBLANK('1. Information Sheet'!F14), "Please Choose Distributor Name on Sheet 1", '1. Information Sheet'!F14) -> Bluewater Power Distribution Corporation
B22: TARIFF OF RATES AND CHARGES
A24: RESIDENTIAL | B24: RESIDENTIAL Service Classification
A25: RESIDENTIAL
A26: RESIDENTIAL | B26: All service supplied to single-family dwelling units for domestic or household purposes shall be classed as residential service. Where electricity service is provided for combined residential and business purposes (including agricultural usage) and the wiring does not provide for separate metering, the classification shall be in the discretion of Bluewater Power Distribution Corporation (“Bluewater Power”) and shall be based on such considerations as the estimated predominant consumption or the municipal tax roll classification. A residential customer may be found in a detached, semi-detached, linear row housing, apartment building or mixed-use building. Where more than one dwelling is served by a single meter, that service shall be considered a General Service Customer. Further servicing details are available in the distributor’s Conditions of Service.
A27: RESIDENTIAL
A28: RESIDENTIAL
A29: RESIDENTIAL
A30: RESIDENTIAL
A31: RESIDENTIAL
A32: RESIDENTIAL | B32: APPLICATION
A33: RESIDENTIAL
A34: RESIDENTIAL | B34: The application of these rates and charges shall be in accordance with the Licence of the Distributor and any Code or Order of the Board, and amendments thereto as approved by the Board, which may be applicable to the administration of this schedule.
A35: RESIDENTIAL
A36: RESIDENTIAL
A37: RESIDENTIAL | B37: No rates and charges for the distribution of electricity and charges to meet the costs of any work or service done or furnished for the purpose of the distribution of electricity shall be made except as permitted by this schedule, unless required by the Distributor’s Licence or a Code or Order of the Board, and amendments thereto as approved by the Board, or as specified herein.
A38: RESIDENTIAL
A39: RESIDENTIAL
A40: RESIDENTIAL
A41: RESIDENTIAL | B41: Unless specifically noted, this schedule does not contain any charges for the electricity commodity, be it under the Regulated Price Plan, a contract with a retailer or the wholesale market price, as applicable. In addition, the charges in the MONTHLY RATES AND CHARGES – Regulatory Component of this schedule do not apply to a customer that is an embedded wholesale market participant.
A42: RESIDENTIAL
A43: RESIDENTIAL
A44: RESIDENTIAL | B44: It should be noted that this schedule does not list any charges, assessments or credits that are required by law to be invoiced by a distributor and that are not subject to Board approval, such as the Debt Retirement Charge, the Global Adjustment, the Ontario Clean Energy Benefit and the HST.
A45: RESIDENTIAL
A46: RESIDENTIAL
A47: RESIDENTIAL
A48: RESIDENTIAL | B48: MONTHLY RATES AND CHARGES - Delivery Component (If applicable, Effective Date MUST be included in rate description)
A49: RESIDENTIAL | B49: Service Charge | H49: $ | I49: 15.7 | K49: 1_C_MSC
A50: RESIDENTIAL | B50: Rate Rider for Smart Metering Entity Charge - effective until October 31, 2018 | H50: $ | I50: 0.79 | K50: 1_C_SMEC | L50: 2018-10-31
A51: RESIDENTIAL | B51: Rate Rider for Recovery of Stranded Meter Assets – effective until April 30, 2015 | H51: $ | I51: 1.47 | K51: 1_C_MSC_Rate_Rider_2 | L51: 2015-04-30
A52: RESIDENTIAL | B52: Distribution Volumetric Rate | H52: $/kWh | I52: 0.0214 | K52: 1_C_VC_1
A53: RESIDENTIAL | B53: Low Voltage Service Rate | H53: $/kWh | I53: 0.0002 | K53: 1_C_LVrate
A54: RESIDENTIAL | B54: Rate Rider for Disposition of Global Adjustment Sub-Account (2013) - effective until April 30, 2015 Applicable only for Non-RPP Customers | H54: $/kWh | I54: 0.0004 | K54: 1_C_VC_GA_Rate_Rider_kWh_1 | L54: 2015-04-30
A55: RESIDENTIAL | B55: Rate Rider for Disposition of Deferral/Variance Accounts (2013) - effective until April 30, 2015 | H55: $/kWh | I55: -0.0013 | K55: 1_C_VC_DEFVAR_kWh_1 | L55: 2015-04-30
A56: RESIDENTIAL | B56: Rate Rider for Deferral/Variance Account Disposition (2014) - effective until April 30, 2015 | H56: $/kWh | I56: -0.0024 | K56: 1_C_VC_DEFVAR_kWh_2 | L56: 2015-04-30
A57: RESIDENTIAL | B57: Rate Rider for Global Adjustment Sub-Account Disposition (2014) - effective until April 30, 2015 Applicable only for Non-RPP Customers | H57: $/kWh | I57: -0.0004 | K57: 1_C_VC_GA_Rate_Rider_kWh_2 | L57: 2015-04-30
A58: RESIDENTIAL | B58: Rate Rider for Recovery of Lost Revenue Adjustment Mechanism Variance Account (LRAMVA) (2014) - effective until April 30, 2015 | H58: $/kWh | I58: 0.0002 | K58: 1_C_VC_Rate_Rider_kWh_3 | L58: 2015-04-30
A59: RESIDENTIAL | B59: Retail Transmission Rate - Network Service Rate | H59: $/kWh | I59: 0.0067 | K59: 1_C_RTSR_Network
A60: RESIDENTIAL | B60: Retail Transmission Rate - Line and Transformation Connection Service Rate | H60: $/kWh | I60: 0.0057 | K60: 1_C_RTSR_Connection
A61: RESIDENTIAL
A62: RESIDENTIAL
A63: RESIDENTIAL
A64: RESIDENTIAL
A65: RESIDENTIAL
A66: RESIDENTIAL
A67: RESIDENTIAL
A68: RESIDENTIAL
A69: RESIDENTIAL
A70: RESIDENTIAL
A71: RESIDENTIAL
A72: RESIDENTIAL
A73: RESIDENTIAL | B73: Rate Rider for Recovery of Lost Revenue Adjustment Mechanism (LRAM) - effective until April 30, 2015 | H73: $/kWh | I73: 0.0004 | K73: 1_C_VC_Rate_Rider_kWh_4 | L73: 2015-04-30
A74: RESIDENTIAL
A75: RESIDENTIAL
A76: RESIDENTIAL
A77: RESIDENTIAL
A78: RESIDENTIAL
A79: RESIDENTIAL | B79: MONTHLY RATES AND CHARGES - Regulatory Component
A80: RESIDENTIAL
A81: RESIDENTIAL | B81: Wholesale Market Service Rate | H81: $/kWh | I81: 0.0044 | K81: 1_C_WMSR
A82: RESIDENTIAL | B82: Rural or Remote Electricity Rate Protection Charge (RRRP) | H82: $/kWh | I82: 0.0013 | K82: 1_C_RRPC
A83: RESIDENTIAL | B83: Standard Supply Service - Administrative Charge (if applicable) | H83: $ | I83: 0.25 | K83: 1_C_SSS
A84: RESIDENTIAL
A87: GENERAL SERVICE LESS THAN 50 KW | B87: GENERAL SERVICE LESS THAN 50 KW Service Classification
A88: GENERAL SERVICE LESS THAN 50 KW
A89: GENERAL SERVICE LESS THAN 50 KW | B89: This classification applies to a customer not designated as Residential, and that over a twelve month period has, or a new customer forecast to have, an average monthly peak demand less than 50 kW, and has a monthly peak demand that never exceeds 100 kW. Bluewater Power shall review this rate class designation on an annual basis and the customer's designated rate class may change as a result. Further servicing details are available in the distributor’s Conditions of Service.
A90: GENERAL SERVICE LESS THAN 50 KW
A91: GENERAL SERVICE LESS THAN 50 KW
A92: GENERAL SERVICE LESS THAN 50 KW
A93: GENERAL SERVICE LESS THAN 50 KW
A94: GENERAL SERVICE LESS THAN 50 KW
A95: GENERAL SERVICE LESS THAN 50 KW | B95: APPLICATION
A96: GENERAL SERVICE LESS THAN 50 KW
A97: GENERAL SERVICE LESS THAN 50 KW | B97: The application of these rates and charges shall be in accordance with the Licence of the Distributor and any Code or Order of the Board, and amendments thereto as approved by the Board, which may be applicable to the administration of this schedule.
A98: GENERAL SERVICE LESS THAN 50 KW
A99: GENERAL SERVICE LESS THAN 50 KW
A100: GENERAL SERVICE LESS THAN 50 KW | B100: No rates and charges for the distribution of electricity and charges to meet the costs of any work or service done or furnished for the purpose of the distribution of electricity shall be made except as permitted by this schedule, unless required by the Distributor’s Licence or a Code or Order of the Board, and amendments thereto as approved by the Board, or as specified herein.
A101: GENERAL SERVICE LESS THAN 50 KW
A102: GENERAL SERVICE LESS THAN 50 KW
A103: GENERAL SERVICE LESS THAN 50 KW
A104: GENERAL SERVICE LESS THAN 50 KW | B104: Unless specifically noted, this schedule does not contain any charges for the electricity commodity, be it under the Regulated Price Plan, a contract with a retailer or the wholesale market price, as applicable. In addition, the charges in the MONTHLY RATES AND CHARGES – Regulatory Component of this schedule do not apply to a customer that is an embedded wholesale market participant.
A105: GENERAL SERVICE LESS THAN 50 KW
A106: GENERAL SERVICE LESS THAN 50 KW
A107: GENERAL SERVICE LESS THAN 50 KW | B107: It should be noted that this schedule does not list any charges, assessments or credits that are required by law to be invoiced by a distributor and that are not subject to Board approval, such as the Debt Retirement Charge, the Global Adjustment, the Ontario Clean Energy Benefit and the HST.
A108: GENERAL SERVICE LESS THAN 50 KW
A109: GENERAL SERVICE LESS THAN 50 KW
A110: GENERAL SERVICE LESS THAN 50 KW
A111: GENERAL SERVICE LESS THAN 50 KW | B111: MONTHLY RATES AND CHARGES - Delivery Component (If applicable, Effective Date MUST be included in rate description)
A112: GENERAL SERVICE LESS THAN 50 KW | B112: Service Charge | H112: $ | I112: 26.97 | K112: 2_C_MSC
A113: GENERAL SERVICE LESS THAN 50 KW | B113: Rate Rider for Smart Metering Entity Charge - effective until October 31, 2018 | H113: $ | I113: 0.79 | K113: 2_C_SMEC | L113: 2018-10-31
A114: GENERAL SERVICE LESS THAN 50 KW | B114: Rate Rider for Disposition of Residual Historical Smart Meter Costs - effective until October 31, 2014 | H114: $ | I114: 5.94 | K114: 2_C_MSC_Rate_Rider_2 | L114: 2014-10-31
A115: GENERAL SERVICE LESS THAN 50 KW | B115: Rate Rider for Recovery of Stranded Meter Assets - effective until April 30, 2017 | H115: $ | I115: 4.66 | K115: 2_C_MSC_Rate_Rider_3 | L115: 2017-04-30
A116: GENERAL SERVICE LESS THAN 50 KW | B116: Distribution Volumetric Rate | H116: $/kWh | I116: 0.0189 | K116: 2_C_VC_1
A117: GENERAL SERVICE LESS THAN 50 KW | B117: Low Voltage Service Rate | H117: $/kWh | I117: 0.0002 | K117: 2_C_LVrate
A118: GENERAL SERVICE LESS THAN 50 KW | B118: Rate Rider for Disposition of Global Adjustment Sub-Account (2013) - effective until April 30, 2015 Applicable only for Non-RPP Customers | H118: $/kWh | I118: 0.0004 | K118: 2_C_VC_GA_Rate_Rider_kWh_1 | L118: 2015-04-30
A119: GENERAL SERVICE LESS THAN 50 KW | B119: Rate Rider for Disposition of Deferral/Variance Accounts (2013) - effective until April 30, 2015 | H119: $/kWh | I119: -0.0012 | K119: 2_C_VC_DEFVAR_kWh_1 | L119: 2015-04-30
A120: GENERAL SERVICE LESS THAN 50 KW | B120: Rate Rider for Deferral/Variance Account Disposition (2014) - effective until April 30, 2015 | H120: $/kWh | I120: -0.0024 | K120: 2_C_VC_DEFVAR_kWh_2 | L120: 2015-04-30
A121: GENERAL SERVICE LESS THAN 50 KW | B121: Rate Rider for Global Adjustment Sub-Account Disposition (2014) - effective until April 30, 2015 Applicable only for Non-RPP Customers | H121: $/kWh | I121: -0.0004 | K121: 2_C_VC_GA_Rate_Rider_kWh_2 | L121: 2015-04-30
A122: GENERAL SERVICE LESS THAN 50 KW | B122: Rate Rider for Recovery of Lost Revenue Adjustment Mechanism Variance Account (LRAMVA) (2014) - effective until April 30, 2015 | H122: $/kWh | I122: 0.0005 | K122: 2_C_VC_Rate_Rider_kWh_3 | L122: 2015-04-30
A123: GENERAL SERVICE LESS THAN 50 KW | B123: Retail Transmission Rate - Network Service Rate | H123: $/kWh | I123: 0.0063 | K123: 2_C_RTSR_Network
A124: GENERAL SERVICE LESS THAN 50 KW | B124: Retail Transmission Rate - Line and Transformation Connection Service Rate | H124: $/kWh | I124: 0.005 | K124: 2_C_RTSR_Connection
A125: GENERAL SERVICE LESS THAN 50 KW
A126: GENERAL SERVICE LESS THAN 50 KW
A127: GENERAL SERVICE LESS THAN 50 KW
A128: GENERAL SERVICE LESS THAN 50 KW
A129: GENERAL SERVICE LESS THAN 50 KW
A130: GENERAL SERVICE LESS THAN 50 KW
A131: GENERAL SERVICE LESS THAN 50 KW
A132: GENERAL SERVICE LESS THAN 50 KW
A133: GENERAL SERVICE LESS THAN 50 KW
A134: GENERAL SERVICE LESS THAN 50 KW
A135: GENERAL SERVICE LESS THAN 50 KW
A136: GENERAL SERVICE LESS THAN 50 KW | B136: Rate Rider for Recovery of Lost Revenue Adjustment Mechanism (LRAM) - effective until April 30, 2015 | H136: $/kWh | I136: 0.0004 | K136: 2_C_VC_Rate_Rider_kWh_4 | L136: 2015-04-30
A137: GENERAL SERVICE LESS THAN 50 KW
A138: GENERAL SERVICE LESS THAN 50 KW
A139: GENERAL SERVICE LESS THAN 50 KW
A140: GENERAL SERVICE LESS THAN 50 KW
A141: GENERAL SERVICE LESS THAN 50 KW
A142: GENERAL SERVICE LESS THAN 50 KW | B142: MONTHLY RATES AND CHARGES - Regulatory Component
A143: GENERAL SERVICE LESS THAN 50 KW
A144: GENERAL SERVICE LESS THAN 50 KW | B144: Wholesale Market Service Rate | H144: $/kWh | I144: 0.0044 | K144: 2_C_WMSR
A145: GENERAL SERVICE LESS THAN 50 KW | B145: Rural or Remote Electricity Rate Protection Charge (RRRP) | H145: $/kWh | I145: 0.0013 | K145: 2_C_RRPC
A146: GENERAL SERVICE LESS THAN 50 KW | B146: Standard Supply Service - Administrative Charge (if applicable) | H146: $ | I146: 0.25 | K146: 2_C_SSS
A147: GENERAL SERVICE LESS THAN 50 KW
A150: GENERAL SERVICE 50 TO 999 KW | B150: GENERAL SERVICE 50 TO 999 KW Service Classification
A151: GENERAL SERVICE 50 TO 999 KW
A152: GENERAL SERVICE 50 TO 999 KW | B152: This classification applies to a customer not designated as Residential, and that over a twelve month period has, or a new customer forecast to have, an average monthly peak demand equal to or greater than 50 kW and less than 1,000 kW. This rate class designation is reviewed on an annual basis and the customer's designated rate class may change as a result. Further servicing details are available in the distributor’s Conditions of Service.
A153: GENERAL SERVICE 50 TO 999 KW
A154: GENERAL SERVICE 50 TO 999 KW
A155: GENERAL SERVICE 50 TO 999 KW
A156: GENERAL SERVICE 50 TO 999 KW
A157: GENERAL SERVICE 50 TO 999 KW
A158: GENERAL SERVICE 50 TO 999 KW | B158: APPLICATION
A159: GENERAL SERVICE 50 TO 999 KW
A160: GENERAL SERVICE 50 TO 999 KW | B160: The application of these rates and charges shall be in accordance with the Licence of the Distributor and any Code or Order of the Board, and amendments thereto as approved by the Board, which may be applicable to the administration of this schedule.
A161: GENERAL SERVICE 50 TO 999 KW
A162: GENERAL SERVICE 50 TO 999 KW
A163: GENERAL SERVICE 50 TO 999 KW | B163: No rates and charges for the distribution of electricity and charges to meet the costs of any work or service done or furnished for the purpose of the distribution of electricity shall be made except as permitted by this schedule, unless required by the Distributor’s Licence or a Code or Order of the Board, and amendments thereto as approved by the Board, or as specified herein.
A164: GENERAL SERVICE 50 TO 999 KW
A165: GENERAL SERVICE 50 TO 999 KW
A166: GENERAL SERVICE 50 TO 999 KW
A167: GENERAL SERVICE 50 TO 999 KW | B167: Unless specifically noted, this schedule does not contain any charges for the electricity commodity, be it under the Regulated Price Plan, a contract with a retailer or the wholesale market price, as applicable. In addition, the charges in the MONTHLY RATES AND CHARGES – Regulatory Component of this schedule do not apply to a customer that is an embedded wholesale market participant.
A168: GENERAL SERVICE 50 TO 999 KW
A169: GENERAL SERVICE 50 TO 999 KW
A170: GENERAL SERVICE 50 TO 999 KW | B170: It should be noted that this schedule does not list any charges, assessments or credits that are required by law to be invoiced by a distributor and that are not subject to Board approval, such as the Debt Retirement Charge, the Global Adjustment, the Ontario Clean Energy Benefit and the HST.
A171: GENERAL SERVICE 50 TO 999 KW
A172: GENERAL SERVICE 50 TO 999 KW
A173: GENERAL SERVICE 50 TO 999 KW
A174: GENERAL SERVICE 50 TO 999 KW | B174: MONTHLY RATES AND CHARGES - Delivery Component (If applicable, Effective Date MUST be included in rate description)
A175: GENERAL SERVICE 50 TO 999 KW | B175: Service Charge | H175: $ | I175: 143.99 | K175: 3_C_MSC
A176: GENERAL SERVICE 50 TO 999 KW | B176: Distribution Volumetric Rate | H176: $/kW | I176: 4.1847 | K176: 3_C_VC_1
A177: GENERAL SERVICE 50 TO 999 KW | B177: Low Voltage Service Rate | H177: $/kW | I177: 0.0748 | K177: 3_C_LVrate
A178: GENERAL SERVICE 50 TO 999 KW | B178: Rate Rider for Disposition of Global Adjustment Sub-Account (2013) - effective until April 30, 2015 Applicable only for Non-RPP Customers and excluding Wholesale Market Participants | H178: $/kWh | I178: 0.0004 | K178: 3_C_VC_GA_Rate_Rider_kWh_1 | L178: 2015-04-30
A179: GENERAL SERVICE 50 TO 999 KW | B179: Rate Rider for Disposition of Deferral/Variance Accounts (2013) - effective until April 30, 2015 - not applicable to Wholesale Market Participants | H179: $/kW | I179: -0.4518 | K179: 3_C_VC_DEFVAR_kW_1 | L179: 2015-04-30
A180: GENERAL SERVICE 50 TO 999 KW | B180: Rate Rider for Disposition of Deferral/Variance Accounts (2013) - Applicable only to Wholesale Market Participants - effective until April 30, 2015 | H180: $/kW | I180: -0.2431 | K180: 3_C_VC_DEFVAR_kW_2 | L180: 2015-04-30
A181: GENERAL SERVICE 50 TO 999 KW | B181: Rate Rider for Recovery of Lost Revenue Adjustment Mechanism Variance Account (LRAMVA) (2014) - effective until April 30, 2015 | H181: $/kW | I181: 0.0965 | K181: 3_C_VC_Rate_Rider_kW_3 | L181: 2015-04-30
A182: GENERAL SERVICE 50 TO 999 KW | B182: Retail Transmission Rate - Network Service Rate | H182: $/kW | I182: 2.5411 | K182: 3_C_RTSR_Network
A183: GENERAL SERVICE 50 TO 999 KW | B183: Retail Transmission Rate - Line and Transformation Connection Service Rate | H183: $/kW | I183: 2.0066 | K183: 3_C_RTSR_Connection
A184: GENERAL SERVICE 50 TO 999 KW
A185: GENERAL SERVICE 50 TO 999 KW
A186: GENERAL SERVICE 50 TO 999 KW
A187: GENERAL SERVICE 50 TO 999 KW
A188: GENERAL SERVICE 50 TO 999 KW
A189: GENERAL SERVICE 50 TO 999 KW
A190: GENERAL SERVICE 50 TO 999 KW
A191: GENERAL SERVICE 50 TO 999 KW
A192: GENERAL SERVICE 50 TO 999 KW
A193: GENERAL SERVICE 50 TO 999 KW
A194: GENERAL SERVICE 50 TO 999 KW
A195: GENERAL SERVICE 50 TO 999 KW
A196: GENERAL SERVICE 50 TO 999 KW
A197: GENERAL SERVICE 50 TO 999 KW
A198: GENERAL SERVICE 50 TO 999 KW
A199: GENERAL SERVICE 50 TO 999 KW | B199: Rate Rider for Disposition of Deferral/Variance Accounts (2014) - effective until April 30, 2015 - Not applicable to Wholesale Market Participants | H199: $/kW | I199: -0.8484 | K199: 3_C_VC_DEFVAR_kW_3 | L199: 2015-04-30
A200: GENERAL SERVICE 50 TO 999 KW | B200: Rate Rider for Disposition of Global Adjustment (2014) - effective until April 30, 2015 Applicable only for Non-RPP Customers and excluding Wholesale Market Participants | H200: $/kWh | I200: -0.0004 | K200: 3_C_VC_GA_Rate_Rider_kWh_2 | L200: 2015-04-30
A201: GENERAL SERVICE 50 TO 999 KW | B201: Rate Rider for Disposition of Deferral/Variance Accounts (2014) - Applicable only to Wholesale Market Particiapnts - effective until April 30, 2015 | H201: $/kW | I201: -0.3071 | K201: 3_C_VC_DEFVAR_kW_4 | L201: 2015-04-30
A202: GENERAL SERVICE 50 TO 999 KW | B202: Rate Rider for Recovery of Lost Revenue Adjustment Mechanism (LRAM) - effective until April 30, 2015 | H202: $/kW | I202: 0.0076 | K202: 3_C_VC_Rate_Rider_kW_6 | L202: 2015-04-30
A203: GENERAL SERVICE 50 TO 999 KW
A204: GENERAL SERVICE 50 TO 999 KW
A205: GENERAL SERVICE 50 TO 999 KW | B205: MONTHLY RATES AND CHARGES - Regulatory Component
A206: GENERAL SERVICE 50 TO 999 KW
A207: GENERAL SERVICE 50 TO 999 KW | B207: Wholesale Market Service Rate | H207: $/kWh | I207: 0.0044 | K207: 3_C_WMSR
A208: GENERAL SERVICE 50 TO 999 KW | B208: Rural or Remote Electricity Rate Protection Charge (RRRP) | H208: $/kWh | I208: 0.0013 | K208: 3_C_RRPC
A209: GENERAL SERVICE 50 TO 999 KW | B209: Standard Supply Service - Administrative Charge (if applicable) | H209: $ | I209: 0.25 | K209: 3_C_SSS
A210: GENERAL SERVICE 50 TO 999 KW
A213: GENERAL SERVICE GREATER THAN 50 kW - WMP | B213: GENERAL SERVICE GREATER THAN 50 kW - WMP Service Classification
A214: GENERAL SERVICE GREATER THAN 50 kW - WMP
A215: GENERAL SERVICE GREATER THAN 50 kW - WMP
... 479 more rows

Sheet 4. Hidden (hidden)
M1: Current Rate Classes | N1: Changed to Rate Classes | O1: Values in A that are NOT in B | P1: Values in B that are Not in A | Q1: Count of A | R1: Count of B
M2: RESIDENTIAL | N2: RESIDENTIAL | Q2: 11 | R2: 11
M3: GENERAL SERVICE LESS THAN 50 KW | N3: GENERAL SERVICE LESS THAN 50 KW
M4: GENERAL SERVICE 50 TO 999 KW | N4: GENERAL SERVICE 50 TO 999 KW
M5: GENERAL SERVICE GREATER THAN 50 kW - WMP | N5: GENERAL SERVICE GREATER THAN 50 kW - WMP
M6: GENERAL SERVICE 1,000 TO 4,999 KW | N6: GENERAL SERVICE 1,000 TO 4,999 KW
M7: LARGE USE | N7: LARGE USE
M8: LARGE USE - WMP | N8: LARGE USE - WMP
M9: UNMETERED SCATTERED LOAD | N9: UNMETERED SCATTERED LOAD
M10: SENTINEL LIGHTING | N10: SENTINEL LIGHTING
M11: STREET LIGHTING | N11: STREET LIGHTING
M12: microFIT | N12: microFIT
A24: RESIDENTIAL | B24: RESIDENTIAL Service Classification
A25: RESIDENTIAL
A26: RESIDENTIAL | B26: All service supplied to single-family dwelling units for domestic or household purposes shall be classed as residential service. Where electricity service is provided for combined residential and business purposes (including agricultural usage) and the wiring does not provide for separate metering, the classification shall be in the discretion of Bluewater Power Distribution Corporation (“Bluewater Power”) and shall be based on such considerations as the estimated predominant consumption or the municipal tax roll classification. A residential customer may be found in a detached, semi-detached, linear row housing, apartment building or mixed-use building. Where more than one dwelling is served by a single meter, that service shall be considered a General Service Customer. Further servicing details are available in the distributor’s Conditions of Service.
A27: RESIDENTIAL
A28: RESIDENTIAL
A29: RESIDENTIAL
A30: RESIDENTIAL
A31: RESIDENTIAL
A32: RESIDENTIAL | B32: APPLICATION
A33: RESIDENTIAL
A34: RESIDENTIAL | B34: The application of these rates and charges shall be in accordance with the Licence of the Distributor and any Code or Order of the Board, and amendments thereto as approved by the Board, which may be applicable to the administration of this schedule.
A35: RESIDENTIAL
A36: RESIDENTIAL
A37: RESIDENTIAL | B37: No rates and charges for the distribution of electricity and charges to meet the costs of any work or service done or furnished for the purpose of the distribution of electricity shall be made except as permitted by this schedule, unless required by the Distributor’s Licence or a Code or Order of the Board, and amendments thereto as approved by the Board, or as specified herein.
A38: RESIDENTIAL
A39: RESIDENTIAL
A40: RESIDENTIAL
A41: RESIDENTIAL | B41: Unless specifically noted, this schedule does not contain any charges for the electricity commodity, be it under the Regulated Price Plan, a contract with a retailer or the wholesale market price, as applicable. In addition, the charges in the MONTHLY RATES AND CHARGES – Regulatory Component of this schedule do not apply to a customer that is an embedded wholesale market participant.
A42: RESIDENTIAL
A43: RESIDENTIAL
A44: RESIDENTIAL | B44: It should be noted that this schedule does not list any charges, assessments or credits that are required by law to be invoiced by a distributor and that are not subject to Board approval, such as the Debt Retirement Charge, the Global Adjustment, the Ontario Clean Energy Benefit and the HST.
A45: RESIDENTIAL
A46: RESIDENTIAL
A47: RESIDENTIAL
A48: RESIDENTIAL | B48: MONTHLY RATES AND CHARGES - Delivery Component (If applicable, Effective Date MUST be included in rate description)
A49: RESIDENTIAL | B49: Service Charge | H49: $ | I49: 15.7
A50: RESIDENTIAL | B50: Rate Rider for Smart Metering Entity Charge - effective until October 31, 2018 | H50: $ | I50: 0.79
A51: RESIDENTIAL | B51: Rate Rider for Recovery of Stranded Meter Assets – effective until April 30, 2015 | H51: $ | I51: 1.47
A52: RESIDENTIAL | B52: Distribution Volumetric Rate | H52: $/kWh | I52: 0.0214
A53: RESIDENTIAL | B53: Low Voltage Service Rate | H53: $/kWh | I53: 0.0002
A54: RESIDENTIAL | B54: Rate Rider for Disposition of Global Adjustment Sub-Account (2013) - effective until April 30, 2015 Applicable only for Non-RPP Customers | H54: $/kWh | I54: 0.0004
A55: RESIDENTIAL | B55: Rate Rider for Disposition of Deferral/Variance Accounts (2013) - effective until April 30, 2015 | H55: $/kWh | I55: -0.0013
A56: RESIDENTIAL | B56: Rate Rider for Deferral/Variance Account Disposition (2014) - effective until April 30, 2015 | H56: $/kWh | I56: -0.0024
A57: RESIDENTIAL | B57: Rate Rider for Global Adjustment Sub-Account Disposition (2014) - effective until April 30, 2015 Applicable only for Non-RPP Customers | H57: $/kWh | I57: -0.0004
A58: RESIDENTIAL | B58: Rate Rider for Recovery of Lost Revenue Adjustment Mechanism Variance Account (LRAMVA) (2014) - effective until April 30, 2015 | H58: $/kWh | I58: 0.0002
A59: RESIDENTIAL | B59: Retail Transmission Rate - Network Service Rate | H59: $/kWh | I59: 0.0067
A60: RESIDENTIAL | B60: Retail Transmission Rate - Line and Transformation Connection Service Rate | H60: $/kWh | I60: 0.0057
A61: RESIDENTIAL
A62: RESIDENTIAL
A63: RESIDENTIAL
A64: RESIDENTIAL
A65: RESIDENTIAL
A66: RESIDENTIAL
A67: RESIDENTIAL
A68: RESIDENTIAL
A69: RESIDENTIAL
A70: RESIDENTIAL
A71: RESIDENTIAL
A72: RESIDENTIAL
A73: RESIDENTIAL | B73: Rate Rider for Recovery of Lost Revenue Adjustment Mechanism (LRAM) - effective until April 30, 2015 | H73: $/kWh | I73: 0.0004
A74: RESIDENTIAL
A75: RESIDENTIAL
A76: RESIDENTIAL
A77: RESIDENTIAL
A78: RESIDENTIAL
A79: RESIDENTIAL | B79: MONTHLY RATES AND CHARGES - Regulatory Component
A80: RESIDENTIAL
A81: RESIDENTIAL | B81: Wholesale Market Service Rate | H81: $/kWh | I81: 0.0044
A82: RESIDENTIAL | B82: Rural or Remote Electricity Rate Protection Charge (RRRP) | H82: $/kWh | I82: 0.0013
A83: RESIDENTIAL | B83: Standard Supply Service - Administrative Charge (if applicable) | H83: $ | I83: 0.25
A84: RESIDENTIAL
A87: GENERAL SERVICE LESS THAN 50 KW | B87: GENERAL SERVICE LESS THAN 50 KW Service Classification
A88: GENERAL SERVICE LESS THAN 50 KW
A89: GENERAL SERVICE LESS THAN 50 KW | B89: This classification applies to a customer not designated as Residential, and that over a twelve month period has, or a new customer forecast to have, an average monthly peak demand less than 50 kW, and has a monthly peak demand that never exceeds 100 kW. Bluewater Power shall review this rate class designation on an annual basis and the customer's designated rate class may change as a result. Further servicing details are available in the distributor’s Conditions of Service.
A90: GENERAL SERVICE LESS THAN 50 KW
A91: GENERAL SERVICE LESS THAN 50 KW
A92: GENERAL SERVICE LESS THAN 50 KW
A93: GENERAL SERVICE LESS THAN 50 KW
A94: GENERAL SERVICE LESS THAN 50 KW
A95: GENERAL SERVICE LESS THAN 50 KW | B95: APPLICATION
A96: GENERAL SERVICE LESS THAN 50 KW
A97: GENERAL SERVICE LESS THAN 50 KW | B97: The application of these rates and charges shall be in accordance with the Licence of the Distributor and any Code or Order of the Board, and amendments thereto as approved by the Board, which may be applicable to the administration of this schedule.
A98: GENERAL SERVICE LESS THAN 50 KW
A99: GENERAL SERVICE LESS THAN 50 KW
A100: GENERAL SERVICE LESS THAN 50 KW | B100: No rates and charges for the distribution of electricity and charges to meet the costs of any work or service done or furnished for the purpose of the distribution of electricity shall be made except as permitted by this schedule, unless required by the Distributor’s Licence or a Code or Order of the Board, and amendments thereto as approved by the Board, or as specified herein.
A101: GENERAL SERVICE LESS THAN 50 KW
A102: GENERAL SERVICE LESS THAN 50 KW
A103: GENERAL SERVICE LESS THAN 50 KW
A104: GENERAL SERVICE LESS THAN 50 KW | B104: Unless specifically noted, this schedule does not contain any charges for the electricity commodity, be it under the Regulated Price Plan, a contract with a retailer or the wholesale market price, as applicable. In addition, the charges in the MONTHLY RATES AND CHARGES – Regulatory Component of this schedule do not apply to a customer that is an embedded wholesale market participant.
A105: GENERAL SERVICE LESS THAN 50 KW
A106: GENERAL SERVICE LESS THAN 50 KW
A107: GENERAL SERVICE LESS THAN 50 KW | B107: It should be noted that this schedule does not list any charges, assessments or credits that are required by law to be invoiced by a distributor and that are not subject to Board approval, such as the Debt Retirement Charge, the Global Adjustment, the Ontario Clean Energy Benefit and the HST.
A108: GENERAL SERVICE LESS THAN 50 KW
A109: GENERAL SERVICE LESS THAN 50 KW
A110: GENERAL SERVICE LESS THAN 50 KW
A111: GENERAL SERVICE LESS THAN 50 KW | B111: MONTHLY RATES AND CHARGES - Delivery Component (If applicable, Effective Date MUST be included in rate description)
A112: GENERAL SERVICE LESS THAN 50 KW | B112: Service Charge | H112: $ | I112: 26.97
A113: GENERAL SERVICE LESS THAN 50 KW | B113: Rate Rider for Smart Metering Entity Charge - effective until October 31, 2018 | H113: $ | I113: 0.79
A114: GENERAL SERVICE LESS THAN 50 KW | B114: Rate Rider for Disposition of Residual Historical Smart Meter Costs - effective until October 31, 2014 | H114: $ | I114: 5.94
A115: GENERAL SERVICE LESS THAN 50 KW | B115: Rate Rider for Recovery of Stranded Meter Assets - effective until April 30, 2017 | H115: $ | I115: 4.66
A116: GENERAL SERVICE LESS THAN 50 KW | B116: Distribution Volumetric Rate | H116: $/kWh | I116: 0.0189
A117: GENERAL SERVICE LESS THAN 50 KW | B117: Low Voltage Service Rate | H117: $/kWh | I117: 0.0002
A118: GENERAL SERVICE LESS THAN 50 KW | B118: Rate Rider for Disposition of Global Adjustment Sub-Account (2013) - effective until April 30, 2015 Applicable only for Non-RPP Customers | H118: $/kWh | I118: 0.0004
A119: GENERAL SERVICE LESS THAN 50 KW | B119: Rate Rider for Disposition of Deferral/Variance Accounts (2013) - effective until April 30, 2015 | H119: $/kWh | I119: -0.0012
A120: GENERAL SERVICE LESS THAN 50 KW | B120: Rate Rider for Deferral/Variance Account Disposition (2014) - effective until April 30, 2015 | H120: $/kWh | I120: -0.0024
A121: GENERAL SERVICE LESS THAN 50 KW | B121: Rate Rider for Global Adjustment Sub-Account Disposition (2014) - effective until April 30, 2015 Applicable only for Non-RPP Customers | H121: $/kWh | I121: -0.0004
A122: GENERAL SERVICE LESS THAN 50 KW | B122: Rate Rider for Recovery of Lost Revenue Adjustment Mechanism Variance Account (LRAMVA) (2014) - effective until April 30, 2015 | H122: $/kWh | I122: 0.0005
A123: GENERAL SERVICE LESS THAN 50 KW | B123: Retail Transmission Rate - Network Service Rate | H123: $/kWh | I123: 0.0063
A124: GENERAL SERVICE LESS THAN 50 KW | B124: Retail Transmission Rate - Line and Transformation Connection Service Rate | H124: $/kWh | I124: 0.005
A125: GENERAL SERVICE LESS THAN 50 KW
A126: GENERAL SERVICE LESS THAN 50 KW
A127: GENERAL SERVICE LESS THAN 50 KW
A128: GENERAL SERVICE LESS THAN 50 KW
A129: GENERAL SERVICE LESS THAN 50 KW
A130: GENERAL SERVICE LESS THAN 50 KW
A131: GENERAL SERVICE LESS THAN 50 KW
A132: GENERAL SERVICE LESS THAN 50 KW
A133: GENERAL SERVICE LESS THAN 50 KW
A134: GENERAL SERVICE LESS THAN 50 KW
A135: GENERAL SERVICE LESS THAN 50 KW
A136: GENERAL SERVICE LESS THAN 50 KW | B136: Rate Rider for Recovery of Lost Revenue Adjustment Mechanism (LRAM) - effective until April 30, 2015 | H136: $/kWh | I136: 0.0004
A137: GENERAL SERVICE LESS THAN 50 KW
A138: GENERAL SERVICE LESS THAN 50 KW
A139: GENERAL SERVICE LESS THAN 50 KW
A140: GENERAL SERVICE LESS THAN 50 KW
A141: GENERAL SERVICE LESS THAN 50 KW
A142: GENERAL SERVICE LESS THAN 50 KW | B142: MONTHLY RATES AND CHARGES - Regulatory Component
A143: GENERAL SERVICE LESS THAN 50 KW
A144: GENERAL SERVICE LESS THAN 50 KW | B144: Wholesale Market Service Rate | H144: =H81 -> $/kWh | I144: 0.0044
A145: GENERAL SERVICE LESS THAN 50 KW | B145: Rural or Remote Electricity Rate Protection Charge (RRRP) | H145: $/kWh | I145: 0.0013
A146: GENERAL SERVICE LESS THAN 50 KW | B146: Standard Supply Service - Administrative Charge (if applicable) | H146: $ | I146: 0.25
A147: GENERAL SERVICE LESS THAN 50 KW
A150: GENERAL SERVICE 50 TO 999 KW | B150: GENERAL SERVICE 50 TO 999 KW Service Classification
A151: GENERAL SERVICE 50 TO 999 KW
A152: GENERAL SERVICE 50 TO 999 KW | B152: This classification applies to a customer not designated as Residential, and that over a twelve month period has, or a new customer forecast to have, an average monthly peak demand equal to or greater than 50 kW and less than 1,000 kW. This rate class designation is reviewed on an annual basis and the customer's designated rate class may change as a result. Further servicing details are available in the distributor’s Conditions of Service.
A153: GENERAL SERVICE 50 TO 999 KW
A154: GENERAL SERVICE 50 TO 999 KW
A155: GENERAL SERVICE 50 TO 999 KW
A156: GENERAL SERVICE 50 TO 999 KW
A157: GENERAL SERVICE 50 TO 999 KW
A158: GENERAL SERVICE 50 TO 999 KW | B158: APPLICATION
A159: GENERAL SERVICE 50 TO 999 KW
A160: GENERAL SERVICE 50 TO 999 KW | B160: The application of these rates and charges shall be in accordance with the Licence of the Distributor and any Code or Order of the Board, and amendments thereto as approved by the Board, which may be applicable to the administration of this schedule.
A161: GENERAL SERVICE 50 TO 999 KW
A162: GENERAL SERVICE 50 TO 999 KW
A163: GENERAL SERVICE 50 TO 999 KW | B163: No rates and charges for the distribution of electricity and charges to meet the costs of any work or service done or furnished for the purpose of the distribution of electricity shall be made except as permitted by this schedule, unless required by the Distributor’s Licence or a Code or Order of the Board, and amendments thereto as approved by the Board, or as specified herein.
A164: GENERAL SERVICE 50 TO 999 KW
A165: GENERAL SERVICE 50 TO 999 KW
A166: GENERAL SERVICE 50 TO 999 KW
A167: GENERAL SERVICE 50 TO 999 KW | B167: Unless specifically noted, this schedule does not contain any charges for the electricity commodity, be it under the Regulated Price Plan, a contract with a retailer or the wholesale market price, as applicable. In addition, the charges in the MONTHLY RATES AND CHARGES – Regulatory Component of this schedule do not apply to a customer that is an embedded wholesale market participant.
A168: GENERAL SERVICE 50 TO 999 KW
A169: GENERAL SERVICE 50 TO 999 KW
A170: GENERAL SERVICE 50 TO 999 KW | B170: It should be noted that this schedule does not list any charges, assessments or credits that are required by law to be invoiced by a distributor and that are not subject to Board approval, such as the Debt Retirement Charge, the Global Adjustment, the Ontario Clean Energy Benefit and the HST.
A171: GENERAL SERVICE 50 TO 999 KW
A172: GENERAL SERVICE 50 TO 999 KW
A173: GENERAL SERVICE 50 TO 999 KW
A174: GENERAL SERVICE 50 TO 999 KW | B174: MONTHLY RATES AND CHARGES - Delivery Component (If applicable, Effective Date MUST be included in rate description)
A175: GENERAL SERVICE 50 TO 999 KW | B175: Service Charge | H175: $ | I175: 143.99
A176: GENERAL SERVICE 50 TO 999 KW | B176: Distribution Volumetric Rate | H176: $/kW | I176: 4.1847
A177: GENERAL SERVICE 50 TO 999 KW | B177: Low Voltage Service Rate | H177: $/kW | I177: 0.0748
A178: GENERAL SERVICE 50 TO 999 KW | B178: Rate Rider for Disposition of Global Adjustment Sub-Account (2013) - effective until April 30, 2015 Applicable only for Non-RPP Customers and excluding Wholesale Market Participants | H178: $/kWh | I178: 0.0004
A179: GENERAL SERVICE 50 TO 999 KW | B179: Rate Rider for Disposition of Deferral/Variance Accounts (2013) - effective until April 30, 2015 - not applicable to Wholesale Market Participants | H179: $/kW | I179: -0.4518
A180: GENERAL SERVICE 50 TO 999 KW | B180: Rate Rider for Disposition of Deferral/Variance Accounts (2013) - Applicable only to Wholesale Market Participants - effective until April 30, 2015 | H180: $/kW | I180: -0.2431
A181: GENERAL SERVICE 50 TO 999 KW | B181: Rate Rider for Recovery of Lost Revenue Adjustment Mechanism Variance Account (LRAMVA) (2014) - effective until April 30, 2015 | H181: $/kW | I181: 0.0965
A182: GENERAL SERVICE 50 TO 999 KW | B182: Retail Transmission Rate - Network Service Rate | H182: $/kW | I182: 2.5411
A183: GENERAL SERVICE 50 TO 999 KW | B183: Retail Transmission Rate - Line and Transformation Connection Service Rate | H183: $/kW | I183: 2.0066
A184: GENERAL SERVICE 50 TO 999 KW
A185: GENERAL SERVICE 50 TO 999 KW
A186: GENERAL SERVICE 50 TO 999 KW
A187: GENERAL SERVICE 50 TO 999 KW
A188: GENERAL SERVICE 50 TO 999 KW
A189: GENERAL SERVICE 50 TO 999 KW
A190: GENERAL SERVICE 50 TO 999 KW
A191: GENERAL SERVICE 50 TO 999 KW
A192: GENERAL SERVICE 50 TO 999 KW
A193: GENERAL SERVICE 50 TO 999 KW
A194: GENERAL SERVICE 50 TO 999 KW
A195: GENERAL SERVICE 50 TO 999 KW
A196: GENERAL SERVICE 50 TO 999 KW
A197: GENERAL SERVICE 50 TO 999 KW
A198: GENERAL SERVICE 50 TO 999 KW
A199: GENERAL SERVICE 50 TO 999 KW | B199: Rate Rider for Disposition of Deferral/Variance Accounts (2014) - effective until April 30, 2015 - Not applicable to Wholesale Market Participants | H199: $/kW | I199: -0.8484
A200: GENERAL SERVICE 50 TO 999 KW | B200: Rate Rider for Disposition of Global Adjustment (2014) - effective until April 30, 2015 Applicable only for Non-RPP Customers and excluding Wholesale Market Participants | H200: $/kWh | I200: -0.0004
A201: GENERAL SERVICE 50 TO 999 KW | B201: Rate Rider for Disposition of Deferral/Variance Accounts (2014) - Applicable only to Wholesale Market Particiapnts - effective until April 30, 2015 | H201: $/kW | I201: -0.3071
A202: GENERAL SERVICE 50 TO 999 KW | B202: Rate Rider for Recovery of Lost Revenue Adjustment Mechanism (LRAM) - effective until April 30, 2015 | H202: $/kW | I202: 0.0076
A203: GENERAL SERVICE 50 TO 999 KW
A204: GENERAL SERVICE 50 TO 999 KW
A205: GENERAL SERVICE 50 TO 999 KW | B205: MONTHLY RATES AND CHARGES - Regulatory Component
A206: GENERAL SERVICE 50 TO 999 KW
A207: GENERAL SERVICE 50 TO 999 KW | B207: Wholesale Market Service Rate | H207: =H81 -> $/kWh | I207: 0.0044
A208: GENERAL SERVICE 50 TO 999 KW | B208: Rural or Remote Electricity Rate Protection Charge (RRRP) | H208: $/kWh | I208: 0.0013
A209: GENERAL SERVICE 50 TO 999 KW | B209: Standard Supply Service - Administrative Charge (if applicable) | H209: $ | I209: 0.25
A210: GENERAL SERVICE 50 TO 999 KW
A213: GENERAL SERVICE GREATER THAN 50 kW - WMP | B213: GENERAL SERVICE GREATER THAN 50 kW - WMP Service Classification
A214: GENERAL SERVICE GREATER THAN 50 kW - WMP
A215: GENERAL SERVICE GREATER THAN 50 kW - WMP
A216: GENERAL SERVICE GREATER THAN 50 kW - WMP
A217: GENERAL SERVICE GREATER THAN 50 kW - WMP
... 477 more rows

Sheet 5. 2014 Continuity Schedule
C15: Please complete the following continuity schedule for the following Deferral / Variance Accounts. Enter information into green cells only. If you have received approval to dispose of balances from prior years, the starting point for entries in the 2015 DVA schedule below will be the balance sheet date as per your G/L for which you received approval. For example, if in the 2014 EDR process (CoS or IRM) you received approval for the December 31, 2012 balances, the starting point for your entries below should be the 2011 year. This will allow for the correct starting point for the 2012 opening balance columns for both principal and interest. Please refer to the footnotes for further instructions.
E19: 2010 | O19: 2011 | Y19: 2012 | AL19: 2013 | AY19: 2014 | BC19: Projected Interest on Dec-31-13 Balances | BF19: 2.1.7 RRR
C20: Account Descriptions | D20: Account Number | E20: Opening Principal Amounts as of Jan-1-10 | F20: Transactions Debit / (Credit) during 2010 excluding interest and adjustments 2 | G20: Board-Approved Disposition during 2010 | H20: Adjustments during 2010 - other 1 | I20: Closing Principal Balance as of Dec-31-10 | J20: Opening Interest Amounts as of Jan-1-10 | K20: Interest Jan-1 to Dec-31-10 | L20: Board-Approved Disposition during 2010 | M20: Adjustments during 2010 - other 2 | N20: Closing Interest Amounts as of Dec-31-10 | O20: Opening Principal Amounts as of Jan-1-11 | P20: Transactions Debit / (Credit) during 2011 excluding interest and adjustments 2 | Q20: Board-Approved Disposition during 2011 | R20: Adjustments during 2011 - other 1 | S20: Closing Principal Balance as of Dec-31-11 | T20: Opening Interest Amounts as of Jan-1-11 | U20: Interest Jan-1 to Dec-31-11 | V20: Board-Approved Disposition during 2011 | W20: Adjustments during 2011 - other 2 | X20: Closing Interest Amounts as of Dec-31-11 | Y20: Opening Principal Amounts as of Jan-1-12 | Z20: Transactions Debit / (Credit) during 2012 excluding interest and adjustments 2 | AA20: Board-Approved Disposition during 2012 | AB20: Other 1 Adjustments during Q1 2012 | AC20: Other 1 Adjustments during Q2 2012 | AD20: Other 1 Adjustments during Q3 2012 | AE20: Other 1 Adjustments during Q4 2012 | AF20: Closing Principal Balance as of Dec-31-12 | AG20: Opening Interest Amounts as of Jan-1-12 | AH20: Interest Jan-1 to Dec-31-12 | AI20: Board-Approved Disposition during 2012 | AJ20: Adjustments during 2012 - other 1 | AK20: Closing Interest Amounts as of Dec-31-12 | AL20: Opening Principal Amounts as of Jan-1-13 | AM20: Transactions Debit / (Credit) during 2013 excluding interest and adjustments 2 | AN20: Board-Approved Disposition during 2013 | AO20: Other 1 Adjustments during Q1 2013 | AP20: Other 1 Adjustments during Q2 2013 | AQ20: Other 1 Adjustments during Q3 2013 | AR20: Other 1 Adjustments during Q4 2013 | AS20: Closing Principal Balance as of Dec-31-13 | AT20: Opening Interest Amounts as of Jan-1-13 | AU20: Interest Jan-1 to Dec-31-13 | AV20: Board-Approved Disposition during 2013 | AW20: Adjustments during 2013 - other 1 | AX20: Closing Interest Amounts as of Dec-31-13 | AY20: Principal Disposition during 2014 - instructed by Board | AZ20: Interest Disposition during 2014 - instructed by Board | BA20: Closing Principal Balances as of Dec 31-13 Adjusted for Dispositions during 2014 | BB20: Closing Interest Balances as of Dec 31-13 Adjusted for Dispositions during 2014 | BC20: Projected Interest from Jan 1, 2014 to December 31, 2014 on Dec 31 -13 balance adjusted for disposition during 2014 3 | BD20: Projected Interest from January 1, 2015 to April 30, 2015 on Dec 31 -13 balance adjusted for disposition during 2014 3 | BE20: Total Claim | BF20: As of Dec 31-13 | BG20: Variance RRR vs. 2013 Balance (Principal + Interest)
BE22: Claim before Forecasted Transactions
C23: Group 1 Accounts
A24: 1 | C24: LV Variance Account | D24: 1550 | I24: =E24+F24-G24+H24 -> 0 | N24: =J24+K24-L24+M24 -> 0 | O24: =I24 -> 0 | R24: -80684 | S24: =O24+P24-Q24+R24 -> -80684 | T24: =N24 -> 0 | W24: -3294 | X24: =T24+U24-V24+W24 -> -3294 | Y24: =S24 -> -80684 | Z24: -5171 | AA24: -66902 | AF24: =Y24+Z24-AA24+SUM(AB24:AE24) -> -18953 | AG24: =X24 -> -3294 | AH24: -656 | AI24: -2653 | AK24: =AG24+AH24-AI24+AJ24 -> -1297 | AL24: =AF24 -> -18953 | AM24: -61591 | AN24: -13782 | AS24: =AL24+AM24-AN24+SUM(AO24:AR24) -> -66762 | AT24: =AK24 -> -1297 | AU24: -438 | AV24: -911 | AX24: =AT24+AU24-AV24+AW24 -> -824 | AY24: -5171 | AZ24: -487 | BA24: =AS24-AY24 -> -61591 | BB24: =AX24-AZ24 -> -337 | BC24: =ROUND(AS24*0.0147,0) -> -981 | BD24: =ROUND(AS24*0.0147/365*120,0) -> -323 | BE24: =SUM(BA24:BD24) -> -63232 | BF24: -67586 | BG24: =BF24-SUM(AS24,AX24) -> 0
C25: Smart Metering Entity Charge Variance | D25: 1551 | AK25: 0 | AL25: =AK25 -> 0 | AM25: 29148 | AN25: 0 | AS25: =AL25+AM25-AN25+SUM(AO25:AR25) -> 29148 | AT25: =AK25 -> 0 | AU25: 627 | AV25: 0 | AX25: 627 | AY25: 0 | AZ25: 0 | BA25: =AS25-AY25 -> 29148 | BB25: =AX25-AZ25 -> 627 | BC25: 428 | BD25: 141 | BE25: =SUM(BA25:BD25) -> 30344 | BF25: 29775 | BG25: =BF25-SUM(AS25,AX25) -> 0
A26: 2 | C26: RSVA - Wholesale Market Service Charge | D26: 1580 | I26: =E26+F26-G26+SUM(H26:H26) -> 0 | N26: =J26+K26-L26+M26 -> 0 | O26: =I26 -> 0 | R26: -2979367 | S26: =O26+P26-Q26+SUM(R26:R26) -> -2979367 | T26: 0 | W26: -44117 | X26: =T26+U26-V26+W26 -> -44117 | Y26: =S26 -> -2979367 | Z26: -1747348 | AA26: -1369743 | AF26: -3356972 | AG26: =X26 -> -44117 | AH26: -44249 | AI26: -36832 | AK26: -51534 | AL26: =AF26 -> -3356972 | AM26: -1182611 | AN26: -1609624 | AS26: -2929959 | AT26: =AK26 -> -51534 | AU26: -45133 | AV26: -38834 | AX26: -57833 | AY26: -1747348 | AZ26: -46830 | BA26: -1182611 | BB26: -11003 | BC26: -43070 | BD26: -14160 | BE26: =SUM(BA26:BD26) -> -1250844 | BF26: -2987792 | BG26: 0
A27: 3 | C27: RSVA - Retail Transmission Network Charge | D27: 1584 | I27: 0 | N27: 0 | O27: 0 | R27: -413016 | S27: -413016 | T27: 0 | W27: -2421 | X27: -2421 | Y27: -413016 | Z27: -339266 | AA27: -57194 | AF27: -695088 | AG27: -2421 | AH27: -6250 | AI27: -1158 | AK27: -7513 | AL27: -695088 | AM27: 15168 | AN27: -355822 | AS27: -324098 | AT27: -7513 | AU27: -7723 | AV27: -8237 | AX27: -6999 | AY27: -339266 | AZ27: -5903 | BA27: 15168 | BB27: -1096 | BC27: -4764 | BD27: -1566 | BE27: 7742 | BF27: -331097 | BG27: 0
A28: 4 | C28: RSVA - Retail Transmission Connection Charge | D28: 1586 | I28: 0 | N28: 0 | O28: 0 | R28: -189364 | S28: -189364 | T28: 0 | W28: -6010 | X28: -6010 | Y28: -189364 | Z28: -198979 | AA28: -112481 | AF28: -275862 | AG28: -6010 | AH28: -2481 | AI28: -4600 | AK28: -3891 | AL28: -275862 | AM28: -105214 | AN28: -76883 | AS28: -304193 | AT28: -3891 | AU28: -4771 | AV28: -2917 | AX28: -5745 | AY28: -198979 | AZ28: -4861 | BA28: -105214 | BB28: -884 | BC28: -4472 | BD28: -1470 | BE28: -112040 | BF28: -309938 | BG28: 0
A29: 5 | C29: RSVA - Power (excluding Global Adjustment) | D29: 1588 | I29: 0 | N29: 0 | O29: 0 | R29: 281048 | S29: 281048 | T29: 0 | W29: 33494 | X29: 33494 | Y29: 281048 | Z29: 184809 | AA29: -213825 | AF29: 679682 | AG29: 33494 | AH29: 10148 | AI29: 11359 | AK29: 32283 | AL29: 679682 | AM29: -78508 | AN29: 494873 | AS29: 106301 | AT29: 32283 | AU29: 6104 | AV29: 31835 | AX29: 6552 | AY29: 184809 | AZ29: 4058 | BA29: -78508 | BB29: 2494 | BC29: 1563 | BD29: 514 | BE29: -73937 | BF29: 112853 | BG29: 0
A30: 6 | C30: RSVA - Global Adjustment | D30: 1589 | I30: 0 | N30: 0 | O30: 0 | R30: 113221 | S30: 113221 | T30: 0 | W30: 51715 | X30: 51715 | Y30: 113221 | Z30: -202982 | AA30: -275380 | AF30: 185619 | AG30: 51715 | AH30: 12226 | AI30: 16948 | AK30: 46993 | AL30: 185619 | AM30: 833782 | AN30: 388601 | AS30: 630800 | AT30: 46993 | AU30: 16241 | AV30: 42384 | AX30: 20850 | AY30: -202982 | AZ30: 644 | BA30: 833782 | BB30: 20206 | BC30: 9273 | BD30: 3049 | BE30: 866310 | BF30: 651650 | BG30: 0
A31: 7 | C31: Recovery of Regulatory Asset Balances | D31: 1590 | I31: 0 | N31: 0 | O31: 0 | S31: 0 | T31: 0 | X31: 0 | Y31: 0 | AF31: 0 | AG31: 0 | AK31: 0 | AL31: 0 | AS31: 0 | AT31: 0 | AX31: 0 | BA31: 0 | BB31: 0 | BE31: 0 | BG31: 0
A32: 8 | C32: Disposition and Recovery/Refund of Regulatory Balances (2008)4 | D32: 1595 | I32: 0 | N32: 0 | O32: =I32 -> 0 | S32: 0 | T32: 0 | X32: 0 | Y32: 0 | AF32: 0 | AG32: 0 | AK32: 0 | AL32: 0 | AS32: 0 | AT32: 0 | AX32: 0 | BA32: 0 | BB32: 0 | BE32: 0 | BG32: 0
A33: 9 | C33: Disposition and Recovery/Refund of Regulatory Balances (2009)4 | D33: 1595 | I33: 0 | N33: 0 | O33: =I33 -> 0 | S33: 0 | T33: 0 | X33: 0 | Y33: 0 | AF33: 0 | AG33: 0 | AK33: 0 | AL33: 0 | AM33: -66733 | AS33: -66733 | AT33: 0 | AX33: 0 | BA33: -66733 | BB33: 0 | BC33: =ROUND(AS33*0.0147,0) -> -981 | BD33: =ROUND(AS33*0.0147/365*120,0) -> -323 | BE33: -68037 | BF33: -66733 | BG33: 0
A34: 9 | C34: Disposition and Recovery/Refund of Regulatory Balances (2010)4 | D34: 1595 | I34: 0 | N34: 0 | O34: =I34 -> 0 | S34: 0 | T34: 0 | X34: 0 | Y34: 0 | AF34: 0 | AG34: 0 | AK34: 0 | AL34: 0 | AS34: 0 | AT34: 0 | AX34: 0 | BA34: 0 | BB34: 0 | BE34: 0 | BF34: -716389 | BG34: -716389
A35: 9 | C35: Disposition and Recovery/Refund of Regulatory Balances (2011)4 | D35: 1595 | I35: 0 | N35: 0 | O35: =I35 -> 0 | S35: 0 | T35: 0 | X35: 0 | Y35: 0 | AF35: 0 | AG35: 0 | AK35: 0 | AL35: 0 | AS35: 0 | AT35: 0 | AX35: 0 | BA35: 0 | BB35: 0 | BE35: =SUM(BA35:BD35) -> 0 | BF35: -1433573 | BG35: -1433573
A36: 9 | C36: Disposition and Recovery/Refund of Regulatory Balances (2012)4 | D36: 1595 | I36: 0 | N36: 0 | O36: =I36 -> 0 | S36: 0 | T36: =N36 -> 0 | X36: 0 | Y36: =S36 -> 0 | AF36: =Y36+Z36-AA36+SUM(AB36:AE36) -> 0 | AG36: =X36 -> 0 | AK36: =AG36+AH36-AI36+AJ36 -> 0 | AL36: =AF36 -> 0 | AS36: =AL36+AM36-AN36+SUM(AO36:AR36) -> 0 | AT36: =AK36 -> 0 | AX36: =AT36+AU36-AV36+AW36 -> 0 | BA36: 0 | BB36: 0 | BE36: =SUM(BA36:BD36) -> 0 | BG36: 0
C38: RSVA - Global Adjustment | D38: 1589 | E38: =E30 -> 0 | F38: =F30 -> 0 | G38: 0 | H38: 0 | I38: 0 | J38: 0 | K38: 0 | L38: 0 | M38: 0 | N38: 0 | O38: =O30 -> 0 | P38: =P30 -> 0 | Q38: 0 | R38: 113221 | S38: 113221 | T38: 0 | U38: 0 | V38: 0 | W38: 51715 | X38: 51715 | Y38: =Y30 -> 113221 | Z38: =Z30 -> -202982 | AA38: -275380 | AB38: 0 | AC38: 0 | AD38: 0 | AE38: 0 | AF38: =AF30 -> 185619 | AG38: 51715 | AH38: 12226 | AI38: 16948 | AJ38: =AJ30 -> 0 | AK38: 46993 | AL38: =AL30 -> 185619 | AM38: =AM30 -> 833782 | AN38: 388601 | AO38: 0 | AP38: 0 | AQ38: 0 | AR38: 0 | AS38: 630800 | AT38: 46993 | AU38: 16241 | AV38: 42384 | AW38: 0 | AX38: 20850 | AY38: -202982 | AZ38: =AZ30 -> 644 | BA38: 833782 | BB38: 20206 | BC38: 9273 | BD38: 3049 | BE38: 866310 | BF38: 651650 | BG38: 0
C39: Total Group 1 Balance excluding Account 1589 - Global Adjustment | E39: =SUM(E24:E29,E31:E36) -> 0 | F39: =SUM(F24:F29,F31:F36) -> 0 | G39: 0 | H39: 0 | I39: 0 | J39: 0 | K39: 0 | L39: 0 | M39: 0 | N39: 0 | O39: =SUM(O24:O29,O31:O36) -> 0 | P39: =SUM(P24:P29,P31:P36) -> 0 | Q39: 0 | R39: -3381383 | S39: -3381383 | T39: 0 | U39: 0 | V39: 0 | W39: -22348 | X39: -22348 | Y39: =SUM(Y24:Y29,Y31:Y36) -> -3381383 | Z39: =SUM(Z24:Z29,Z31:Z36) -> -2105955 | AA39: -1820145 | AB39: 0 | AC39: 0 | AD39: 0 | AE39: 0 | AF39: =SUM(AF24:AF29,AF31:AF36) -> -3667193 | AG39: -22348 | AH39: -43488 | AI39: -33884 | AJ39: =SUM(AJ24:AJ29,AJ31:AJ36) -> 0 | AK39: -31952 | AL39: =SUM(AL24:AL29,AL31:AL36) -> -3667193 | AM39: =SUM(AM24:AM29,AM31:AM36) -> -1450341 | AN39: -1561238 | AO39: 0 | AP39: 0 | AQ39: 0 | AR39: 0 | AS39: -3556296 | AT39: -31952 | AU39: -51334 | AV39: -19064 | AW39: 0 | AX39: -64222 | AY39: -2105955 | AZ39: =SUM(AZ24:AZ29,AZ31:AZ36) -> -54023 | BA39: -1450341 | BB39: -10199 | BC39: -52277 | BD39: -17187 | BE39: -1530004 | BF39: -5770480 | BG39: -2149962
C40: Total Group 1 Balance | E40: =SUM(E24:E36) -> 0 | F40: =SUM(F24:F36) -> 0 | G40: 0 | H40: 0 | I40: 0 | J40: 0 | K40: 0 | L40: 0 | M40: 0 | N40: 0 | O40: =SUM(O24:O36) -> 0 | P40: =SUM(P24:P36) -> 0 | Q40: 0 | R40: -3268162 | S40: -3268162 | T40: 0 | U40: 0 | V40: 0 | W40: 29367 | X40: 29367 | Y40: =SUM(Y24:Y36) -> -3268162 | Z40: =SUM(Z24:Z36) -> -2308937 | AA40: -2095525 | AB40: 0 | AC40: 0 | AD40: 0 | AE40: 0 | AF40: =SUM(AF24:AF36) -> -3481574 | AG40: 29367 | AH40: -31262 | AI40: -16936 | AJ40: =SUM(AJ24:AJ36) -> 0 | AK40: 15041 | AL40: =SUM(AL24:AL36) -> -3481574 | AM40: =SUM(AM24:AM36) -> -616559 | AN40: -1172637 | AO40: 0 | AP40: 0 | AQ40: 0 | AR40: 0 | AS40: -2925496 | AT40: 15041 | AU40: -35093 | AV40: 23320 | AW40: 0 | AX40: -43372 | AY40: -2308937 | AZ40: =SUM(AZ24:AZ36) -> -53379 | BA40: -616559 | BB40: 10007 | BC40: -43004 | BD40: -14138 | BE40: -663694 | BF40: -5118830 | BG40: -2149962
C42: LRAM Variance Account | D42: 1568 | I42: =E42+F42-G42+SUM(H42:H42) -> 0 | N42: =J42+K42-L42+M42 -> 0 | S42: =O42+P42-Q42+SUM(R42:R42) -> 0 | X42: =T42+U42-V42+W42 -> 0 | Y42: =S42 -> 0 | AF42: =Y42+Z42-AA42+SUM(AB42:AE42) -> 0 | AG42: =X42 -> 0 | AK42: =AG42+AH42-AI42+AJ42 -> 0 | AL42: =AF42 -> 0 | AS42: =AL42+AM42-AN42+SUM(AO42:AR42) -> 0 | AT42: =AK42 -> 0 | AX42: =AT42+AU42-AV42+AW42 -> 0 | AY42: 0 | AZ42: 0 | BA42: =AS42-AY42 -> 0 | BB42: =AX42-AZ42 -> 0 | BE42: =SUM(BA42:BD42) -> 0 | BG42: =BF42-SUM(AS42,AX42) -> 0
C44: Total including Account 1568 | E44: =E42+E40 -> 0 | F44: =F42+F40 -> 0 | G44: 0 | H44: 0 | I44: 0 | J44: 0 | K44: 0 | L44: 0 | M44: 0 | N44: 0 | O44: 0 | P44: 0 | Q44: 0 | R44: -3268162 | S44: -3268162 | T44: 0 | U44: 0 | V44: 0 | W44: 29367 | X44: 29367 | Y44: -3268162 | Z44: -2308937 | AA44: -2095525 | AB44: 0 | AC44: 0 | AD44: 0 | AE44: 0 | AF44: -3481574 | AG44: 29367 | AH44: -31262 | AI44: -16936 | AJ44: 0 | AK44: 15041 | AL44: -3481574 | AM44: -616559 | AN44: -1172637 | AO44: 0 | AP44: 0 | AQ44: 0 | AR44: 0 | AS44: -2925496 | AT44: 15041 | AU44: -35093 | AV44: 23320 | AW44: 0 | AX44: -43372 | AY44: -2308937 | AZ44: -53379 | BA44: -616559 | BB44: 10007 | BC44: -43004 | BD44: -14138 | BE44: -663694 | BF44: -5118830 | BG44: -2149962
C47: For all Board-Approved dispositions, please ensure that the disposition amount has the same sign (e.g: debit balances are to have a positive figure and credit balance are to have a negative figure) as per the related Board decision.
B50: 1 | C50: Please provide explanations for the nature of the adjustments. If the adjustment relates to previously Board Approved disposed balances, please provide amounts for adjustments and include supporting documentations.
B51: 2 | C51: For RSVA accounts only, report the net variance to the account during the year. For all other accounts, record the transactions during the year.
B52: 3 | C52: If the LDC’s rate year begins on January 1, 2015, the projected interest is recorded from January 1, 2014 to December 31, 2014 on the December 31, 2013 balances adjusted for the disposed balances approved by the Board in the 2014 rate decision. If the LDC’s rate year begins on May 1, 2015, the projected interest is recorded from January 1, 2014 to April 30, 2015 on the December 31, 2013 balances adjusted for the disposed interest balances approved by the Board in the 2014 rate decision.
B53: 4 | C53: Include Account 1595 as part of Group 1 accounts (lines 31, 32, 33 and 34) for review and disposition if the recovery (or refund) period has been completed. If the recovery (or refund) period has not been completed, do not include the respective balance in Account 1595 for disposition at this time.

Sheet 6. Billing Det. for Def-Var
AS1: As per Section 3.2.3 of the 2015 Filing Requirements for Electricity Distribution Rate Applications, an applicant may elect to dispose of the Group 1 account balances below the threshold. If doing so, please select YES from the adjacent drop-down cell and also indicate so in the Manager's Summary. If not, please select NO.
A13: In the green shaded cells, enter the most recent Board Approved volumetric forecast. If there is a material difference between the latest Board-approved volumetric forecast and the most recent 12-month actual volumetric data, use the most recent 12-month actual data. Do not enter data for the MicroFit class.
E15: Billed kWh for Non-RPP Customers | F15: Estimated kW for Non-RPP Customers | H15: 1590 Recovery Share Proportion* | I15: 1595 Recovery Share Proportion (2008) 1 | J15: 1595 Recovery Share Proportion (2009) 1 | K15: 1595 Recovery Share Proportion (2010) 1 | L15: 1595 Recovery Share Proportion (2011) 1 | M15: 1595 Recovery Share Proportion (2012) 1 | N15: 1568 LRAM Variance Account Class Allocation ($ amounts) | O15: Number of Customers for Residential and GS<50 classes3
A16: Rate Class | B16: Unit | C16: Metered kWh | D16: Metered kW
A17: RESIDENTIAL | B17: $/kWh | C17: 256986232 | E17: 21231376 | F17: =IF(ISERROR(D17/C17*E17), 0, D17/C17*E17) -> 0 | J17: 0.252 | O17: 32074
A18: GENERAL SERVICE LESS THAN 50 KW | B18: $/kWh | C18: 98884257 | E18: 12313414 | F18: 0 | J18: 0.111 | O18: 3498
A19: GENERAL SERVICE 50 TO 999 KW | B19: $/kW | C19: 217086976 | D19: 610916 | E19: 158126127 | F19: 444991.1403 | J19: 0.212
A20: GENERAL SERVICE GREATER THAN 50 kW - WMP | B20: $/kW | C20: 5927634 | D20: 10738 | F20: 0
A21: GENERAL SERVICE 1,000 TO 4,999 KW | B21: $/kW | C21: 157447994 | D21: 334928 | E21: 157447994 | F21: 334928 | J21: 0.166
A22: LARGE USE | B22: $/kW | C22: 134287578 | D22: 206572 | F22: 0 | J22: 0.125
A23: LARGE USE - WMP | B23: $/kW | C23: 114592742 | D23: 191757 | F23: 0 | J23: 0.122
A24: UNMETERED SCATTERED LOAD | B24: $/kWh | C24: 2214914 | F24: 0 | J24: 0.002
A25: SENTINEL LIGHTING | B25: $/kW | C25: 620940 | D25: 1450 | F25: 0 | J25: 0.001
A26: STREET LIGHTING | B26: $/kW | C26: 9039916 | D26: 24522 | E26: 9039916 | F26: 24522 | J26: 0.009
A27: microFIT
B29: Total | C29: =SUM(C17:C27) -> 997089183 | D29: =SUM(D17:D27) -> 1380883 | E29: 358158827 | F29: 804441.1403 | H29: 0 | I29: 0 | J29: 1 | K29: 0 | L29: 0 | M29: 0 | N29: 0 | O29: 35572
M30: Balance as per Sheet 5 | N30: =ROUND('5. 2014 Continuity Schedule'!BE42, 0) -> 0
M31: Variance | N31: =N29-N30 -> 0
A33: Threshold Test
A34: Total Claim (including Account 1568) | B34: ='5. 2014 Continuity Schedule'!BE44 -> -663694
A35: Total Claim for Threshold Test (All Group 1 Accounts) | B35: ='5. 2014 Continuity Schedule'!BE40 -> -663694
A36: Threshold Test (Total claim per kWh) 2 | B36: =IF(ISERROR(B35/C29), 0, B35/C29) -> -0.0006656315316 | D36: =IF(AND(B36>-0.001,B36<0.001),"Claim does not meet the threshold test.","") -> Claim does not meet the threshold test.
A38: =IF(AND(B36>-0.001, B36<0.001), AS1, "") -> As per Section 3.2.3 of the 2015 Filing Requirements for Electricity Distribution Rate Applications, an applicant may elect to dispose of the Group 1 account balances below the threshold. If doing so, please select YES from the adjacent drop-down cell and also indicate so in the Manager's Summary. If not, please select NO. | C38: YES
A42: 1 Residual Account balance to be allocated to rate classes in proportion to the recovery share as established when rate riders were implemented.
A43: 2 The Threshold Test does not include the amount in 1568.
A44: 3 The proportion of customers for the Residential and GS<50 Classes will be used to allocate Account 1551.

Sheet 6. hidden (hidden)
E1: Billed kWh for Non-RPP Customers | F1: Estimated kW for Non-RPP Customers | G1: Distribution Revenue 1 | H1: 1590 Recovery Share Proportion* | I1: 1595 Recovery Share Proportion (2008) 2 | J1: 1595 Recovery Share Proportion (2009) 2 | K1: 1595 Recovery Share Proportion (2010) 2 | L1: 1595 Recovery Share Proportion (2011) 2 | M1: 1568 LRAM Variance Account Class Allocation | AC1: YES
A2: Rate Class | B2: Unit | C2: Metered kWh | D2: Metered kW
A3: RESIDENTIAL | B3: $/kWh | C3: 256986232 | D3: 0 | E3: 21231376 | G3: 0 | H3: 0 | I3: 0 | J3: 0.252 | K3: 0 | L3: 0 | M3: 0 | N3: 0 | O3: 32074
A4: GENERAL SERVICE LESS THAN 50 KW | B4: $/kWh | C4: 98884257 | D4: 0 | E4: 12313414 | G4: 0 | H4: 0 | I4: 0 | J4: 0.111 | K4: 0 | L4: 0 | M4: 0 | N4: 0 | O4: 3498
A5: GENERAL SERVICE 50 TO 999 KW | B5: $/kW | C5: 217086976 | D5: 610916 | E5: 158126127 | G5: 0 | H5: 0 | I5: 0 | J5: 0.212 | K5: 0 | L5: 0 | M5: 0 | N5: 0 | O5: 0
A6: GENERAL SERVICE GREATER THAN 50 kW - WMP | B6: $/kW | C6: 5927634 | D6: 10738 | E6: 0 | G6: 0 | H6: 0 | I6: 0 | J6: 0 | K6: 0 | L6: 0 | M6: 0 | N6: 0 | O6: 0
A7: GENERAL SERVICE 1,000 TO 4,999 KW | B7: $/kW | C7: 157447994 | D7: 334928 | E7: 157447994 | G7: 0 | H7: 0 | I7: 0 | J7: 0.166 | K7: 0 | L7: 0 | M7: 0 | N7: 0 | O7: 0
A8: LARGE USE | B8: $/kW | C8: 134287578 | D8: 206572 | E8: 0 | G8: 0 | H8: 0 | I8: 0 | J8: 0.125 | K8: 0 | L8: 0 | M8: 0 | N8: 0 | O8: 0
A9: LARGE USE - WMP | B9: $/kW | C9: 114592742 | D9: 191757 | E9: 0 | G9: 0 | H9: 0 | I9: 0 | J9: 0.122 | K9: 0 | L9: 0 | M9: 0 | N9: 0 | O9: 0
A10: UNMETERED SCATTERED LOAD | B10: $/kWh | C10: 2214914 | D10: 0 | E10: 0 | G10: 0 | H10: 0 | I10: 0 | J10: 0.002 | K10: 0 | L10: 0 | M10: 0 | N10: 0 | O10: 0
A11: SENTINEL LIGHTING | B11: $/kW | C11: 620940 | D11: 1450 | E11: 0 | G11: 0 | H11: 0 | I11: 0 | J11: 0.001 | K11: 0 | L11: 0 | M11: 0 | N11: 0 | O11: 0
A12: STREET LIGHTING | B12: $/kW | C12: 9039916 | D12: 24522 | E12: 9039916 | G12: 0 | H12: 0 | I12: 0 | J12: 0.009 | K12: 0 | L12: 0 | M12: 0 | N12: 0 | O12: 0
A13: microFIT | B13: 0 | C13: 0 | D13: 0 | E13: 0 | G13: 0 | H13: 0 | I13: 0 | J13: 0 | K13: 0 | L13: 0 | M13: 0 | N13: 0 | O13: 0

Sheet 7. Allocating Def-Var Balances
A13: No input required. This workshseet allocates the deferral/variance account balances (Group 1, 1589, and 1568) to the appropriate classes as per the EDDVAR Report dated July 31, 2009
A15: Allocation of Group 1 Accounts (including Account 1568)
C16: % of Total kWh (with WMP) | D16: % of Total non-RPP kWh | E16: % of Customer Numbers ** | N16: 1595 (2008) | O16: 1595 (2009) | P16: 1595 (2010) | Q16: 1595 (2011) | R16: 1595 (2012) | S16: 1568 | U16: % of Total kWh (without WMP) | V16: 1580 | W16: 1588 | X16: 1589
A17: Rate Class | F17: 1550 | G17: 1551 | H17: 1580 | I17: 1584 | J17: 1586 | K17: 1588 | L17: 1589 | M17: 1590
A19: RESIDENTIAL | C19: =VLOOKUP(A19, '6. Billing Det. for Def-Var'!A17:D27, 3,0)/'6. Billing Det. for Def-Var'!C29 -> 0.2577364557 | D19: =VLOOKUP(A19, '6. Billing Det. for Def-Var'!A17:E27, 5,0)/'6. Billing Det. for Def-Var'!E29 -> 0.05927922028 | E19: =VLOOKUP(A19, '6. Billing Det. for Def-Var'!A17:O27, 15,0)/'6. Billing Det. for Def-Var'!O29 -> 0.9016642303 | F19: =C19* '5. 2014 Continuity Schedule'!BE24 -> -16297.19156 | G19: =E19* '5. 2014 Continuity Schedule'!BE25 -> 27360.0994 | H19: =C19* '5. 2014 Continuity Schedule'!BE26 -> -322388.0991 | I19: =C19* '5. 2014 Continuity Schedule'!BE27 -> 1995.39564 | J19: =C19* '5. 2014 Continuity Schedule'!BE28 -> -28876.79249 | K19: =C19* '5. 2014 Continuity Schedule'!BE29 -> -19056.26032 | L19: =D19* '5. 2014 Continuity Schedule'!BE30 -> 51354.18132 | M19: ='6. Billing Det. for Def-Var'!H17* '5. 2014 Continuity Schedule'!BE31 -> 0 | N19: ='6. Billing Det. for Def-Var'!I17* '5. 2014 Continuity Schedule'!BE32 -> 0 | O19: ='6. Billing Det. for Def-Var'!J17* '5. 2014 Continuity Schedule'!BE33 -> -17145.324 | P19: ='6. Billing Det. for Def-Var'!K17* '5. 2014 Continuity Schedule'!BE34 -> 0 | Q19: ='6. Billing Det. for Def-Var'!L17* '5. 2014 Continuity Schedule'!BE35 -> 0 | R19: ='6. Billing Det. for Def-Var'!M17* '5. 2014 Continuity Schedule'!BE36 -> 0 | S19: ='6. Billing Det. for Def-Var'!N17 -> 0 | U19: =VLOOKUP(A19, '6. Billing Det. for Def-Var'!A17:D27, 3,0)/876568807 -> 0.2931729146 | V19: =U19* '5. 2014 Continuity Schedule'!BE26 -> -366713.5812 | W19: =U19* '5. 2014 Continuity Schedule'!BE29 -> -21676.32579
A20: GENERAL SERVICE LESS THAN 50 KW | C20: =VLOOKUP(A20, '6. Billing Det. for Def-Var'!A17:D27, 3,0)/'6. Billing Det. for Def-Var'!C29 -> 0.09917293125 | D20: =VLOOKUP(A20, '6. Billing Det. for Def-Var'!A17:E27, 5,0)/'6. Billing Det. for Def-Var'!E29 -> 0.03437975856 | E20: =VLOOKUP(A20, '6. Billing Det. for Def-Var'!A17:O27, 15,0)/'6. Billing Det. for Def-Var'!O29 -> 0.09833576971 | F20: =C20* '5. 2014 Continuity Schedule'!BE24 -> -6270.902789 | G20: =E20* '5. 2014 Continuity Schedule'!BE25 -> 2983.900596 | H20: =C20* '5. 2014 Continuity Schedule'!BE26 -> -124049.866 | I20: =C20* '5. 2014 Continuity Schedule'!BE27 -> 767.7968338 | J20: =C20* '5. 2014 Continuity Schedule'!BE28 -> -11111.33522 | K20: =C20* '5. 2014 Continuity Schedule'!BE29 -> -7332.549018 | L20: =D20* '5. 2014 Continuity Schedule'!BE30 -> 29783.52864 | M20: ='6. Billing Det. for Def-Var'!H18* '5. 2014 Continuity Schedule'!BE31 -> 0 | N20: ='6. Billing Det. for Def-Var'!I18* '5. 2014 Continuity Schedule'!BE32 -> 0 | O20: ='6. Billing Det. for Def-Var'!J18* '5. 2014 Continuity Schedule'!BE33 -> -7552.107 | P20: ='6. Billing Det. for Def-Var'!K18* '5. 2014 Continuity Schedule'!BE34 -> 0 | Q20: ='6. Billing Det. for Def-Var'!L18* '5. 2014 Continuity Schedule'!BE35 -> 0 | R20: ='6. Billing Det. for Def-Var'!M18* '5. 2014 Continuity Schedule'!BE36 -> 0 | S20: ='6. Billing Det. for Def-Var'!N18 -> 0 | U20: =VLOOKUP(A20, '6. Billing Det. for Def-Var'!A17:D27, 3,0)/876568807 -> 0.1128083229 | V20: =U20* '5. 2014 Continuity Schedule'!BE26 -> -141105.6138 | W20: =U20* '5. 2014 Continuity Schedule'!BE29 -> -8340.708968
A21: GENERAL SERVICE 50 TO 999 KW | C21: =VLOOKUP(A21, '6. Billing Det. for Def-Var'!A17:D27, 3,0)/'6. Billing Det. for Def-Var'!C29 -> 0.2177207212 | D21: =VLOOKUP(A21, '6. Billing Det. for Def-Var'!A17:E27, 5,0)/'6. Billing Det. for Def-Var'!E29 -> 0.4414972216 | F21: =C21* '5. 2014 Continuity Schedule'!BE24 -> -13766.91664 | G21: =E21* '5. 2014 Continuity Schedule'!BE25 -> 0 | H21: =C21* '5. 2014 Continuity Schedule'!BE26 -> -272334.6578 | I21: =C21* '5. 2014 Continuity Schedule'!BE27 -> 1685.593823 | J21: =C21* '5. 2014 Continuity Schedule'!BE28 -> -24393.4296 | K21: =C21* '5. 2014 Continuity Schedule'!BE29 -> -16097.61696 | L21: =D21* '5. 2014 Continuity Schedule'!BE30 -> 382473.458 | M21: ='6. Billing Det. for Def-Var'!H19* '5. 2014 Continuity Schedule'!BE31 -> 0 | N21: ='6. Billing Det. for Def-Var'!I19* '5. 2014 Continuity Schedule'!BE32 -> 0 | O21: ='6. Billing Det. for Def-Var'!J19* '5. 2014 Continuity Schedule'!BE33 -> -14423.844 | P21: ='6. Billing Det. for Def-Var'!K19* '5. 2014 Continuity Schedule'!BE34 -> 0 | Q21: ='6. Billing Det. for Def-Var'!L19* '5. 2014 Continuity Schedule'!BE35 -> 0 | R21: ='6. Billing Det. for Def-Var'!M19* '5. 2014 Continuity Schedule'!BE36 -> 0 | S21: ='6. Billing Det. for Def-Var'!N19 -> 0 | U21: =VLOOKUP(A21, '6. Billing Det. for Def-Var'!A17:D27, 3,0)/876568807 -> 0.2476553743 | V21: =U21* '5. 2014 Continuity Schedule'!BE26 -> -309778.239 | W21: =U21* '5. 2014 Continuity Schedule'!BE29 -> -18310.89541
A22: GENERAL SERVICE GREATER THAN 50 kW - WMP | C22: =VLOOKUP(A22, '6. Billing Det. for Def-Var'!A17:D27, 3,0)/'6. Billing Det. for Def-Var'!C29 -> 0.005944938628 | D22: =VLOOKUP(A22, '6. Billing Det. for Def-Var'!A17:E27, 5,0)/'6. Billing Det. for Def-Var'!E29 -> 0 | F22: =C22* '5. 2014 Continuity Schedule'!BE24 -> -375.9103594 | G22: =E22* '5. 2014 Continuity Schedule'!BE25 -> 0 | H22: =C22* '5. 2014 Continuity Schedule'!BE26 -> -7436.190814 | I22: =C22* '5. 2014 Continuity Schedule'!BE27 -> 46.02571486 | J22: =C22* '5. 2014 Continuity Schedule'!BE28 -> -666.0709239 | K22: =C22* '5. 2014 Continuity Schedule'!BE29 -> -439.5509274 | L22: =D22* '5. 2014 Continuity Schedule'!BE30 -> 0 | M22: ='6. Billing Det. for Def-Var'!H20* '5. 2014 Continuity Schedule'!BE31 -> 0 | N22: ='6. Billing Det. for Def-Var'!I20* '5. 2014 Continuity Schedule'!BE32 -> 0 | O22: ='6. Billing Det. for Def-Var'!J20* '5. 2014 Continuity Schedule'!BE33 -> 0 | P22: ='6. Billing Det. for Def-Var'!K20* '5. 2014 Continuity Schedule'!BE34 -> 0 | Q22: ='6. Billing Det. for Def-Var'!L20* '5. 2014 Continuity Schedule'!BE35 -> 0 | R22: ='6. Billing Det. for Def-Var'!M20* '5. 2014 Continuity Schedule'!BE36 -> 0 | S22: ='6. Billing Det. for Def-Var'!N20 -> 0 | U22: 0 | V22: =U22* '5. 2014 Continuity Schedule'!BE26 -> 0 | W22: =U22* '5. 2014 Continuity Schedule'!BE29 -> 0
A23: GENERAL SERVICE 1,000 TO 4,999 KW | C23: =VLOOKUP(A23, '6. Billing Det. for Def-Var'!A17:D27, 3,0)/'6. Billing Det. for Def-Var'!C29 -> 0.1579076342 | D23: =VLOOKUP(A23, '6. Billing Det. for Def-Var'!A17:E27, 5,0)/'6. Billing Det. for Def-Var'!E29 -> 0.4396038353 | F23: =C23* '5. 2014 Continuity Schedule'!BE24 -> -9984.815527 | G23: =E23* '5. 2014 Continuity Schedule'!BE25 -> 0 | H23: =C23* '5. 2014 Continuity Schedule'!BE26 -> -197517.8168 | I23: =C23* '5. 2014 Continuity Schedule'!BE27 -> 1222.520904 | J23: =C23* '5. 2014 Continuity Schedule'!BE28 -> -17691.97134 | K23: =C23* '5. 2014 Continuity Schedule'!BE29 -> -11675.21675 | L23: =D23* '5. 2014 Continuity Schedule'!BE30 -> 380833.1986 | M23: ='6. Billing Det. for Def-Var'!H21* '5. 2014 Continuity Schedule'!BE31 -> 0 | N23: ='6. Billing Det. for Def-Var'!I21* '5. 2014 Continuity Schedule'!BE32 -> 0 | O23: ='6. Billing Det. for Def-Var'!J21* '5. 2014 Continuity Schedule'!BE33 -> -11294.142 | P23: ='6. Billing Det. for Def-Var'!K21* '5. 2014 Continuity Schedule'!BE34 -> 0 | Q23: ='6. Billing Det. for Def-Var'!L21* '5. 2014 Continuity Schedule'!BE35 -> 0 | R23: ='6. Billing Det. for Def-Var'!M21* '5. 2014 Continuity Schedule'!BE36 -> 0 | S23: ='6. Billing Det. for Def-Var'!N21 -> 0 | U23: =VLOOKUP(A23, '6. Billing Det. for Def-Var'!A17:D27, 3,0)/876568807 -> 0.1796185225 | V23: =U23* '5. 2014 Continuity Schedule'!BE26 -> -224674.7512 | W23: =U23* '5. 2014 Continuity Schedule'!BE29 -> -13280.4547
A24: LARGE USE | C24: =VLOOKUP(A24, '6. Billing Det. for Def-Var'!A17:D27, 3,0)/'6. Billing Det. for Def-Var'!C29 -> 0.1346796057 | D24: =VLOOKUP(A24, '6. Billing Det. for Def-Var'!A17:E27, 5,0)/'6. Billing Det. for Def-Var'!E29 -> 0 | F24: =C24* '5. 2014 Continuity Schedule'!BE24 -> -8516.060827 | G24: =E24* '5. 2014 Continuity Schedule'!BE25 -> 0 | H24: =C24* '5. 2014 Continuity Schedule'!BE26 -> -168463.1767 | I24: =C24* '5. 2014 Continuity Schedule'!BE27 -> 1042.689507 | J24: =C24* '5. 2014 Continuity Schedule'!BE28 -> -15089.50302 | K24: =C24* '5. 2014 Continuity Schedule'!BE29 -> -9957.806006 | L24: =D24* '5. 2014 Continuity Schedule'!BE30 -> 0 | M24: ='6. Billing Det. for Def-Var'!H22* '5. 2014 Continuity Schedule'!BE31 -> 0 | N24: ='6. Billing Det. for Def-Var'!I22* '5. 2014 Continuity Schedule'!BE32 -> 0 | O24: ='6. Billing Det. for Def-Var'!J22* '5. 2014 Continuity Schedule'!BE33 -> -8504.625 | P24: ='6. Billing Det. for Def-Var'!K22* '5. 2014 Continuity Schedule'!BE34 -> 0 | Q24: ='6. Billing Det. for Def-Var'!L22* '5. 2014 Continuity Schedule'!BE35 -> 0 | R24: ='6. Billing Det. for Def-Var'!M22* '5. 2014 Continuity Schedule'!BE36 -> 0 | S24: ='6. Billing Det. for Def-Var'!N22 -> 0 | U24: =VLOOKUP(A24, '6. Billing Det. for Def-Var'!A17:D27, 3,0)/876568807 -> 0.1531968477 | V24: =U24* '5. 2014 Continuity Schedule'!BE26 -> -191625.3577 | W24: =U24* '5. 2014 Continuity Schedule'!BE29 -> -11326.91533
A25: LARGE USE - WMP | C25: =VLOOKUP(A25, '6. Billing Det. for Def-Var'!A17:D27, 3,0)/'6. Billing Det. for Def-Var'!C29 -> 0.1149272743 | D25: =VLOOKUP(A25, '6. Billing Det. for Def-Var'!A17:E27, 5,0)/'6. Billing Det. for Def-Var'!E29 -> 0 | F25: =C25* '5. 2014 Continuity Schedule'!BE24 -> -7267.081406 | G25: =E25* '5. 2014 Continuity Schedule'!BE25 -> 0 | H25: =C25* '5. 2014 Continuity Schedule'!BE26 -> -143756.0914 | I25: =C25* '5. 2014 Continuity Schedule'!BE27 -> 889.7669573 | J25: =C25* '5. 2014 Continuity Schedule'!BE28 -> -12876.45181 | K25: =C25* '5. 2014 Continuity Schedule'!BE29 -> -8497.377877 | L25: =D25* '5. 2014 Continuity Schedule'!BE30 -> 0 | M25: ='6. Billing Det. for Def-Var'!H23* '5. 2014 Continuity Schedule'!BE31 -> 0 | N25: ='6. Billing Det. for Def-Var'!I23* '5. 2014 Continuity Schedule'!BE32 -> 0 | O25: ='6. Billing Det. for Def-Var'!J23* '5. 2014 Continuity Schedule'!BE33 -> -8300.514 | P25: ='6. Billing Det. for Def-Var'!K23* '5. 2014 Continuity Schedule'!BE34 -> 0 | Q25: ='6. Billing Det. for Def-Var'!L23* '5. 2014 Continuity Schedule'!BE35 -> 0 | R25: ='6. Billing Det. for Def-Var'!M23* '5. 2014 Continuity Schedule'!BE36 -> 0 | S25: ='6. Billing Det. for Def-Var'!N23 -> 0 | U25: 0 | V25: =U25* '5. 2014 Continuity Schedule'!BE26 -> 0 | W25: =U25* '5. 2014 Continuity Schedule'!BE29 -> 0
A26: UNMETERED SCATTERED LOAD | C26: =VLOOKUP(A26, '6. Billing Det. for Def-Var'!A17:D27, 3,0)/'6. Billing Det. for Def-Var'!C29 -> 0.002221380031 | D26: =VLOOKUP(A26, '6. Billing Det. for Def-Var'!A17:E27, 5,0)/'6. Billing Det. for Def-Var'!E29 -> 0 | F26: =C26* '5. 2014 Continuity Schedule'!BE24 -> -140.4623021 | G26: =E26* '5. 2014 Continuity Schedule'!BE25 -> 0 | H26: =C26* '5. 2014 Continuity Schedule'!BE26 -> -2778.599883 | I26: =C26* '5. 2014 Continuity Schedule'!BE27 -> 17.1979242 | J26: =C26* '5. 2014 Continuity Schedule'!BE28 -> -248.8834186 | K26: =C26* '5. 2014 Continuity Schedule'!BE29 -> -164.2421753 | L26: =D26* '5. 2014 Continuity Schedule'!BE30 -> 0 | M26: ='6. Billing Det. for Def-Var'!H24* '5. 2014 Continuity Schedule'!BE31 -> 0 | N26: ='6. Billing Det. for Def-Var'!I24* '5. 2014 Continuity Schedule'!BE32 -> 0 | O26: ='6. Billing Det. for Def-Var'!J24* '5. 2014 Continuity Schedule'!BE33 -> -136.074 | P26: ='6. Billing Det. for Def-Var'!K24* '5. 2014 Continuity Schedule'!BE34 -> 0 | Q26: ='6. Billing Det. for Def-Var'!L24* '5. 2014 Continuity Schedule'!BE35 -> 0 | R26: ='6. Billing Det. for Def-Var'!M24* '5. 2014 Continuity Schedule'!BE36 -> 0 | S26: ='6. Billing Det. for Def-Var'!N24 -> 0 | U26: =VLOOKUP(A26, '6. Billing Det. for Def-Var'!A17:D27, 3,0)/876568807 -> 0.00252679993 | V26: =U26* '5. 2014 Continuity Schedule'!BE26 -> -3160.632531 | W26: =U26* '5. 2014 Continuity Schedule'!BE29 -> -186.8240064
A27: SENTINEL LIGHTING | C27: =VLOOKUP(A27, '6. Billing Det. for Def-Var'!A17:D27, 3,0)/'6. Billing Det. for Def-Var'!C29 -> 0.0006227527192 | D27: =VLOOKUP(A27, '6. Billing Det. for Def-Var'!A17:E27, 5,0)/'6. Billing Det. for Def-Var'!E29 -> 0 | F27: =C27* '5. 2014 Continuity Schedule'!BE24 -> -39.37789994 | G27: =E27* '5. 2014 Continuity Schedule'!BE25 -> 0 | H27: =C27* '5. 2014 Continuity Schedule'!BE26 -> -778.9665023 | I27: =C27* '5. 2014 Continuity Schedule'!BE27 -> 4.821351552 | J27: =C27* '5. 2014 Continuity Schedule'!BE28 -> -69.77321466 | K27: =C27* '5. 2014 Continuity Schedule'!BE29 -> -46.0444678 | L27: =D27* '5. 2014 Continuity Schedule'!BE30 -> 0 | M27: ='6. Billing Det. for Def-Var'!H25* '5. 2014 Continuity Schedule'!BE31 -> 0 | N27: ='6. Billing Det. for Def-Var'!I25* '5. 2014 Continuity Schedule'!BE32 -> 0 | O27: ='6. Billing Det. for Def-Var'!J25* '5. 2014 Continuity Schedule'!BE33 -> -68.037 | P27: ='6. Billing Det. for Def-Var'!K25* '5. 2014 Continuity Schedule'!BE34 -> 0 | Q27: ='6. Billing Det. for Def-Var'!L25* '5. 2014 Continuity Schedule'!BE35 -> 0 | R27: ='6. Billing Det. for Def-Var'!M25* '5. 2014 Continuity Schedule'!BE36 -> 0 | S27: ='6. Billing Det. for Def-Var'!N25 -> 0 | U27: =VLOOKUP(A27, '6. Billing Det. for Def-Var'!A17:D27, 3,0)/876568807 -> 0.0007083756518 | V27: =U27* '5. 2014 Continuity Schedule'!BE26 -> -886.0674338 | W27: =U27* '5. 2014 Continuity Schedule'!BE29 -> -52.37517057
A28: STREET LIGHTING | C28: =VLOOKUP(A28, '6. Billing Det. for Def-Var'!A17:D27, 3,0)/'6. Billing Det. for Def-Var'!C29 -> 0.009066306359 | D28: =VLOOKUP(A28, '6. Billing Det. for Def-Var'!A17:E27, 5,0)/'6. Billing Det. for Def-Var'!E29 -> 0.02523996428 | F28: =C28* '5. 2014 Continuity Schedule'!BE24 -> -573.2806837 | G28: =E28* '5. 2014 Continuity Schedule'!BE25 -> 0 | H28: =C28* '5. 2014 Continuity Schedule'!BE26 -> -11340.53491 | I28: =C28* '5. 2014 Continuity Schedule'!BE27 -> 70.19134383 | J28: =C28* '5. 2014 Continuity Schedule'!BE28 -> -1015.788964 | K28: =C28* '5. 2014 Continuity Schedule'!BE29 -> -670.3354932 | L28: =D28* '5. 2014 Continuity Schedule'!BE30 -> 21865.63346 | M28: ='6. Billing Det. for Def-Var'!H26* '5. 2014 Continuity Schedule'!BE31 -> 0 | N28: ='6. Billing Det. for Def-Var'!I26* '5. 2014 Continuity Schedule'!BE32 -> 0 | O28: ='6. Billing Det. for Def-Var'!J26* '5. 2014 Continuity Schedule'!BE33 -> -612.333 | P28: ='6. Billing Det. for Def-Var'!K26* '5. 2014 Continuity Schedule'!BE34 -> 0 | Q28: ='6. Billing Det. for Def-Var'!L26* '5. 2014 Continuity Schedule'!BE35 -> 0 | R28: ='6. Billing Det. for Def-Var'!M26* '5. 2014 Continuity Schedule'!BE36 -> 0 | S28: ='6. Billing Det. for Def-Var'!N26 -> 0 | U28: =VLOOKUP(A28, '6. Billing Det. for Def-Var'!A17:D27, 3,0)/876568807 -> 0.01031284245 | V28: =U28* '5. 2014 Continuity Schedule'!BE26 -> -12899.7571 | W28: =U28* '5. 2014 Continuity Schedule'!BE29 -> -762.500632
A29: microFIT | C29: 0 | D29: 0 | E29: 0 | F29: =C29* '5. 2014 Continuity Schedule'!BE24 -> 0 | G29: =E29* '5. 2014 Continuity Schedule'!BE25 -> 0 | H29: =C29* '5. 2014 Continuity Schedule'!BE26 -> 0 | I29: =C29* '5. 2014 Continuity Schedule'!BE27 -> 0 | J29: =C29* '5. 2014 Continuity Schedule'!BE28 -> 0 | K29: =C29* '5. 2014 Continuity Schedule'!BE29 -> 0 | L29: =D29* '5. 2014 Continuity Schedule'!BE30 -> 0 | M29: ='6. Billing Det. for Def-Var'!H27* '5. 2014 Continuity Schedule'!BE31 -> 0 | N29: ='6. Billing Det. for Def-Var'!I27* '5. 2014 Continuity Schedule'!BE32 -> 0 | O29: ='6. Billing Det. for Def-Var'!J27* '5. 2014 Continuity Schedule'!BE33 -> 0 | P29: ='6. Billing Det. for Def-Var'!K27* '5. 2014 Continuity Schedule'!BE34 -> 0 | Q29: ='6. Billing Det. for Def-Var'!L27* '5. 2014 Continuity Schedule'!BE35 -> 0 | R29: ='6. Billing Det. for Def-Var'!M27* '5. 2014 Continuity Schedule'!BE36 -> 0 | S29: ='6. Billing Det. for Def-Var'!N27 -> 0 | V29: =U29* '5. 2014 Continuity Schedule'!BE26 -> 0 | W29: =U29* '5. 2014 Continuity Schedule'!BE29 -> 0
A31: Total | C31: =SUM(C19:C29) -> 1 | D31: 1 | E31: 1 | F31: -63232 | G31: 30344 | H31: -1250844 | I31: 7742 | J31: -112040 | K31: -73937 | L31: 866310 | M31: 0 | N31: 0 | O31: -68037 | P31: 0 | Q31: 0 | R31: 0 | S31: 0 | U31: =SUM(U19:U29) -> 1 | V31: =SUM(V19:V29) -> -1250844 | W31: =SUM(W19:W29) -> -73937 | X31: =SUM(X19:X29) -> 0
A34: * RSVA - Power (Excluding Global Adjustment)
A35: ** Used to allocate Account 1551 as this account records the variances arising from the Smart Metering Entity Charges to Residential and GS<50 customers.

Sheet 8. Calculation of Def-Var RR
A12: Input required at cell C15 only. This workshseet calculates rate riders related to the Deferral/Variance Account Disposition (if applicable), associated rate riders for the global adjustment account (1589) and Account 1568. Rate Riders will not be generated for the microFIT class.
A15: Please indicate the Rate Rider Recovery Period (in years) | C15: 1 | H15: Adjustment made by Board Staff
E17: Balance of Accounts Allocated by kWh/kW (RPP) or Distribution Revenue | F17: Deferral/Variance Account Rate Rider | G17: Allocation of Balance in Account 1589 | H17: kWh for non-RPP, non-WMP, non-Class A | I17: Global Adjustment Rate Rider $/kWh for all classes | J17: Allocation of Account 1568 | K17: Account 1568 Rate Rider
A18: Rate Class | B18: Unit | C18: Billed kWh | D18: Billed kW or kVA
A20: RESIDENTIAL | B20: $/kWh | C20: 256986232 | E20: =SUM('7. Allocating Def-Var Balances'!F19:G19)+SUM('7. Allocating Def-Var Balances'!I19:J19)+SUM('7. Allocating Def-Var Balances'!M19:R19)+SUM('7. Allocating Def-Var Balances'!V19:W19) -> -421353.72 | F20: -0.0016 | G20: 51354.18132 | H20: 21231376 | I20: 0.0024
A21: GENERAL SERVICE LESS THAN 50 KW | B21: $/kWh | C21: 98884257 | E21: =SUM('7. Allocating Def-Var Balances'!F20:G20)+SUM('7. Allocating Def-Var Balances'!I20:J20)+SUM('7. Allocating Def-Var Balances'!M20:R20)+SUM('7. Allocating Def-Var Balances'!V20:W20) -> -170628.9704 | F21: -0.0017 | G21: 29783.52864 | H21: 12313414 | I21: 0.0024
A22: GENERAL SERVICE 50 TO 999 KW | B22: $/kW | C22: 217086976 | D22: 610916 | E22: =SUM('7. Allocating Def-Var Balances'!F21:G21)+SUM('7. Allocating Def-Var Balances'!I21:J21)+SUM('7. Allocating Def-Var Balances'!M21:R21)+SUM('7. Allocating Def-Var Balances'!V21:W21) -> -378987.7308 | F22: -0.6204 | G22: 382473.458 | H22: 158126127 | I22: 0.0024
A23: GENERAL SERVICE GREATER THAN 50 kW - WMP | B23: $/kW | C23: 5927634 | D23: 10738 | E23: =SUM('7. Allocating Def-Var Balances'!F22:G22)+SUM('7. Allocating Def-Var Balances'!I22:J22)+SUM('7. Allocating Def-Var Balances'!M22:R22)+SUM('7. Allocating Def-Var Balances'!V22:W22) -> -995.9555684 | F23: -0.0928 | G23: 0 | I23: 0
A24: GENERAL SERVICE 1,000 TO 4,999 KW | B24: $/kW | C24: 157447994 | D24: 334928 | E24: =SUM('7. Allocating Def-Var Balances'!F23:G23)+SUM('7. Allocating Def-Var Balances'!I23:J23)+SUM('7. Allocating Def-Var Balances'!M23:R23)+SUM('7. Allocating Def-Var Balances'!V23:W23) -> -275703.6138 | F24: -0.8232 | G24: 380833.1986 | H24: 157447994 | I24: 0.0024
A25: LARGE USE | B25: $/kW | C25: 134287578 | D25: 206572 | E25: =SUM('7. Allocating Def-Var Balances'!F24:G24)+SUM('7. Allocating Def-Var Balances'!I24:J24)+SUM('7. Allocating Def-Var Balances'!M24:R24)+SUM('7. Allocating Def-Var Balances'!V24:W24) -> -234019.7724 | F25: -1.1329 | G25: 0 | I25: 0
A26: LARGE USE - WMP | B26: $/kW | C26: 114592742 | D26: 191757 | E26: =SUM('7. Allocating Def-Var Balances'!F25:G25)+SUM('7. Allocating Def-Var Balances'!I25:J25)+SUM('7. Allocating Def-Var Balances'!M25:R25)+SUM('7. Allocating Def-Var Balances'!V25:W25) -> -27554.28026 | F26: -0.1437 | G26: 0 | I26: 0
A27: UNMETERED SCATTERED LOAD | B27: $/kWh | C27: 2214914 | E27: =SUM('7. Allocating Def-Var Balances'!F26:G26)+SUM('7. Allocating Def-Var Balances'!I26:J26)+SUM('7. Allocating Def-Var Balances'!M26:R26)+SUM('7. Allocating Def-Var Balances'!V26:W26) -> -3855.678334 | F27: -0.0017 | G27: 0 | I27: 0
A28: SENTINEL LIGHTING | B28: $/kW | C28: 620940 | D28: 1450 | E28: =SUM('7. Allocating Def-Var Balances'!F27:G27)+SUM('7. Allocating Def-Var Balances'!I27:J27)+SUM('7. Allocating Def-Var Balances'!M27:R27)+SUM('7. Allocating Def-Var Balances'!V27:W27) -> -1110.809367 | F28: -0.7661 | G28: 0 | I28: 0
A29: STREET LIGHTING | B29: $/kW | C29: 9039916 | D29: 24522 | E29: =SUM('7. Allocating Def-Var Balances'!F28:G28)+SUM('7. Allocating Def-Var Balances'!I28:J28)+SUM('7. Allocating Def-Var Balances'!M28:R28)+SUM('7. Allocating Def-Var Balances'!V28:W28) -> -15793.46903 | F29: -0.6441 | G29: 21865.63346 | H29: 9039916 | I29: 0.0024
A30: microFIT
A31: Total | C31: =SUM(C20:C30) -> 997089183 | D31: =SUM(D20:D30) -> 1380883 | E31: =SUM(E20:E30) -> -1530004 | G31: =SUM(G20:G30) -> 866310 | H31: =SUM(H20:H30) -> 358158827 | J31: =SUM(J20:J30) -> 0
A35: One or more rate classes appear to have negligible rate riders in columns F and/or I. As per Appendix B of the Filing Requirements, please provide details of the Applicant's proposal in the Manager's Summary.

Sheet 9. STS - Billing Det & Rates
A11: Shared Tax Savings
A13: ="Enter your " & '1. Information Sheet'!F32 & " Board-Approved Billing Determinents into columns B, C and D." -> Enter your 2013 Board-Approved Billing Determinents into columns B, C and D.
A14: ="Enter your " & '1. Information Sheet'!F32 & " Board-Approved Base monthly service and volumetric charges into columns G, H and I." -> Enter your 2013 Board-Approved Base monthly service and volumetric charges into columns G, H and I.
A16: Rate Class | B16: Units | C16: Re-based Billed Customers or Connections | D16: Re-based Billed kWh | E16: Re-based Billed kW (if applicable) | G16: ='1. Information Sheet'!F32 &" Base Monthly Service Charge" -> 2013 Base Monthly Service Charge | H16: ='1. Information Sheet'!F32 &" Base Distribution Volumetric Rate kWh" -> 2013 Base Distribution Volumetric Rate kWh | I16: ='1. Information Sheet'!F32 &" Base Distribution Volumetric Rate kW" -> 2013 Base Distribution Volumetric Rate kW
A17: RESIDENTIAL | B17: $/kWh | C17: 32122 | D17: 256986232 | E17: 0 | G17: 15.48 | H17: 0.0211 | I17: 0
A18: GENERAL SERVICE LESS THAN 50 KW | B18: $/kWh | C18: 3544 | D18: 98884257 | E18: 0 | G18: 26.6 | H18: 0.0186 | I18: 0
A19: GENERAL SERVICE 50 TO 999 KW | B19: $/kW | C19: 437 | D19: 217086976 | E19: 610916 | G19: 142 | H19: 0 | I19: 4.1269
A20: GENERAL SERVICE GREATER THAN 50 kW - WMP | B20: $/kW | C20: 1 | D20: 5927634 | E20: 10738 | G20: 142 | H20: 0 | I20: 4.1269
A21: GENERAL SERVICE 1,000 TO 4,999 KW | B21: $/kW | C21: 12 | D21: 157447994 | E21: 334928 | G21: 3121.63 | H21: 0 | I21: 1.6835
A22: LARGE USE | B22: $/kW | C22: 2 | D22: 134287578 | E22: 206572 | G22: 24427.6 | H22: 0 | I22: 1.8345
A23: LARGE USE - WMP | B23: $/kW | C23: 1 | D23: 114592742 | E23: 191757 | G23: 24427.6 | H23: 0 | I23: 1.8345
A24: UNMETERED SCATTERED LOAD | B24: $/kWh | C24: 260 | D24: 2214914 | E24: 0 | G24: 11.95 | H24: 0.0325 | I24: 0
A25: SENTINEL LIGHTING | B25: $/kW | C25: 445 | D25: 620940 | E25: 1450 | G25: 3.85 | H25: 0 | I25: 25.3845
A26: STREET LIGHTING | B26: $/kW | C26: 10140 | D26: 9039916 | E26: 24522 | G26: 2.4 | H26: 0 | I26: 18.5659
A27: microFIT

Sheet 10. STS - Rebased Rev
A12: Calculation of Rebased Revenue Requirement. No input required.
A15: Rate Class | C15: Re-based Billed Customers or Connections | D15: Re-based Billed kWh | E15: Re-based Billed kW | G15: Rate ReBal Base Service Charge | H15: Rate ReBal Base Distribution Volumetric Rate kWh | I15: Rate ReBal Base Distribution Volumetric Rate kW | K15: Service Charge Revenue | L15: Distribution Volumetric Rate Revenue kWh | M15: Distribution Volumetric Rate Revenue kW | N15: Revenue Requirement from Rates | P15: Service Charge % Revenue | Q15: Distribution Volumetric Rate % Revenue kWh | R15: Distribution Volumetric Rate % Revenue kW | S15: Total % Revenue
C16: A | D16: B | E16: C | G16: D | H16: E | I16: F | K16: G = A * D *12 | L16: H = B * E | M16: I = C * F | N16: J = G + H + I | P16: K = G / J | Q16: L = H / J | R16: M = I / J | S16: N = J / R
A17: RESIDENTIAL | C17: 32122 | D17: 256986232 | E17: 0 | G17: 15.48 | H17: 0.0211 | I17: 0 | K17: =G17*C17*12 -> 5966982.72 | L17: =H17*D17 -> 5422409.495 | M17: 0 | N17: =SUM(K17,L17,M17) -> 11389392.22 | P17: =IF(ISERROR(K17/N17),0,K17/N17) -> 0.5239070362 | Q17: =IF(ISERROR(L17/N17),0,L17/N17) -> 0.4760929638 | R17: =IF(ISERROR(M17/N17),0,M17/N17) -> 0 | S17: =N17/N28 -> 0.5370030893
A18: GENERAL SERVICE LESS THAN 50 KW | C18: 3544 | D18: 98884257 | E18: 0 | G18: 26.6 | H18: 0.0186 | I18: 0 | K18: 1131244.8 | L18: =H18*D18 -> 1839247.18 | M18: 0 | N18: 2970491.98 | P18: 0.380827421 | Q18: 0.619172579 | R18: 0 | S18: =N18/N28 -> 0.1400569354
A19: GENERAL SERVICE 50 TO 999 KW | C19: 437 | D19: 217086976 | E19: 610916 | G19: 142 | H19: 0 | I19: 4.1269 | K19: 744648 | L19: 0 | M19: =I19*E19 -> 2521189.24 | N19: 3265837.24 | P19: 0.2280113628 | Q19: 0 | R19: 0.7719886372 | S19: =N19/N28 -> 0.1539822893
A20: GENERAL SERVICE GREATER THAN 50 kW - WMP | C20: 1 | D20: 5927634 | E20: 10738 | G20: 142 | H20: 0 | I20: 4.1269 | K20: 1704 | L20: 0 | M20: =I20*E20 -> 44314.6522 | N20: 46018.6522 | P20: 0.03702846386 | Q20: 0 | R20: 0.9629715361 | S20: =N20/N28 -> 0.002169752163
A21: GENERAL SERVICE 1,000 TO 4,999 KW | C21: 12 | D21: 157447994 | E21: 334928 | G21: 3121.63 | H21: 0 | I21: 1.6835 | K21: 449514.72 | L21: 0 | M21: =I21*E21 -> 563851.288 | N21: 1013366.008 | P21: 0.4435857493 | Q21: 0 | R21: 0.5564142507 | S21: =N21/N28 -> 0.04777960637
A22: LARGE USE | C22: 2 | D22: 134287578 | E22: 206572 | G22: 24427.6 | H22: 0 | I22: 1.8345 | K22: 586262.4 | L22: 0 | M22: =I22*E22 -> 378956.334 | N22: 965218.734 | P22: 0.607388128 | Q22: 0 | R22: 0.392611872 | S22: =N22/N28 -> 0.04550949096
A23: LARGE USE - WMP | C23: 1 | D23: 114592742 | E23: 191757 | G23: 24427.6 | H23: 0 | I23: 1.8345 | K23: 293131.2 | L23: 0 | M23: =I23*E23 -> 351778.2165 | N23: 644909.4165 | P23: 0.4545308108 | Q23: 0 | R23: 0.5454691892 | S23: =N23/N28 -> 0.03040709657
A24: UNMETERED SCATTERED LOAD | C24: 260 | D24: 2214914 | E24: 0 | G24: 11.95 | H24: 0.0325 | I24: 0 | K24: 37284 | L24: =H24*D24 -> 71984.705 | M24: 0 | N24: 109268.705 | P24: 0.341213891 | Q24: 0.658786109 | R24: 0 | S24: =N24/N28 -> 0.005151954647
A25: SENTINEL LIGHTING | C25: 445 | D25: 620940 | E25: 1450 | G25: 3.85 | H25: 0 | I25: 25.3845 | K25: 20559 | L25: 0 | M25: =I25*E25 -> 36807.525 | N25: 57366.525 | P25: 0.3583797345 | Q25: 0 | R25: 0.6416202655 | S25: =N25/N28 -> 0.002704797637
A26: STREET LIGHTING | C26: 10140 | D26: 9039916 | E26: 24522 | G26: 2.4 | H26: 0 | I26: 18.5659 | K26: 292032 | L26: 0 | M26: =I26*E26 -> 455272.9998 | N26: 747304.9998 | P26: 0.3907802036 | Q26: 0 | R26: 0.6092197964 | S26: =N26/N28 -> 0.03523498761
A27: microFIT | K27: 0 | L27: 0 | M27: 0 | N27: 0 | P27: 0 | Q27: 0 | R27: 0 | S27: =N27/N28 -> 0
A28: Total | C28: =SUM(C17:C27) -> 46964 | D28: =SUM(D17:D27) -> 997089183 | E28: =SUM(E17:E27) -> 1380883 | K28: =SUM(K17:K27) -> 9523362.84 | L28: =SUM(L17:L27) -> 7333641.38 | M28: =SUM(M17:M27) -> 4352170.256 | N28: =SUM(N17:N27) -> 21209174.48 | S28: =SUM(S17:S27) -> 1

Sheet 9. STS - Billing Det & Rate HID (hidden)
A11: Shared Tax Savings
A12: ="Enter your " & '1. Information Sheet'!F32 & " Board-Approved Billing Determinents into columns B, C and D." -> Enter your 2013 Board-Approved Billing Determinents into columns B, C and D.
A16: Rate Class | B16: Units | C16: Re-based Billed Customers or Connections | D16: Re-based Billed kWh | E16: Re-based Billed kW (if applicable) | G16: ='1. Information Sheet'!F32 &" Base Monthly Service Charge" -> 2013 Base Monthly Service Charge | H16: ='1. Information Sheet'!F32 &" Base Distribution Volumetric Rate kWh" -> 2013 Base Distribution Volumetric Rate kWh | I16: ='1. Information Sheet'!F32 &" Base Distribution Volumetric Rate kW" -> 2013 Base Distribution Volumetric Rate kW
A17: RESIDENTIAL | B17: $/kWh | C17: 32122 | D17: 256986232 | E17: 0 | G17: 15.48 | H17: 0.0211 | I17: 0
A18: GENERAL SERVICE LESS THAN 50 KW | B18: $/kWh | C18: 3544 | D18: 98884257 | E18: 0 | G18: 26.6 | H18: 0.0186 | I18: 0
A19: GENERAL SERVICE 50 TO 999 KW | B19: $/kW | C19: 437 | D19: 217086976 | E19: 610916 | G19: 142 | H19: 0 | I19: 4.1269
A20: GENERAL SERVICE GREATER THAN 50 kW - WMP | B20: $/kW | C20: 1 | D20: 5927634 | E20: 10738 | G20: 142 | H20: 0 | I20: 4.1269
A21: GENERAL SERVICE 1,000 TO 4,999 KW | B21: $/kW | C21: 12 | D21: 157447994 | E21: 334928 | G21: 3121.63 | H21: 0 | I21: 1.6835
A22: LARGE USE | B22: $/kW | C22: 2 | D22: 134287578 | E22: 206572 | G22: 24427.6 | H22: 0 | I22: 1.8345
A23: LARGE USE - WMP | B23: $/kW | C23: 1 | D23: 114592742 | E23: 191757 | G23: 24427.6 | H23: 0 | I23: 1.8345
A24: UNMETERED SCATTERED LOAD | B24: $/kWh | C24: 260 | D24: 2214914 | E24: 0 | G24: 11.95 | H24: 0.0325 | I24: 0
A25: SENTINEL LIGHTING | B25: $/kW | C25: 445 | D25: 620940 | E25: 1450 | G25: 3.85 | H25: 0 | I25: 25.3845
A26: STREET LIGHTING | B26: $/kW | C26: 10140 | D26: 9039916 | E26: 24522 | G26: 2.4 | H26: 0 | I26: 18.5659
A27: microFIT | B27: 0 | C27: 0 | D27: 0 | E27: 0 | G27: 0 | H27: 0 | I27: 0

Sheet 11. STS - Tax Change
T1: Rate Base | U1: Federal Tax Rate
T2: 500000 | U2: 0.11
T3: 10000000 | U3: 0.11
T4: =T3+100000 -> 10100000 | U4: 0.11
T5: =T4+100000 -> 10200000 | U5: 0.11
T6: 10300000 | U6: 0.11
T7: 10400000 | U7: 0.11
T8: 10500000 | U8: 0.11
T9: 10600000 | U9: 0.11
T10: 10700000 | U10: 0.11
T11: 10800000 | U11: 0.11
T12: 10900000 | U12: 0.11
A13: Summary - Sharing of Tax Change Forecast Amounts | T13: 11000000 | U13: 0.11
T14: 11100000 | U14: 0.111
A15: ="For the " & '1. Information Sheet'!F32 & " year, enter any Tax Credits from the Cost of Service Tax Calculation (Positive #)" -> For the 2013 year, enter any Tax Credits from the Cost of Service Tax Calculation (Positive #) | L15: 54764 | T15: 11200000 | U15: =U14+0.13% -> 0.1123 | V15: =U15-U14 -> 0.0013
T16: 11300000 | U16: =U15+0.13% -> 0.1136 | V16: =U16-U15 -> 0.0013
T17: 11400000 | U17: 0.1149 | V17: 0.0013
A18: 1. Tax Related Amounts Forecast from Capital Tax Rate Changes | L18: ='1. Information Sheet'!F32 -> 2013 | N18: 2015 | T18: 11500000 | U18: 0.1162 | V18: 0.0013
A19: Taxable Capital (if you are not claiming capital tax, please enter your Board-Approved Rate Base) | L19: 65468782 | N19: =L19 -> 65468782 | T19: 11600000 | U19: =U18+0.12% -> 0.1174 | V19: 0.0012
T20: 11700000 | U20: =U19+0.12% -> 0.1186 | V20: 0.0012
A21: Deduction from taxable capital up to $15,000,000 | N21: =L21 -> 0 | T21: 11800000 | U21: 0.1198 | V21: 0.0012
T22: 11900000 | U22: 0.121 | V22: 0.0012
A23: Net Taxable Capital | L23: =L19-L21 -> 65468782 | N23: =N19-N21 -> 65468782 | T23: 12000000 | U23: =U22+0.112% -> 0.12212 | V23: 0.00112
T24: 12100000 | U24: =U23+0.112% -> 0.12324 | V24: 0.00112
A25: Rate | L25: 0 | N25: 0 | T25: 12200000 | U25: 0.12436 | V25: 0.00112
T26: 12300000 | U26: 0.12548 | V26: 0.00112
A27: Ontario Capital Tax (Deductible, not grossed-up) | L27: =IF(L23>0, L23*L25, 0)*181/365 -> 0 | N27: 0 | T27: 12400000 | U27: 0.1266 | V27: 0.00112
T28: 12500000 | U28: 0.12772 | V28: 0.00112
A29: 2. Tax Related Amounts Forecast from lncome Tax Rate Changes | T29: 12600000 | U29: =U28+0.102% -> 0.12874 | V29: 0.00102
A30: Regulatory Taxable Income | L30: 1696727 | N30: =L30 -> 1696727 | T30: 12700000 | U30: =U29+0.102% -> 0.12976 | V30: 0.00102
T31: 12800000 | U31: 0.13078 | V31: 0.00102
A32: Corporate Tax Rate | L32: 0.2444 | N32: =IF(N30=0,0,IF(N30<=500000,4.5%+11%,IF(N30>500000,(11.5%*N30-35000)/N30+VLOOKUP(N19,T:U,2,TRUE),""))) -> 0.2443720498 | T32: 12900000 | U32: 0.1318 | V32: 0.00102
T33: 13000000 | U33: 0.13282 | V33: 0.00102
A34: Tax Impact | L34: 359869 | N34: =N30*N32-L15 -> 359868.655 | T34: 13100000 | U34: =U33+0.096% -> 0.13378 | V34: 0.00096
T35: 13200000 | U35: =U34+0.096% -> 0.13474 | V35: 0.00096
A36: Grossed-up Tax Amount | L36: 476251 | N36: =N34/(1-N32) -> 476251.1166 | T36: 13300000 | U36: 0.1357 | V36: 0.00096
T37: 13400000 | U37: 0.13666 | V37: 0.00096
A38: Tax Related Amounts Forecast from Capital Tax Rate Changes | L38: =L27 -> 0 | N38: =N27 -> 0 | T38: 13500000 | U38: 0.13762 | V38: 0.00096
T39: 13600000 | U39: =U38+0.088% -> 0.1385 | V39: 0.00088
A40: Tax Related Amounts Forecast from lncome Tax Rate Changes | L40: =L36 -> 476251 | N40: =N36 -> 476251.1166 | T40: 13700000 | U40: =U39+0.088% -> 0.13938 | V40: 0.00088
T41: 13800000 | U41: 0.14026 | V41: 0.00088
A42: Total Tax Related Amounts | L42: =SUM(L40,L38) -> 476251 | N42: =SUM(N40,N38) -> 476251.1166 | T42: 13900000 | U42: 0.14114 | V42: 0.00088
T43: 14000000 | U43: 0.14202 | V43: 0.00088
A44: Incremental Tax Savings | N44: =N42-L42 -> 0.1165995238 | T44: 14100000 | U44: =U43+0.082% -> 0.14284 | V44: 0.00082
T45: 14200000 | U45: =U44+0.082% -> 0.14366 | V45: 0.00082
A46: Sharing of Tax Savings (50%) | N46: =0.5*N44 -> 0.05829976188 | T46: 14300000 | U46: 0.14448 | V46: 0.00082
T47: 14400000 | U47: 0.1453 | V47: 0.00082
T48: 14500000 | U48: 0.14612 | V48: 0.00082
T49: 14600000 | U49: =U48+0.076% -> 0.14688 | V49: 0.00076
T50: 14700000 | U50: =U49+0.076% -> 0.14764 | V50: 0.00076
T51: 14800000 | U51: 0.1484 | V51: 0.00076
T52: 14900000 | U52: 0.14916 | V52: 0.00076
T53: 15000000 | U53: 0.15 | V53: 0.00084

Sheet 12. STS - Tax Change Rate Rider
A11: This worksheet calculates a tax change volumetric rate rider. If the rate riders are material (round to 4 decimal places), then the outputs in columns M and O will appear on Sheet 27 - Final Tariff Schedule.
A15: Rate Class | C15: Total Revenue $ by Rate Class | E15: Total Revenue % by Rate Class | G15: Allocation of Tax Savings by Rate Class | I15: Billed kWh | K15: Billed kW | M15: Distribution Volumetric Rate kWh Rate Rider | O15: Distribution Volumetric Rate kW Rate Rider
A17: RESIDENTIAL | C17: 11389392.22 | E17: =C17/C28 -> 0.5370030893 | G17: =E17*G28 -> 0.03222018536 | I17: 256986232 | K17: 0 | M17: =ROUND(G17/I17,4) -> 0
A18: GENERAL SERVICE LESS THAN 50 KW | C18: 2970491.98 | E18: =C18/C28 -> 0.1400569354 | G18: =E18*G28 -> 0.008403416126 | I18: 98884257 | K18: 0 | M18: =ROUND(G18/I18,4) -> 0
A19: GENERAL SERVICE 50 TO 999 KW | C19: 3265837.24 | E19: =C19/C28 -> 0.1539822893 | G19: =E19*G28 -> 0.009238937359 | I19: 217086976 | K19: 610916 | O19: =ROUND(G19/K19,4) -> 0
A20: GENERAL SERVICE GREATER THAN 50 kW - WMP | C20: 46018.6522 | E20: =C20/C28 -> 0.002169752163 | G20: =E20*G28 -> 0.0001301851298 | I20: 5927634 | K20: 10738 | O20: =ROUND(G20/K20,4) -> 0
A21: GENERAL SERVICE 1,000 TO 4,999 KW | C21: 1013366.008 | E21: =C21/C28 -> 0.04777960637 | G21: =E21*G28 -> 0.002866776382 | I21: 157447994 | K21: 334928 | O21: =ROUND(G21/K21,4) -> 0
A22: LARGE USE | C22: 965218.734 | E22: =C22/C28 -> 0.04550949096 | G22: =E22*G28 -> 0.002730569457 | I22: 134287578 | K22: 206572 | O22: =ROUND(G22/K22,4) -> 0
A23: LARGE USE - WMP | C23: 644909.4165 | E23: =C23/C28 -> 0.03040709657 | G23: =E23*G28 -> 0.001824425794 | I23: 114592742 | K23: 191757 | O23: =ROUND(G23/K23,4) -> 0
A24: UNMETERED SCATTERED LOAD | C24: 109268.705 | E24: =C24/C28 -> 0.005151954647 | G24: =E24*G28 -> 0.0003091172788 | I24: 2214914 | K24: 0 | M24: =ROUND(G24/I24,4) -> 0
A25: SENTINEL LIGHTING | C25: 57366.525 | E25: =C25/C28 -> 0.002704797637 | G25: =E25*G28 -> 0.0001622878582 | I25: 620940 | K25: 1450 | O25: =ROUND(G25/K25,4) -> 0
A26: STREET LIGHTING | C26: 747304.9998 | E26: =C26/C28 -> 0.03523498761 | G26: =E26*G28 -> 0.002114099256 | I26: 9039916 | K26: 24522 | O26: =ROUND(G26/K26,4) -> 0
A27: microFIT | C27: 0 | E27: =C27/C28 -> 0 | G27: =E27*G28 -> 0
A28: Total | C28: =SUM(C17:C27) -> 21209174.48 | E28: =SUM(E17:E27) -> 1 | G28: 0.06 | I28: =SUM(I17:I27) -> 997089183 | K28: =SUM(K17:K27) -> 1380883
A30: One or more rate classes appear to have negligible rate riders in columns M and/or O. As per Appendix B of the Filing Requirements, please provide details of the Applicant's proposal in the Manager's Summary.

Sheet 13. RTSR Rate Sheet
A13: No input required. This sheet consolidates all Current Retail Transmission Rates entered on Sheet 4.
A15: Rate Class | B15: Rate Description | C15: Unit | D15: RTSR-Network | E15: RTSR-Connection
A17: RESIDENTIAL | B17: Retail Transmission Rate - Network Service Rate | C17: $/kWh | D17: 0.0067
A18: RESIDENTIAL | B18: Retail Transmission Rate - Line and Transformation Connection Service Rate | C18: $/kWh | E18: 0.0057
A19: GENERAL SERVICE LESS THAN 50 KW | B19: Retail Transmission Rate - Network Service Rate | C19: $/kWh | D19: 0.0063
A20: GENERAL SERVICE LESS THAN 50 KW | B20: Retail Transmission Rate - Line and Transformation Connection Service Rate | C20: $/kWh | E20: 0.005
A21: GENERAL SERVICE 50 TO 999 KW | B21: Retail Transmission Rate - Network Service Rate | C21: $/kW | D21: 2.5411
A22: GENERAL SERVICE 50 TO 999 KW | B22: Retail Transmission Rate - Line and Transformation Connection Service Rate | C22: $/kW | E22: 2.0066
A23: GENERAL SERVICE 1,000 TO 4,999 KW | B23: Retail Transmission Rate - Network Service Rate | C23: $/kW | D23: 2.6989
A24: GENERAL SERVICE 1,000 TO 4,999 KW | B24: Retail Transmission Rate - Line and Transformation Connection Service Rate | C24: $/kW | E24: 2.1997
A25: LARGE USE | B25: Retail Transmission Rate - Network Service Rate - Interval Metered | C25: $/kW | D25: 2.9884
A26: LARGE USE | B26: Retail Transmission Rate - Line and Transformation Connection Service Rate - Interval Metered | C26: $/kW | E26: 2.5155
A27: UNMETERED SCATTERED LOAD | B27: Retail Transmission Rate - Network Service Rate | C27: $/kWh | D27: 0.0063
A28: UNMETERED SCATTERED LOAD | B28: Retail Transmission Rate - Line and Transformation Connection Service Rate | C28: $/kWh | E28: 0.005
A29: SENTINEL LIGHTING | B29: Retail Transmission Rate - Network Service Rate | C29: $/kW | D29: 1.9261
A30: SENTINEL LIGHTING | B30: Retail Transmission Rate - Line and Transformation Connection Service Rate | C30: $/kW | E30: 1.5837
A31: STREET LIGHTING | B31: Retail Transmission Rate - Network Service Rate | C31: $/kW | D31: 1.9164
A32: STREET LIGHTING | B32: Retail Transmission Rate - Line and Transformation Connection Service Rate | C32: $/kW | E32: 1.5513

Sheet 14. RTSR RRR Data
A12: In the green shaded cells, enter the most recent reported RRR billing determinants. Please ensure that billing determinants are non-loss adjusted.
A14: Rate Class | B14: Rate Description | C14: Unit | D14: Non-Loss Adjusted Metered kWh | E14: Non-Loss Adjusted Metered kW | F14: Applicable Loss Factor | H14: Load Factor | I14: Loss Adjusted Billed kWh | J14: Billed kW
A15: RESIDENTIAL | B15: Retail Transmission Rate - Network Service Rate | C15: $/kWh | D15: 255389581 | E15: 0 | F15: 1.0421 | H15: =IF(C15="$/kW", D15/(E15* 30.4 * 24), "" ) ->  | I15: =IF(OR(F15=0, OR(ISBLANK(F15), TRIM(F15)="")), F15, F15 * D15) -> 266141482.4 | J15: =IF(OR(F15=0, OR(ISBLANK(F15), TRIM(F15)="")), E15, E15) -> 0
A16: RESIDENTIAL | B16: Retail Transmission Rate - Line and Transformation Connection Service Rate | C16: $/kWh | D16: 255389581 | E16: 0 | F16: 1.0421 | H16: =IF(C16="$/kW", D16/(E16* 30.4 * 24), "" ) ->  | I16: 266141482.4 | J16: 0
A17: GENERAL SERVICE LESS THAN 50 KW | B17: Retail Transmission Rate - Network Service Rate | C17: $/kWh | D17: 103284259 | E17: 0 | F17: 1.0421 | H17: =IF(C17="$/kW", D17/(E17* 30.4 * 24), "" ) ->  | I17: 107632526.3 | J17: 0
A18: GENERAL SERVICE LESS THAN 50 KW | B18: Retail Transmission Rate - Line and Transformation Connection Service Rate | C18: $/kWh | D18: 103284259 | E18: 0 | F18: 1.0421 | H18: =IF(C18="$/kW", D18/(E18* 30.4 * 24), "" ) ->  | I18: 107632526.3 | J18: 0
A19: GENERAL SERVICE 50 TO 999 KW | B19: Retail Transmission Rate - Network Service Rate | C19: $/kW | D19: 222721187 | E19: 620368 | F19: 0 | H19: 0 | I19: 0 | J19: 620368
A20: GENERAL SERVICE 50 TO 999 KW | B20: Retail Transmission Rate - Line and Transformation Connection Service Rate | C20: $/kW | D20: 222721187 | E20: 622926 | F20: 0 | H20: 0 | I20: 0 | J20: 622926
A21: GENERAL SERVICE 1,000 TO 4,999 KW | B21: Retail Transmission Rate - Network Service Rate | C21: $/kW | D21: 163440949 | E21: 341842 | F21: 0 | H21: 0 | I21: 0 | J21: 341842
A22: GENERAL SERVICE 1,000 TO 4,999 KW | B22: Retail Transmission Rate - Line and Transformation Connection Service Rate | C22: $/kW | D22: 163440949 | E22: 350963 | F22: 0 | H22: 0 | I22: 0 | J22: 350963
A23: LARGE USE | B23: Retail Transmission Rate - Network Service Rate - Interval Metered | C23: $/kW | D23: 251680101 | E23: 391850 | F23: 0 | H23: 0 | I23: 0 | J23: 391850
A24: LARGE USE | B24: Retail Transmission Rate - Line and Transformation Connection Service Rate - Interval Metered | C24: $/kW | D24: 251680101 | E24: 396800 | F24: 0 | H24: 0 | I24: 0 | J24: 396800
A25: UNMETERED SCATTERED LOAD | B25: Retail Transmission Rate - Network Service Rate | C25: $/kWh | D25: 2183026 | E25: 0 | F25: 1.0421 | H25: =IF(C25="$/kW", D25/(E25* 30.4 * 24), "" ) ->  | I25: 2274931.395 | J25: 0
A26: UNMETERED SCATTERED LOAD | B26: Retail Transmission Rate - Line and Transformation Connection Service Rate | C26: $/kWh | D26: 2183026 | E26: 0 | F26: 1.0421 | H26: =IF(C26="$/kW", D26/(E26* 30.4 * 24), "" ) ->  | I26: 2274931.395 | J26: 0
A27: SENTINEL LIGHTING | B27: Retail Transmission Rate - Network Service Rate | C27: $/kW | D27: 547347 | E27: 1313 | F27: 0 | H27: 0 | I27: 0 | J27: 1313
A28: SENTINEL LIGHTING | B28: Retail Transmission Rate - Line and Transformation Connection Service Rate | C28: $/kW | D28: 547347 | E28: 1313 | F28: 0 | H28: 0 | I28: 0 | J28: 1313
A29: STREET LIGHTING | B29: Retail Transmission Rate - Network Service Rate | C29: $/kW | D29: 9144166 | E29: 24351 | F29: 0 | H29: 0 | I29: 0 | J29: 24351
A30: STREET LIGHTING | B30: Retail Transmission Rate - Line and Transformation Connection Service Rate | C30: $/kW | D30: 9144166 | E30: 24351 | F30: 0 | H30: 0 | I30: 0 | J30: 24351

Sheet 14. RTSR RRR Data Copy (hidden)
A12: In the green shaded cells, enter the most recent reported RRR billing determinants. Please ensure that billing determinants are non-loss adjusted.
A14: Rate Class | B14: Rate Description | C14: Unit | D14: Non-Loss Adjusted Metered kWh | E14: Non-Loss Adjusted Metered kW | F14: Applicable Loss Factor | H14: Load Factor | I14: Loss Adjusted Billed kWh | J14: Billed kW
A15: RESIDENTIAL | B15: Retail Transmission Rate - Network Service Rate | C15: $/kWh | D15: 255389581 | E15: 0 | F15: 1.0421
A16: RESIDENTIAL | B16: Retail Transmission Rate - Line and Transformation Connection Service Rate | C16: $/kWh | D16: 255389581 | E16: 0 | F16: 1.0421
A17: GENERAL SERVICE LESS THAN 50 KW | B17: Retail Transmission Rate - Network Service Rate | C17: $/kWh | D17: 103284259 | E17: 0 | F17: 1.0421
A18: GENERAL SERVICE LESS THAN 50 KW | B18: Retail Transmission Rate - Line and Transformation Connection Service Rate | C18: $/kWh | D18: 103284259 | E18: 0 | F18: 1.0421
A19: GENERAL SERVICE 50 TO 999 KW | B19: Retail Transmission Rate - Network Service Rate | C19: $/kW | D19: 222721187 | E19: 620368 | F19: 0
A20: GENERAL SERVICE 50 TO 999 KW | B20: Retail Transmission Rate - Line and Transformation Connection Service Rate | C20: $/kW | D20: 222721187 | E20: 622926 | F20: 0
A21: GENERAL SERVICE 1,000 TO 4,999 KW | B21: Retail Transmission Rate - Network Service Rate | C21: $/kW | D21: 163440949 | E21: 341842 | F21: 0
A22: GENERAL SERVICE 1,000 TO 4,999 KW | B22: Retail Transmission Rate - Line and Transformation Connection Service Rate | C22: $/kW | D22: 163440949 | E22: 350963 | F22: 0
A23: LARGE USE | B23: Retail Transmission Rate - Network Service Rate - Interval Metered | C23: $/kW | D23: 251680101 | E23: 391850 | F23: 0
A24: LARGE USE | B24: Retail Transmission Rate - Line and Transformation Connection Service Rate - Interval Metered | C24: $/kW | D24: 251680101 | E24: 396800 | F24: 0
A25: UNMETERED SCATTERED LOAD | B25: Retail Transmission Rate - Network Service Rate | C25: $/kWh | D25: 2183026 | E25: 0 | F25: 1.0421
A26: UNMETERED SCATTERED LOAD | B26: Retail Transmission Rate - Line and Transformation Connection Service Rate | C26: $/kWh | D26: 2183026 | E26: 0 | F26: 1.0421
A27: SENTINEL LIGHTING | B27: Retail Transmission Rate - Network Service Rate | C27: $/kW | D27: 547347 | E27: 1313 | F27: 0
A28: SENTINEL LIGHTING | B28: Retail Transmission Rate - Line and Transformation Connection Service Rate | C28: $/kW | D28: 547347 | E28: 1313 | F28: 0
A29: STREET LIGHTING | B29: Retail Transmission Rate - Network Service Rate | C29: $/kW | D29: 9144166 | E29: 24351 | F29: 0
A30: STREET LIGHTING | B30: Retail Transmission Rate - Line and Transformation Connection Service Rate | C30: $/kW | D30: 9144166 | E30: 24351 | F30: 0

Sheet 15. RTSR - UTRs & Sub-Tx
B18: Uniform Transmission Rates | C18: Unit | E18: Effective January 1, 2013 | G18: Effective January 1, 2014 | I18: Effective January 1, 2015
B20: Rate Description | E20: Rate | G20: Rate | I20: Rate
B22: Network Service Rate | C22: kW | E22: 3.63 | G22: 3.82 | I22: 3.78
B24: Line Connection Service Rate | C24: kW | E24: 0.75 | G24: 0.82 | I24: 0.86
B26: Transformation Connection Service Rate | C26: kW | E26: 1.85 | G26: 1.98 | I26: 2
B29: Hydro One Sub-Transmission Rates | C29: Unit | E29: Effective January 1, 2013 | G29: Effective January 1, 2014 | I29: Effective January 1, 2015
B33: Rate Description | E33: Rate | G33: Rate | I33: Rate
B35: Network Service Rate | C35: kW | E35: 3.18 | G35: 3.23 | I35: =+G35 -> 3.23
B37: Line Connection Service Rate | C37: kW | E37: 0.7 | G37: 0.65 | I37: =+G37 -> 0.65
B39: Transformation Connection Service Rate | C39: kW | E39: 1.63 | G39: 1.62 | I39: =+G39 -> 1.62
B41: Both Line and Transformation Connection Service Rate | C41: kW | E41: =E39+E37 -> 2.33 | G41: =G39+G37 -> 2.27 | I41: =I39+I37 -> 2.27
B44: If needed , add extra host here (I) | C44: Unit | E44: Effective January 1, 2013 | G44: Effective January 1, 2014 | I44: Effective January 1, 2015
B48: Rate Description | E48: Rate | G48: Rate | I48: Rate
B50: Network Service Rate | C50: kW
B52: Line Connection Service Rate | C52: kW
B54: Transformation Connection Service Rate | C54: kW
B56: Both Line and Transformation Connection Service Rate | C56: kW | E56: =E54+E52 -> 0 | G56: =G54+G52 -> 0 | I56: =I54+I52 -> 0
B59: If needed , add extra host here (II) | C59: Unit | E59: Effective January 1, 2013 | G59: Effective January 1, 2014 | I59: Effective January 1, 2015
B63: Rate Description | E63: Rate | G63: Rate | I63: Rate
B65: Network Service Rate | C65: kW
B67: Line Connection Service Rate | C67: kW
B69: Transformation Connection Service Rate | C69: kW
B71: Both Line and Transformation Connection Service Rate | C71: kW | E71: =E69+E67 -> 0 | G71: =G69+G67 -> 0 | I71: =I69+I67 -> 0
B75: Hydro One Sub-Transmission Rate Rider 9A | C75: Unit | E75: Effective January 1, 2013 | G75: Effective January 1, 2014 | I75: Effective January 1, 2015
B77: Rate Description | E77: Rate | G77: Rate | I77: Rate
B79: RSVA Transmission network – 4714 – which affects 1584 | C79: kW | E79: 0 | G79: 0.1465
B81: RSVA Transmission connection – 4716 – which affects 1586 | C81: kW | E81: 0 | G81: 0.0667
B83: RSVA LV – 4750 – which affects 1550 | C83: kW | E83: 0 | G83: 0.0475
B85: RARA 1 – 2252 – which affects 1590 | C85: kW | E85: 0 | G85: 0.0419
B87: RARA 1 – 2252 – which affects 1590 (2008) | C87: kW | E87: 0 | G87: -0.027
B89: RARA 1 – 2252 – which affects 1590 (2009) | C89: kW | E89: 0 | G89: -0.0006
B91: Hydro One Sub-Transmission Rate Rider 9A | C91: kW | E91: =SUM(E79:E89) -> 0 | G91: =SUM(G79:G89) -> 0.275 | I91: =SUM(I79:I89) -> 0
E94: Historical 2013 | G94: Current 2014 | I94: Forecast 2015
B95: Low Voltage Switchgear Credit (if applicable, enter as a negative value) | C95: $

Sheet 16. RTSR - Historical Wholesale
B13: In the green shaded cells, enter billing detail for wholesale transmission for the same reporting period as the billing determinants on Sheet "14. RTSR RRR Data". For Hydro One Sub-transmission Rates, if you are charged a combined Line and Transformer connection rate, please ensure that both the line connection and transformer connection columns are completed.
B16: IESO | D16: Network | H16: Line Connection | L16: Transformation Connection | P16: Total Line
B17: Month | D17: Units Billed | E17: Rate | F17: Amount | H17: Units Billed | I17: Rate | J17: Amount | L17: Units Billed | M17: Rate | N17: Amount | P17: Amount
B19: January | D19: 130885 | E19: 3.63 | F19: =E19*D19 -> 475112.55 | H19: 144367 | I19: 0.75 | J19: =I19*H19 -> 108275.25 | L19: 144367 | M19: 1.85 | N19: =M19*L19 -> 267078.95 | P19: =J19+N19 -> 375354.2
B20: February | D20: 133325 | E20: 3.63 | F20: =E20*D20 -> 483969.75 | H20: 139916 | I20: 0.75 | J20: =I20*H20 -> 104937 | L20: =H20 -> 139916 | M20: 1.85 | N20: =M20*L20 -> 258844.6 | P20: 363781.6
B21: March | D21: 125519 | E21: 3.63 | F21: 455633.97 | H21: 128216 | I21: 0.75 | J21: 96162 | L21: =H21 -> 128216 | M21: 1.85 | N21: 237199.6 | P21: 333361.6
B22: April | D22: 115895 | E22: 3.63 | F22: 420698.85 | H22: 121386 | I22: 0.75 | J22: 91039.5 | L22: 121386 | M22: 1.85 | N22: 224564.1 | P22: 315603.6
B23: May | D23: 117574 | E23: 3.63 | F23: 426793.62 | H23: 136001 | I23: 0.75 | J23: 102000.75 | L23: 136001 | M23: 1.85 | N23: 251601.85 | P23: 353602.6
B24: June | D24: 125787 | E24: 3.63 | F24: 456606.81 | H24: 158176 | I24: 0.75 | J24: 118632 | L24: 158176 | M24: 1.85 | N24: 292625.6 | P24: 411257.6
B25: July | D25: 140891 | E25: 3.63 | F25: 511434.33 | H25: 168527 | I25: 0.75 | J25: 126395.25 | L25: 168527 | M25: 1.85 | N25: 311774.95 | P25: 438170.2
B26: August | D26: 123715 | E26: 3.63 | F26: 449085.45 | H26: 155543 | I26: 0.75 | J26: 116657.25 | L26: 155543 | M26: 1.85 | N26: 287754.55 | P26: 404411.8
B27: September | D27: 141040 | E27: 3.63 | F27: 511975.2 | H27: 168066 | I27: 0.75 | J27: 126049.5 | L27: 168066 | M27: 1.85 | N27: 310922.1 | P27: 436971.6
B28: October | D28: 111479 | E28: 3.63 | F28: 404668.77 | H28: 124097 | I28: 0.75 | J28: 93072.75 | L28: 124097 | M28: 1.85 | N28: 229579.45 | P28: 322652.2
B29: November | D29: 130398 | E29: 3.63 | F29: 473344.74 | H29: 135982 | I29: 0.75 | J29: 101986.5 | L29: 135982 | M29: 1.85 | N29: 251566.7 | P29: 353553.2
B30: December | D30: 136070 | E30: 3.63 | F30: 493934.1 | H30: 144050 | I30: 0.75 | J30: 108037.5 | L30: 144050 | M30: 1.85 | N30: 266492.5 | P30: 374530
B32: Total | D32: =SUM(D19:D30) -> 1532578 | E32: =IF(D32<>0,F32/D32,0) -> 3.63 | F32: =SUM(F19:F30) -> 5563258.14 | H32: =SUM(H19:H30) -> 1724327 | I32: =IF(H32<>0,J32/H32,0) -> 0.75 | J32: =SUM(J19:J30) -> 1293245.25 | L32: =SUM(L19:L30) -> 1724327 | M32: =IF(L32<>0,N32/L32,0) -> 1.85 | N32: =SUM(N19:N30) -> 3190004.95 | P32: =SUM(P19:P30) -> 4483250.2
B34: Hydro One | D34: Network | H34: Line Connection | L34: Transformation Connection | P34: Total Line
B36: Month | D36: Units Billed | E36: Rate | F36: Amount | H36: Units Billed | I36: Rate | J36: Amount | L36: Units Billed | M36: Rate | N36: Amount | P36: Amount
B38: January | D38: 12425 | E38: 3.18 | F38: =E38*D38 -> 39511.5 | H38: =D38 -> 12425 | I38: 0.7 | J38: =I38*H38 -> 8697.5 | L38: =D38 -> 12425 | M38: 1.63 | N38: =M38*L38 -> 20252.75 | P38: =J38+N38 -> 28950.25
B39: February | D39: 11091 | E39: 3.18 | F39: =E39*D39 -> 35269.38 | H39: 11155 | I39: 0.7 | J39: =I39*H39 -> 7808.5 | L39: =H39 -> 11155 | M39: 1.63 | N39: =M39*L39 -> 18182.65 | P39: 25991.15
B40: March | D40: 11558 | E40: 3.18 | F40: 36754.44 | H40: 11558 | I40: 0.7 | J40: 8090.6 | L40: =H40 -> 11558 | M40: 1.63 | N40: 18839.54 | P40: 26930.14
B41: April | D41: 10697 | E41: 3.18 | F41: 34016.46 | H41: 10697 | I41: 0.7 | J41: 7487.9 | L41: 10697 | M41: 1.63 | N41: 17436.11 | P41: 24924.01
B42: May | D42: 10065 | E42: 3.18 | F42: 32006.7 | H42: 10714.83 | I42: 0.7 | J42: 7500.381 | L42: 10714.83 | M42: 1.63 | N42: 17465.1729 | P42: 24965.5539
B43: June | D43: 12761.42 | E43: 3.18 | F43: 40581.3156 | H43: 12761.42 | I43: 0.7 | J43: 8932.994 | L43: 12761.42 | M43: 1.63 | N43: 20801.1146 | P43: 29734.1086
B44: July | D44: 14124.19 | E44: 3.18 | F44: 44914.9242 | H44: 14124.19 | I44: 0.7 | J44: 9886.933 | L44: 14124.19 | M44: 1.63 | N44: 23022.4297 | P44: 32909.3627
B45: August | D45: 13771.95 | E45: 3.18 | F45: 43794.801 | H45: 13771.95 | I45: 0.7 | J45: 9640.365 | L45: 13771.95 | M45: 1.63 | N45: 22448.2785 | P45: 32088.6435
B46: September | D46: 15167.16 | E46: 3.18 | F46: 48231.5688 | H46: 15167.16 | I46: 0.7 | J46: 10617.012 | L46: 15167.16 | M46: 1.63 | N46: 24722.4708 | P46: 35339.4828
B47: October | D47: 9909.16 | E47: 3.18 | F47: 31511.1288 | H47: 9909.16 | I47: 0.7 | J47: 6936.412 | L47: 9909.16 | M47: 1.63 | N47: 16151.9308 | P47: 23088.3428
B48: November | D48: 11164.82 | E48: 3.18 | F48: 35504.1276 | H48: 11164.82 | I48: 0.7 | J48: 7815.374 | L48: 11164.82 | M48: 1.63 | N48: 18198.6566 | P48: 26014.0306
B49: December | D49: 11323.56 | E49: 3.18 | F49: 36008.9208 | H49: 11345.81 | I49: 0.7 | J49: 7942.067 | L49: 11345.81 | M49: 1.63 | N49: 18493.6703 | P49: 26435.7373
B51: Total | D51: =SUM(D38:D49) -> 144058.26 | E51: =IF(D51<>0,F51/D51,0) -> 3.18 | F51: =SUM(F38:F49) -> 458105.2668 | H51: =SUM(H38:H49) -> 144794.34 | I51: =IF(H51<>0,J51/H51,0) -> 0.7 | J51: =SUM(J38:J49) -> 101356.038 | L51: =SUM(L38:L49) -> 144794.34 | M51: =IF(L51<>0,N51/L51,0) -> 1.63 | N51: =SUM(N38:N49) -> 236014.7742 | P51: =SUM(P38:P49) -> 337370.8122
B53: Add Extra Host Here (I) | D53: Network | H53: Line Connection | L53: Transformation Connection | P53: Total Line
B54: (if needed)
B55: Month | D55: Units Billed | E55: Rate | F55: Amount | H55: Units Billed | I55: Rate | J55: Amount | L55: Units Billed | M55: Rate | N55: Amount | P55: Amount
B57: January | E57: =IF(D57<>0,F57/D57,0) -> 0 | I57: =IF(H57<>0,J57/H57,0) -> 0 | M57: =IF(L57<>0,N57/L57,0) -> 0 | P57: =J57+N57 -> 0
B58: February | E58: 0 | I58: 0 | M58: 0 | P58: 0
B59: March | E59: 0 | I59: 0 | M59: 0 | P59: 0
B60: April | E60: 0 | I60: 0 | M60: 0 | P60: 0
B61: May | E61: 0 | I61: 0 | M61: 0 | P61: 0
B62: June | E62: 0 | I62: 0 | M62: 0 | P62: 0
B63: July | E63: 0 | I63: 0 | M63: 0 | P63: 0
B64: August | E64: 0 | I64: 0 | M64: 0 | P64: 0
B65: September | E65: 0 | I65: 0 | M65: 0 | P65: 0
B66: October | E66: 0 | I66: 0 | M66: 0 | P66: 0
B67: November | E67: 0 | I67: 0 | M67: 0 | P67: 0
B68: December | E68: 0 | I68: 0 | M68: 0 | P68: 0
B70: Total | D70: =SUM(D57:D68) -> 0 | E70: =IF(D70<>0,F70/D70,0) -> 0 | F70: =SUM(F57:F68) -> 0 | H70: =SUM(H57:H68) -> 0 | I70: =IF(H70<>0,J70/H70,0) -> 0 | J70: =SUM(J57:J68) -> 0 | L70: =SUM(L57:L68) -> 0 | M70: =IF(L70<>0,N70/L70,0) -> 0 | N70: =SUM(N57:N68) -> 0 | P70: =SUM(P57:P68) -> 0
B72: Add Extra Host Here (II) | D72: Network | H72: Line Connection | L72: Transformation Connection | P72: Total Line
B73: (if needed)
B74: Month | D74: Units Billed | E74: Rate | F74: Amount | H74: Units Billed | I74: Rate | J74: Amount | L74: Units Billed | M74: Rate | N74: Amount | P74: Amount
B76: January | E76: =IF(D76<>0,F76/D76,0) -> 0 | I76: =IF(H76<>0,J76/H76,0) -> 0 | M76: =IF(L76<>0,N76/L76,0) -> 0 | P76: =J76+N76 -> 0
B77: February | E77: 0 | I77: 0 | M77: 0 | P77: 0
B78: March | E78: 0 | I78: 0 | M78: 0 | P78: 0
B79: April | E79: 0 | I79: 0 | M79: 0 | P79: 0
B80: May | E80: 0 | I80: 0 | M80: 0 | P80: 0
B81: June | E81: 0 | I81: 0 | M81: 0 | P81: 0
B82: July | E82: 0 | I82: 0 | M82: 0 | P82: 0
B83: August | E83: 0 | I83: 0 | M83: 0 | P83: 0
B84: September | E84: 0 | I84: 0 | M84: 0 | P84: 0
B85: October | E85: 0 | I85: 0 | M85: 0 | P85: 0
B86: November | E86: 0 | I86: 0 | M86: 0 | P86: 0
B87: December | E87: 0 | I87: 0 | M87: 0 | P87: 0
B89: Total | D89: =SUM(D76:D87) -> 0 | E89: =IF(D89<>0,F89/D89,0) -> 0 | F89: =SUM(F76:F87) -> 0 | H89: =SUM(H76:H87) -> 0 | I89: =IF(H89<>0,J89/H89,0) -> 0 | J89: =SUM(J76:J87) -> 0 | L89: =SUM(L76:L87) -> 0 | M89: =IF(L89<>0,N89/L89,0) -> 0 | N89: =SUM(N76:N87) -> 0 | P89: =SUM(P76:P87) -> 0
B91: Total | D91: Network | H91: Line Connection | L91: Transformation Connection | P91: Total Line
B93: Month | D93: Units Billed | E93: Rate | F93: Amount | H93: Units Billed | I93: Rate | J93: Amount | L93: Units Billed | M93: Rate | N93: Amount | P93: Amount
B95: January | D95: =D19+D38+D57+D76 -> 143310 | E95: =IF(D95<>0,F95/D95,0) -> 3.590984928 | F95: =F19+F38+F57+F76 -> 514624.05 | H95: =H19+H38+H57+H76 -> 156792 | I95: =IF(H95<>0,J95/H95,0) -> 0.7460377443 | J95: =J19+J38+J57+J76 -> 116972.75 | L95: =L19+L38+L57+L76 -> 156792 | M95: =IF(L95<>0,N95/L95,0) -> 1.832566075 | N95: =N19+N38+N57+N76 -> 287331.7 | P95: =J95+N95 -> 404304.45
B96: February | D96: =D20+D39+D58+D77 -> 144416 | E96: 3.595440464 | F96: =F20+F39+F58+F77 -> 519239.13 | H96: =H20+H39+H58+H77 -> 151071 | I96: 0.7463080274 | J96: =J20+J39+J58+J77 -> 112745.5 | L96: =L20+L39+L58+L77 -> 151071 | M96: 1.83375532 | N96: =N20+N39+N58+N77 -> 277027.25 | P96: 389772.75
B97: March | D97: 137077 | E97: 3.592057092 | F97: 492388.41 | H97: 139774 | I97: 0.7458654685 | J97: 104252.6 | L97: 139774 | M97: 1.831808062 | N97: 256039.14 | P97: 360291.74
B98: April | D98: 126592 | E98: 3.591975085 | F98: 454715.31 | H98: 132083 | I98: 0.7459506522 | J98: 98527.4 | L98: 132083 | M98: 1.83218287 | N98: 242000.21 | P98: 340527.61
B99: May | D99: 127639 | E99: 3.594515156 | F99: 458800.32 | H99: 146715.83 | I99: 0.7463484411 | J99: 109501.131 | L99: 146715.83 | M99: 1.833933141 | N99: 269067.0229 | P99: 378568.1539
B100: June | D100: 138548.42 | E100: 3.588551393 | F100: 497188.1256 | H100: 170937.42 | I100: 0.7462672246 | J100: 127564.994 | L100: 170937.42 | M100: 1.833575788 | N100: 313426.7146 | P100: 440991.7086
B101: July | D101: 155015.19 | E101: 3.588998305 | F101: 556349.2542 | H101: 182651.19 | I101: 0.746133562 | J101: 136282.183 | L101: 182651.19 | M101: 1.832987673 | N101: 334797.3797 | P101: 471079.5627
B102: August | D102: 137486.95 | E102: 3.584923886 | F102: 492880.251 | H102: 169314.95 | I102: 0.7459330378 | J102: 126297.615 | L102: 169314.95 | M102: 1.832105366 | N102: 310202.8285 | P102: 436500.4435
B103: September | D103: 156207.16 | E103: 3.5863066 | F103: 560206.7688 | H103: 183233.16 | I103: 0.7458612404 | J103: 136666.512 | L103: 183233.16 | M103: 1.831789458 | N103: 335644.5708 | P103: 472311.0828
B104: October | D104: 121388.16 | E104: 3.593265594 | F104: 436179.8988 | H104: 134006.16 | I104: 0.7463027222 | J104: 100009.162 | L104: 134006.16 | M104: 1.833731978 | N104: 245731.3808 | P104: 345740.5428
B105: November | D105: 141562.82 | E105: 3.594509262 | F105: 508848.8676 | H105: 147146.82 | I105: 0.7462062313 | J105: 109801.874 | L105: 147146.82 | M105: 1.833307418 | N105: 269765.3566 | P105: 379567.2306
B106: December | D106: 147393.56 | E106: 3.595428598 | F106: 529943.0208 | H106: 155395.81 | I106: 0.7463493836 | J106: 115979.567 | L106: 155395.81 | M106: 1.833937288 | N106: 284986.1703 | P106: 400965.7373
B108: Total | D108: =SUM(D95:D106) -> 1676636.26 | E108: =IF(D108<>0,F108/D108,0) -> 3.591335551 | F108: =SUM(F95:F106) -> 6021363.407 | H108: =SUM(H95:H106) -> 1869121.34 | I108: =IF(H108<>0,J108/H108,0) -> 0.7461266736 | J108: =SUM(J95:J106) -> 1394601.288 | L108: =SUM(L95:L106) -> 1869121.34 | M108: =IF(L108<>0,N108/L108,0) -> 1.832957364 | N108: =SUM(N95:N106) -> 3426019.724 | P108: =SUM(P95:P106) -> 4820621.012
N110: Transformer Allowance Credit (if applicable) | P110: ='15. RTSR - UTRs & Sub-Tx'!E95 -> 0
N112: Total including deduction for Transformer Allowance Credit | P112: =P108+P110 -> 4820621.012

Sheet 17. RTSR - Current Wholesale
B13: The purpose of this sheet is to calculate the expected billing when current 2014 Uniform Transmission Rates are applied against historical 2013 transmission units.
B16: IESO | D16: Network | H16: Line Connection | L16: Transformation Connection | P16: Total Line
B18: Month | D18: Units Billed | E18: Rate | F18: Amount | H18: Units Billed | I18: Rate | J18: Amount | L18: Units Billed | M18: Rate | N18: Amount | P18: Amount
B20: January | D20: ='16. RTSR - Historical Wholesale'!D19 -> 130885 | E20: ='15. RTSR - UTRs & Sub-Tx'!G22 -> 3.82 | F20: =D20*E20 -> 499980.7 | H20: ='16. RTSR - Historical Wholesale'!H19 -> 144367 | I20: ='15. RTSR - UTRs & Sub-Tx'!G24 -> 0.82 | J20: =H20*I20 -> 118380.94 | L20: ='16. RTSR - Historical Wholesale'!L19 -> 144367 | M20: ='15. RTSR - UTRs & Sub-Tx'!G26 -> 1.98 | N20: =L20*M20 -> 285846.66 | P20: =J20+N20 -> 404227.6
B21: February | D21: ='16. RTSR - Historical Wholesale'!D20 -> 133325 | E21: =E20 -> 3.82 | F21: =D21*E21 -> 509301.5 | H21: ='16. RTSR - Historical Wholesale'!H20 -> 139916 | I21: =I20 -> 0.82 | J21: =H21*I21 -> 114731.12 | L21: ='16. RTSR - Historical Wholesale'!L20 -> 139916 | M21: =M20 -> 1.98 | N21: =L21*M21 -> 277033.68 | P21: 391764.8
B22: March | D22: ='16. RTSR - Historical Wholesale'!D21 -> 125519 | E22: =E21 -> 3.82 | F22: 479482.58 | H22: ='16. RTSR - Historical Wholesale'!H21 -> 128216 | I22: =I21 -> 0.82 | J22: 105137.12 | L22: ='16. RTSR - Historical Wholesale'!L21 -> 128216 | M22: =M21 -> 1.98 | N22: 253867.68 | P22: 359004.8
B23: April | D23: ='16. RTSR - Historical Wholesale'!D22 -> 115895 | E23: 3.82 | F23: 442718.9 | H23: ='16. RTSR - Historical Wholesale'!H22 -> 121386 | I23: 0.82 | J23: 99536.52 | L23: ='16. RTSR - Historical Wholesale'!L22 -> 121386 | M23: 1.98 | N23: 240344.28 | P23: 339880.8
B24: May | D24: ='16. RTSR - Historical Wholesale'!D23 -> 117574 | E24: 3.82 | F24: 449132.68 | H24: ='16. RTSR - Historical Wholesale'!H23 -> 136001 | I24: 0.82 | J24: 111520.82 | L24: ='16. RTSR - Historical Wholesale'!L23 -> 136001 | M24: 1.98 | N24: 269281.98 | P24: 380802.8
B25: June | D25: ='16. RTSR - Historical Wholesale'!D24 -> 125787 | E25: 3.82 | F25: 480506.34 | H25: ='16. RTSR - Historical Wholesale'!H24 -> 158176 | I25: 0.82 | J25: 129704.32 | L25: ='16. RTSR - Historical Wholesale'!L24 -> 158176 | M25: 1.98 | N25: 313188.48 | P25: 442892.8
B26: July | D26: ='16. RTSR - Historical Wholesale'!D25 -> 140891 | E26: 3.82 | F26: 538203.62 | H26: ='16. RTSR - Historical Wholesale'!H25 -> 168527 | I26: 0.82 | J26: 138192.14 | L26: ='16. RTSR - Historical Wholesale'!L25 -> 168527 | M26: 1.98 | N26: 333683.46 | P26: 471875.6
B27: August | D27: ='16. RTSR - Historical Wholesale'!D26 -> 123715 | E27: 3.82 | F27: 472591.3 | H27: ='16. RTSR - Historical Wholesale'!H26 -> 155543 | I27: 0.82 | J27: 127545.26 | L27: ='16. RTSR - Historical Wholesale'!L26 -> 155543 | M27: 1.98 | N27: 307975.14 | P27: 435520.4
B28: September | D28: ='16. RTSR - Historical Wholesale'!D27 -> 141040 | E28: 3.82 | F28: 538772.8 | H28: ='16. RTSR - Historical Wholesale'!H27 -> 168066 | I28: 0.82 | J28: 137814.12 | L28: ='16. RTSR - Historical Wholesale'!L27 -> 168066 | M28: 1.98 | N28: 332770.68 | P28: 470584.8
B29: October | D29: ='16. RTSR - Historical Wholesale'!D28 -> 111479 | E29: 3.82 | F29: 425849.78 | H29: ='16. RTSR - Historical Wholesale'!H28 -> 124097 | I29: 0.82 | J29: 101759.54 | L29: ='16. RTSR - Historical Wholesale'!L28 -> 124097 | M29: 1.98 | N29: 245712.06 | P29: 347471.6
B30: November | D30: ='16. RTSR - Historical Wholesale'!D29 -> 130398 | E30: 3.82 | F30: 498120.36 | H30: ='16. RTSR - Historical Wholesale'!H29 -> 135982 | I30: 0.82 | J30: 111505.24 | L30: ='16. RTSR - Historical Wholesale'!L29 -> 135982 | M30: 1.98 | N30: 269244.36 | P30: 380749.6
B31: December | D31: ='16. RTSR - Historical Wholesale'!D30 -> 136070 | E31: 3.82 | F31: 519787.4 | H31: ='16. RTSR - Historical Wholesale'!H30 -> 144050 | I31: 0.82 | J31: 118121 | L31: ='16. RTSR - Historical Wholesale'!L30 -> 144050 | M31: 1.98 | N31: 285219 | P31: 403340
B33: Total | D33: =SUM(D20:D31) -> 1532578 | E33: =IF(D33<>0,F33/D33,0) -> 3.82 | F33: =SUM(F20:F31) -> 5854447.96 | H33: =SUM(H20:H31) -> 1724327 | I33: =IF(H33<>0,J33/H33,0) -> 0.82 | J33: =SUM(J20:J31) -> 1413948.14 | L33: =SUM(L20:L31) -> 1724327 | M33: =IF(L33<>0,N33/L33,0) -> 1.98 | N33: =SUM(N20:N31) -> 3414167.46 | P33: =SUM(P20:P31) -> 4828115.6
B35: Hydro One | D35: Network | H35: Line Connection | L35: Transformation Connection | P35: Total Line
B37: Month | D37: Units Billed | E37: Rate | F37: Amount | H37: Units Billed | I37: Rate | J37: Amount | L37: Units Billed | M37: Rate | N37: Amount | P37: Amount
B39: January | D39: ='16. RTSR - Historical Wholesale'!D38 -> 12425 | E39: ='15. RTSR - UTRs & Sub-Tx'!G35+'15. RTSR - UTRs & Sub-Tx'!G79 -> 3.3765 | F39: =D39*E39 -> 41953.0125 | H39: ='16. RTSR - Historical Wholesale'!H38 -> 12425 | I39: ='15. RTSR - UTRs & Sub-Tx'!G37+'15. RTSR - UTRs & Sub-Tx'!G81 -> 0.7167 | J39: =H39*I39 -> 8904.9975 | L39: ='16. RTSR - Historical Wholesale'!L38 -> 12425 | M39: ='15. RTSR - UTRs & Sub-Tx'!G39 -> 1.62 | N39: =L39*M39 -> 20128.5 | P39: =J39+N39 -> 29033.4975
B40: February | D40: ='16. RTSR - Historical Wholesale'!D39 -> 11091 | E40: =E39 -> 3.3765 | F40: =D40*E40 -> 37448.7615 | H40: ='16. RTSR - Historical Wholesale'!H39 -> 11155 | I40: =I39 -> 0.7167 | J40: =H40*I40 -> 7994.7885 | L40: ='16. RTSR - Historical Wholesale'!L39 -> 11155 | M40: =M39 -> 1.62 | N40: =L40*M40 -> 18071.1 | P40: 26065.8885
B41: March | D41: ='16. RTSR - Historical Wholesale'!D40 -> 11558 | E41: =E40 -> 3.3765 | F41: 39025.587 | H41: ='16. RTSR - Historical Wholesale'!H40 -> 11558 | I41: =I40 -> 0.7167 | J41: 8283.6186 | L41: ='16. RTSR - Historical Wholesale'!L40 -> 11558 | M41: =M40 -> 1.62 | N41: 18723.96 | P41: 27007.5786
B42: April | D42: ='16. RTSR - Historical Wholesale'!D41 -> 10697 | E42: 3.3765 | F42: 36118.4205 | H42: ='16. RTSR - Historical Wholesale'!H41 -> 10697 | I42: 0.7167 | J42: 7666.5399 | L42: ='16. RTSR - Historical Wholesale'!L41 -> 10697 | M42: =M41 -> 1.62 | N42: 17329.14 | P42: 24995.6799
B43: May | D43: ='16. RTSR - Historical Wholesale'!D42 -> 10065 | E43: 3.3765 | F43: 33984.4725 | H43: ='16. RTSR - Historical Wholesale'!H42 -> 10714.83 | I43: 0.7167 | J43: 7679.318661 | L43: ='16. RTSR - Historical Wholesale'!L42 -> 10714.83 | M43: 1.62 | N43: 17358.0246 | P43: 25037.34326
B44: June | D44: ='16. RTSR - Historical Wholesale'!D43 -> 12761.42 | E44: 3.3765 | F44: 43088.93463 | H44: ='16. RTSR - Historical Wholesale'!H43 -> 12761.42 | I44: 0.7167 | J44: 9146.109714 | L44: ='16. RTSR - Historical Wholesale'!L43 -> 12761.42 | M44: 1.62 | N44: 20673.5004 | P44: 29819.61011
B45: July | D45: ='16. RTSR - Historical Wholesale'!D44 -> 14124.19 | E45: 3.3765 | F45: 47690.32754 | H45: ='16. RTSR - Historical Wholesale'!H44 -> 14124.19 | I45: 0.7167 | J45: 10122.80697 | L45: ='16. RTSR - Historical Wholesale'!L44 -> 14124.19 | M45: 1.62 | N45: 22881.1878 | P45: 33003.99477
B46: August | D46: ='16. RTSR - Historical Wholesale'!D45 -> 13771.95 | E46: 3.3765 | F46: 46500.98918 | H46: ='16. RTSR - Historical Wholesale'!H45 -> 13771.95 | I46: 0.7167 | J46: 9870.356565 | L46: ='16. RTSR - Historical Wholesale'!L45 -> 13771.95 | M46: 1.62 | N46: 22310.559 | P46: 32180.91557
B47: September | D47: ='16. RTSR - Historical Wholesale'!D46 -> 15167.16 | E47: 3.3765 | F47: 51211.91574 | H47: ='16. RTSR - Historical Wholesale'!H46 -> 15167.16 | I47: 0.7167 | J47: 10870.30357 | L47: ='16. RTSR - Historical Wholesale'!L46 -> 15167.16 | M47: 1.62 | N47: 24570.7992 | P47: 35441.10277
B48: October | D48: ='16. RTSR - Historical Wholesale'!D47 -> 9909.16 | E48: 3.3765 | F48: 33458.27874 | H48: ='16. RTSR - Historical Wholesale'!H47 -> 9909.16 | I48: 0.7167 | J48: 7101.894972 | L48: ='16. RTSR - Historical Wholesale'!L47 -> 9909.16 | M48: 1.62 | N48: 16052.8392 | P48: 23154.73417
B49: November | D49: ='16. RTSR - Historical Wholesale'!D48 -> 11164.82 | E49: 3.3765 | F49: 37698.01473 | H49: ='16. RTSR - Historical Wholesale'!H48 -> 11164.82 | I49: 0.7167 | J49: 8001.826494 | L49: ='16. RTSR - Historical Wholesale'!L48 -> 11164.82 | M49: 1.62 | N49: 18087.0084 | P49: 26088.83489
B50: December | D50: ='16. RTSR - Historical Wholesale'!D49 -> 11323.56 | E50: 3.3765 | F50: 38234.00034 | H50: ='16. RTSR - Historical Wholesale'!H49 -> 11345.81 | I50: 0.7167 | J50: 8131.542027 | L50: ='16. RTSR - Historical Wholesale'!L49 -> 11345.81 | M50: 1.62 | N50: 18380.2122 | P50: 26511.75423
B52: Total | D52: =SUM(D39:D50) -> 144058.26 | E52: =IF(D52<>0,F52/D52,0) -> 3.3765 | F52: =SUM(F39:F50) -> 486412.7149 | H52: =SUM(H39:H50) -> 144794.34 | I52: =IF(H52<>0,J52/H52,0) -> 0.7167 | J52: =SUM(J39:J50) -> 103774.1035 | L52: =SUM(L39:L50) -> 144794.34 | M52: =IF(L52<>0,N52/L52,0) -> 1.62 | N52: =SUM(N39:N50) -> 234566.8308 | P52: =SUM(P39:P50) -> 338340.9343
B54: ='16. RTSR - Historical Wholesale'!B53 -> Add Extra Host Here (I) | D54: Network | H54: Line Connection | L54: Transformation Connection | P54: Total Line
B56: Month | D56: Units Billed | E56: Rate | F56: Amount | H56: Units Billed | I56: Rate | J56: Amount | L56: Units Billed | M56: Rate | N56: Amount | P56: Amount
B58: January | D58: ='16. RTSR - Historical Wholesale'!D57 -> 0 | E58: ='15. RTSR - UTRs & Sub-Tx'!G50 -> 0 | F58: =D58*E58 -> 0 | H58: ='16. RTSR - Historical Wholesale'!H57 -> 0 | I58: ='15. RTSR - UTRs & Sub-Tx'!G52 -> 0 | J58: =H58*I58 -> 0 | L58: ='16. RTSR - Historical Wholesale'!L57 -> 0 | M58: ='15. RTSR - UTRs & Sub-Tx'!G54 -> 0 | N58: =L58*M58 -> 0 | P58: =J58+N58 -> 0
B59: February | D59: ='16. RTSR - Historical Wholesale'!D58 -> 0 | E59: =E58 -> 0 | F59: =D59*E59 -> 0 | H59: ='16. RTSR - Historical Wholesale'!H58 -> 0 | I59: =I58 -> 0 | J59: =H59*I59 -> 0 | L59: ='16. RTSR - Historical Wholesale'!L58 -> 0 | M59: =M58 -> 0 | N59: =L59*M59 -> 0 | P59: 0
B60: March | D60: ='16. RTSR - Historical Wholesale'!D59 -> 0 | E60: =E59 -> 0 | F60: 0 | H60: ='16. RTSR - Historical Wholesale'!H59 -> 0 | I60: =I59 -> 0 | J60: 0 | L60: ='16. RTSR - Historical Wholesale'!L59 -> 0 | M60: =M59 -> 0 | N60: 0 | P60: 0
B61: April | D61: ='16. RTSR - Historical Wholesale'!D60 -> 0 | E61: 0 | F61: 0 | H61: ='16. RTSR - Historical Wholesale'!H60 -> 0 | I61: 0 | J61: 0 | L61: ='16. RTSR - Historical Wholesale'!L60 -> 0 | M61: =M60 -> 0 | N61: 0 | P61: 0
B62: May | D62: ='16. RTSR - Historical Wholesale'!D61 -> 0 | E62: 0 | F62: 0 | H62: ='16. RTSR - Historical Wholesale'!H61 -> 0 | I62: 0 | J62: 0 | L62: ='16. RTSR - Historical Wholesale'!L61 -> 0 | M62: 0 | N62: 0 | P62: 0
B63: June | D63: ='16. RTSR - Historical Wholesale'!D62 -> 0 | E63: 0 | F63: 0 | H63: ='16. RTSR - Historical Wholesale'!H62 -> 0 | I63: 0 | J63: 0 | L63: ='16. RTSR - Historical Wholesale'!L62 -> 0 | M63: 0 | N63: 0 | P63: 0
B64: July | D64: ='16. RTSR - Historical Wholesale'!D63 -> 0 | E64: 0 | F64: 0 | H64: ='16. RTSR - Historical Wholesale'!H63 -> 0 | I64: 0 | J64: 0 | L64: ='16. RTSR - Historical Wholesale'!L63 -> 0 | M64: 0 | N64: 0 | P64: 0
B65: August | D65: ='16. RTSR - Historical Wholesale'!D64 -> 0 | E65: 0 | F65: 0 | H65: ='16. RTSR - Historical Wholesale'!H64 -> 0 | I65: 0 | J65: 0 | L65: ='16. RTSR - Historical Wholesale'!L64 -> 0 | M65: 0 | N65: 0 | P65: 0
B66: September | D66: ='16. RTSR - Historical Wholesale'!D65 -> 0 | E66: 0 | F66: 0 | H66: ='16. RTSR - Historical Wholesale'!H65 -> 0 | I66: 0 | J66: 0 | L66: ='16. RTSR - Historical Wholesale'!L65 -> 0 | M66: 0 | N66: 0 | P66: 0
B67: October | D67: ='16. RTSR - Historical Wholesale'!D66 -> 0 | E67: 0 | F67: 0 | H67: ='16. RTSR - Historical Wholesale'!H66 -> 0 | I67: 0 | J67: 0 | L67: ='16. RTSR - Historical Wholesale'!L66 -> 0 | M67: 0 | N67: 0 | P67: 0
B68: November | D68: ='16. RTSR - Historical Wholesale'!D67 -> 0 | E68: 0 | F68: 0 | H68: ='16. RTSR - Historical Wholesale'!H67 -> 0 | I68: 0 | J68: 0 | L68: ='16. RTSR - Historical Wholesale'!L67 -> 0 | M68: 0 | N68: 0 | P68: 0
B69: December | D69: ='16. RTSR - Historical Wholesale'!D68 -> 0 | E69: 0 | F69: 0 | H69: ='16. RTSR - Historical Wholesale'!H68 -> 0 | I69: 0 | J69: 0 | L69: ='16. RTSR - Historical Wholesale'!L68 -> 0 | M69: 0 | N69: 0 | P69: 0
B71: Total | D71: =SUM(D58:D69) -> 0 | E71: =IF(D71<>0,F71/D71,0) -> 0 | F71: =SUM(F58:F69) -> 0 | H71: =SUM(H58:H69) -> 0 | I71: =IF(H71<>0,J71/H71,0) -> 0 | J71: =SUM(J58:J69) -> 0 | L71: =SUM(L58:L69) -> 0 | M71: =IF(L71<>0,N71/L71,0) -> 0 | N71: =SUM(N58:N69) -> 0 | P71: =SUM(P58:P69) -> 0
B73: ='16. RTSR - Historical Wholesale'!B72 -> Add Extra Host Here (II) | D73: Network | H73: Line Connection | L73: Transformation Connection | P73: Total Line
B75: Month | D75: Units Billed | E75: Rate | F75: Amount | H75: Units Billed | I75: Rate | J75: Amount | L75: Units Billed | M75: Rate | N75: Amount | P75: Amount
B77: January | D77: ='16. RTSR - Historical Wholesale'!D76 -> 0 | E77: ='15. RTSR - UTRs & Sub-Tx'!G65 -> 0 | F77: =D77*E77 -> 0 | H77: ='16. RTSR - Historical Wholesale'!H76 -> 0 | I77: ='15. RTSR - UTRs & Sub-Tx'!G67 -> 0 | J77: =H77*I77 -> 0 | L77: ='16. RTSR - Historical Wholesale'!L76 -> 0 | M77: ='15. RTSR - UTRs & Sub-Tx'!G69 -> 0 | N77: =L77*M77 -> 0 | P77: =J77+N77 -> 0
B78: February | D78: ='16. RTSR - Historical Wholesale'!D77 -> 0 | E78: =E77 -> 0 | F78: =D78*E78 -> 0 | H78: ='16. RTSR - Historical Wholesale'!H77 -> 0 | I78: =I77 -> 0 | J78: =H78*I78 -> 0 | L78: ='16. RTSR - Historical Wholesale'!L77 -> 0 | M78: =M77 -> 0 | N78: =L78*M78 -> 0 | P78: 0
B79: March | D79: ='16. RTSR - Historical Wholesale'!D78 -> 0 | E79: =E78 -> 0 | F79: 0 | H79: ='16. RTSR - Historical Wholesale'!H78 -> 0 | I79: =I78 -> 0 | J79: 0 | L79: ='16. RTSR - Historical Wholesale'!L78 -> 0 | M79: =M78 -> 0 | N79: 0 | P79: 0
B80: April | D80: ='16. RTSR - Historical Wholesale'!D79 -> 0 | E80: 0 | F80: 0 | H80: ='16. RTSR - Historical Wholesale'!H79 -> 0 | I80: 0 | J80: 0 | L80: ='16. RTSR - Historical Wholesale'!L79 -> 0 | M80: =M79 -> 0 | N80: 0 | P80: 0
B81: May | D81: ='16. RTSR - Historical Wholesale'!D80 -> 0 | E81: 0 | F81: 0 | H81: ='16. RTSR - Historical Wholesale'!H80 -> 0 | I81: 0 | J81: 0 | L81: ='16. RTSR - Historical Wholesale'!L80 -> 0 | M81: 0 | N81: 0 | P81: 0
B82: June | D82: ='16. RTSR - Historical Wholesale'!D81 -> 0 | E82: 0 | F82: 0 | H82: ='16. RTSR - Historical Wholesale'!H81 -> 0 | I82: 0 | J82: 0 | L82: ='16. RTSR - Historical Wholesale'!L81 -> 0 | M82: 0 | N82: 0 | P82: 0
B83: July | D83: ='16. RTSR - Historical Wholesale'!D82 -> 0 | E83: 0 | F83: 0 | H83: ='16. RTSR - Historical Wholesale'!H82 -> 0 | I83: 0 | J83: 0 | L83: ='16. RTSR - Historical Wholesale'!L82 -> 0 | M83: 0 | N83: 0 | P83: 0
B84: August | D84: ='16. RTSR - Historical Wholesale'!D83 -> 0 | E84: 0 | F84: 0 | H84: ='16. RTSR - Historical Wholesale'!H83 -> 0 | I84: 0 | J84: 0 | L84: ='16. RTSR - Historical Wholesale'!L83 -> 0 | M84: 0 | N84: 0 | P84: 0
B85: September | D85: ='16. RTSR - Historical Wholesale'!D84 -> 0 | E85: 0 | F85: 0 | H85: ='16. RTSR - Historical Wholesale'!H84 -> 0 | I85: 0 | J85: 0 | L85: ='16. RTSR - Historical Wholesale'!L84 -> 0 | M85: 0 | N85: 0 | P85: 0
B86: October | D86: ='16. RTSR - Historical Wholesale'!D85 -> 0 | E86: 0 | F86: 0 | H86: ='16. RTSR - Historical Wholesale'!H85 -> 0 | I86: 0 | J86: 0 | L86: ='16. RTSR - Historical Wholesale'!L85 -> 0 | M86: 0 | N86: 0 | P86: 0
B87: November | D87: ='16. RTSR - Historical Wholesale'!D86 -> 0 | E87: 0 | F87: 0 | H87: ='16. RTSR - Historical Wholesale'!H86 -> 0 | I87: 0 | J87: 0 | L87: ='16. RTSR - Historical Wholesale'!L86 -> 0 | M87: 0 | N87: 0 | P87: 0
B88: December | D88: ='16. RTSR - Historical Wholesale'!D87 -> 0 | E88: 0 | F88: 0 | H88: ='16. RTSR - Historical Wholesale'!H87 -> 0 | I88: 0 | J88: 0 | L88: ='16. RTSR - Historical Wholesale'!L87 -> 0 | M88: 0 | N88: 0 | P88: 0
B90: Total | D90: =SUM(D77:D88) -> 0 | E90: =IF(D90<>0,F90/D90,0) -> 0 | F90: =SUM(F77:F88) -> 0 | H90: =SUM(H77:H88) -> 0 | I90: =IF(H90<>0,J90/H90,0) -> 0 | J90: =SUM(J77:J88) -> 0 | L90: =SUM(L77:L88) -> 0 | M90: =IF(L90<>0,N90/L90,0) -> 0 | N90: =SUM(N77:N88) -> 0 | P90: =SUM(P77:P88) -> 0
B92: Total | D92: Network | H92: Line Connection | L92: Transformation Connection | P92: Total Line
B94: Month | D94: Units Billed | E94: Rate | F94: Amount | H94: Units Billed | I94: Rate | J94: Amount | L94: Units Billed | M94: Rate | N94: Amount | P94: Amount
B96: January | D96: =D20+D39+D58+D77 -> 143310 | E96: =IF(D96<>0,F96/D96,0) -> 3.781548479 | F96: =F20+F39+F58+F77 -> 541933.7125 | H96: =H20+H39+H58+H77 -> 156792 | I96: =IF(H96<>0,J96/H96,0) -> 0.8118139797 | J96: =J20+J39+J58+J77 -> 127285.9375 | L96: =L20+L39+L58+L77 -> 156792 | M96: =IF(L96<>0,N96/L96,0) -> 1.951471759 | N96: =N20+N39+N58+N77 -> 305975.16 | P96: =J96+N96 -> 433261.0975
B97: February | D97: =D21+D40+D59+D78 -> 144416 | E97: 3.785939657 | F97: =F21+F40+F59+F78 -> 546750.2615 | H97: =H21+H40+H59+H78 -> 151071 | I97: 0.8123723845 | J97: =J21+J40+J59+J78 -> 122725.9085 | L97: =L21+L40+L59+L78 -> 151071 | M97: 1.953417797 | N97: =N21+N40+N59+N78 -> 295104.78 | P97: 417830.6885
B98: March | D98: 137077 | E98: 3.782605156 | F98: 518508.167 | H98: 139774 | I98: 0.811458058 | J98: 113420.7386 | L98: 139774 | M98: 1.950231374 | N98: 272591.64 | P98: 386012.3786
B99: April | D99: 126592 | E99: 3.782524334 | F99: 478837.3205 | H99: 132083 | I99: 0.8116340475 | J99: 107203.0599 | L99: 132083 | M99: 1.950844696 | N99: 257673.42 | P99: 364876.4799
B100: May | D100: 127639 | E100: 3.785027715 | F100: 483117.1525 | H100: 146715.83 | I100: 0.8124558792 | J100: 119200.1387 | L100: 146715.83 | M100: 1.953708776 | N100: 286640.0046 | P100: 405840.1433
B101: June | D101: 138548.42 | E101: 3.779150095 | F101: 523595.2746 | H101: 170937.42 | I101: 0.812288086 | J101: 138850.4297 | L101: 170937.42 | M101: 1.953124017 | N101: 333861.9804 | P101: 472712.4101
B102: July | D102: 155015.19 | E102: 3.779590552 | F102: 585893.9475 | H102: 182651.19 | I102: 0.8120119391 | J102: 148314.947 | L102: 182651.19 | M102: 1.952161646 | N102: 356564.6478 | P102: 504879.5948
B103: August | D103: 137486.95 | E103: 3.775574985 | F103: 519092.2892 | H103: 169314.95 | I103: 0.8115976561 | J103: 137415.6166 | L103: 169314.95 | M103: 1.950717872 | N103: 330285.699 | P103: 467701.3156
B104: September | D104: 156207.16 | E104: 3.776937726 | F104: 589984.7157 | H104: 183233.16 | I104: 0.8114493227 | J104: 148684.4236 | L104: 183233.16 | M104: 1.950200931 | N104: 357341.4792 | P104: 506025.9028
B105: October | D105: 121388.16 | E105: 3.783796202 | F105: 459308.0587 | H105: 134006.16 | I105: 0.8123614241 | J105: 108861.435 | L105: 134006.16 | M105: 1.9533796 | N105: 261764.8992 | P105: 370626.3342
B106: November | D106: 141562.82 | E106: 3.785021906 | F106: 535818.3747 | H106: 147146.82 | I106: 0.8121620739 | J106: 119507.0665 | L106: 147146.82 | M106: 1.952684865 | N106: 287331.3684 | P106: 406838.4349
B107: December | D107: 147393.56 | E107: 3.785927963 | F107: 558021.4003 | H107: 155395.81 | I107: 0.8124578264 | J107: 126252.542 | L107: 155395.81 | M107: 1.953715562 | N107: 303599.2122 | P107: 429851.7542
B109: Total | D109: =SUM(D96:D107) -> 1676636.26 | E109: =IF(D109<>0,F109/D109,0) -> 3.781894038 | F109: =SUM(F96:F107) -> 6340860.675 | H109: =SUM(H96:H107) -> 1869121.34 | I109: =IF(H109<>0,J109/H109,0) -> 0.8119977077 | J109: =SUM(J96:J107) -> 1517722.243 | L109: =SUM(L96:L107) -> 1869121.34 | M109: =IF(L109<>0,N109/L109,0) -> 1.95211205 | N109: =SUM(N96:N107) -> 3648734.291 | P109: =SUM(P96:P107) -> 5166456.534
N111: Transformer Allowance Credit (if applicable) | P111: ='15. RTSR - UTRs & Sub-Tx'!G95 -> 0
N113: Total including deduction for Transformer Allowance Credit | P113: =P109+P111 -> 5166456.534

Sheet 18. RTSR - Forecast Wholesale
B13: The purpose of this sheet is to calculate the expected billing when forecasted 2015 Uniform Transmission Rates are applied against historical 2013 transmission units.
B16: IESO | D16: Network | H16: Line Connection | L16: Transformation Connection | P16: Total Line
B18: Month | D18: Units Billed | E18: Rate | F18: Amount | H18: Units Billed | I18: Rate | J18: Amount | L18: Units Billed | M18: Rate | N18: Amount | P18: Amount
B20: January | D20: ='16. RTSR - Historical Wholesale'!D19 -> 130885 | E20: ='15. RTSR - UTRs & Sub-Tx'!I22 -> 3.78 | F20: =D20*E20 -> 494745.3 | H20: ='16. RTSR - Historical Wholesale'!H19 -> 144367 | I20: ='15. RTSR - UTRs & Sub-Tx'!I24 -> 0.86 | J20: =H20*I20 -> 124155.62 | L20: ='16. RTSR - Historical Wholesale'!L19 -> 144367 | M20: ='15. RTSR - UTRs & Sub-Tx'!I26 -> 2 | N20: =L20*M20 -> 288734 | P20: =J20+N20 -> 412889.62
B21: February | D21: ='16. RTSR - Historical Wholesale'!D20 -> 133325 | E21: =E20 -> 3.78 | F21: 503968.5 | H21: ='16. RTSR - Historical Wholesale'!H20 -> 139916 | I21: =I20 -> 0.86 | J21: 120327.76 | L21: ='16. RTSR - Historical Wholesale'!L20 -> 139916 | M21: =M20 -> 2 | N21: 279832 | P21: 400159.76
B22: March | D22: ='16. RTSR - Historical Wholesale'!D21 -> 125519 | E22: 3.78 | F22: 474461.82 | H22: ='16. RTSR - Historical Wholesale'!H21 -> 128216 | I22: 0.86 | J22: 110265.76 | L22: ='16. RTSR - Historical Wholesale'!L21 -> 128216 | M22: 2 | N22: 256432 | P22: 366697.76
B23: April | D23: ='16. RTSR - Historical Wholesale'!D22 -> 115895 | E23: 3.78 | F23: 438083.1 | H23: ='16. RTSR - Historical Wholesale'!H22 -> 121386 | I23: 0.86 | J23: 104391.96 | L23: ='16. RTSR - Historical Wholesale'!L22 -> 121386 | M23: 2 | N23: 242772 | P23: 347163.96
B24: May | D24: ='16. RTSR - Historical Wholesale'!D23 -> 117574 | E24: 3.78 | F24: 444429.72 | H24: ='16. RTSR - Historical Wholesale'!H23 -> 136001 | I24: 0.86 | J24: 116960.86 | L24: ='16. RTSR - Historical Wholesale'!L23 -> 136001 | M24: 2 | N24: 272002 | P24: 388962.86
B25: June | D25: ='16. RTSR - Historical Wholesale'!D24 -> 125787 | E25: 3.78 | F25: 475474.86 | H25: ='16. RTSR - Historical Wholesale'!H24 -> 158176 | I25: 0.86 | J25: 136031.36 | L25: ='16. RTSR - Historical Wholesale'!L24 -> 158176 | M25: 2 | N25: 316352 | P25: 452383.36
B26: July | D26: ='16. RTSR - Historical Wholesale'!D25 -> 140891 | E26: 3.78 | F26: 532567.98 | H26: ='16. RTSR - Historical Wholesale'!H25 -> 168527 | I26: 0.86 | J26: 144933.22 | L26: ='16. RTSR - Historical Wholesale'!L25 -> 168527 | M26: 2 | N26: 337054 | P26: 481987.22
B27: August | D27: ='16. RTSR - Historical Wholesale'!D26 -> 123715 | E27: 3.78 | F27: 467642.7 | H27: ='16. RTSR - Historical Wholesale'!H26 -> 155543 | I27: 0.86 | J27: 133766.98 | L27: ='16. RTSR - Historical Wholesale'!L26 -> 155543 | M27: 2 | N27: 311086 | P27: 444852.98
B28: September | D28: ='16. RTSR - Historical Wholesale'!D27 -> 141040 | E28: 3.78 | F28: 533131.2 | H28: ='16. RTSR - Historical Wholesale'!H27 -> 168066 | I28: 0.86 | J28: 144536.76 | L28: ='16. RTSR - Historical Wholesale'!L27 -> 168066 | M28: 2 | N28: 336132 | P28: 480668.76
B29: October | D29: ='16. RTSR - Historical Wholesale'!D28 -> 111479 | E29: 3.78 | F29: 421390.62 | H29: ='16. RTSR - Historical Wholesale'!H28 -> 124097 | I29: 0.86 | J29: 106723.42 | L29: ='16. RTSR - Historical Wholesale'!L28 -> 124097 | M29: 2 | N29: 248194 | P29: 354917.42
B30: November | D30: ='16. RTSR - Historical Wholesale'!D29 -> 130398 | E30: 3.78 | F30: 492904.44 | H30: ='16. RTSR - Historical Wholesale'!H29 -> 135982 | I30: 0.86 | J30: 116944.52 | L30: ='16. RTSR - Historical Wholesale'!L29 -> 135982 | M30: 2 | N30: 271964 | P30: 388908.52
B31: December | D31: ='16. RTSR - Historical Wholesale'!D30 -> 136070 | E31: 3.78 | F31: 514344.6 | H31: ='16. RTSR - Historical Wholesale'!H30 -> 144050 | I31: 0.86 | J31: 123883 | L31: ='16. RTSR - Historical Wholesale'!L30 -> 144050 | M31: 2 | N31: 288100 | P31: 411983
B33: Total | D33: =SUM(D20:D31) -> 1532578 | E33: =IF(D33<>0,F33/D33,0) -> 3.78 | F33: =SUM(F20:F31) -> 5793144.84 | H33: =SUM(H20:H31) -> 1724327 | I33: =IF(H33<>0,J33/H33,0) -> 0.86 | J33: =SUM(J20:J31) -> 1482921.22 | L33: =SUM(L20:L31) -> 1724327 | M33: =IF(L33<>0,N33/L33,0) -> 2 | N33: =SUM(N20:N31) -> 3448654 | P33: =SUM(P20:P31) -> 4931575.22
B35: Hydro One | D35: Network | H35: Line Connection | L35: Transformation Connection | P35: Total Line
B37: Month | D37: Units Billed | E37: Rate | F37: Amount | H37: Units Billed | I37: Rate | J37: Amount | L37: Units Billed | M37: Rate | N37: Amount | P37: Amount
B39: January | D39: ='16. RTSR - Historical Wholesale'!D38 -> 12425 | E39: ='15. RTSR - UTRs & Sub-Tx'!I35+'15. RTSR - UTRs & Sub-Tx'!I79 -> 3.23 | F39: =D39*E39 -> 40132.75 | H39: ='16. RTSR - Historical Wholesale'!H38 -> 12425 | I39: ='15. RTSR - UTRs & Sub-Tx'!I37+'15. RTSR - UTRs & Sub-Tx'!I81 -> 0.65 | J39: =H39*I39 -> 8076.25 | L39: ='16. RTSR - Historical Wholesale'!L38 -> 12425 | M39: ='15. RTSR - UTRs & Sub-Tx'!I39 -> 1.62 | N39: =L39*M39 -> 20128.5 | P39: =J39+N39 -> 28204.75
B40: February | D40: ='16. RTSR - Historical Wholesale'!D39 -> 11091 | E40: =E39 -> 3.23 | F40: 35823.93 | H40: ='16. RTSR - Historical Wholesale'!H39 -> 11155 | I40: =I39 -> 0.65 | J40: 7250.75 | L40: ='16. RTSR - Historical Wholesale'!L39 -> 11155 | M40: =M39 -> 1.62 | N40: 18071.1 | P40: 25321.85
B41: March | D41: ='16. RTSR - Historical Wholesale'!D40 -> 11558 | E41: 3.23 | F41: 37332.34 | H41: ='16. RTSR - Historical Wholesale'!H40 -> 11558 | I41: 0.65 | J41: 7512.7 | L41: ='16. RTSR - Historical Wholesale'!L40 -> 11558 | M41: 1.62 | N41: 18723.96 | P41: 26236.66
B42: April | D42: ='16. RTSR - Historical Wholesale'!D41 -> 10697 | E42: 3.23 | F42: 34551.31 | H42: ='16. RTSR - Historical Wholesale'!H41 -> 10697 | I42: 0.65 | J42: 6953.05 | L42: ='16. RTSR - Historical Wholesale'!L41 -> 10697 | M42: 1.62 | N42: 17329.14 | P42: 24282.19
B43: May | D43: ='16. RTSR - Historical Wholesale'!D42 -> 10065 | E43: 3.23 | F43: 32509.95 | H43: ='16. RTSR - Historical Wholesale'!H42 -> 10714.83 | I43: 0.65 | J43: 6964.6395 | L43: ='16. RTSR - Historical Wholesale'!L42 -> 10714.83 | M43: 1.62 | N43: 17358.0246 | P43: 24322.6641
B44: June | D44: ='16. RTSR - Historical Wholesale'!D43 -> 12761.42 | E44: 3.23 | F44: 41219.3866 | H44: ='16. RTSR - Historical Wholesale'!H43 -> 12761.42 | I44: 0.65 | J44: 8294.923 | L44: ='16. RTSR - Historical Wholesale'!L43 -> 12761.42 | M44: 1.62 | N44: 20673.5004 | P44: 28968.4234
B45: July | D45: ='16. RTSR - Historical Wholesale'!D44 -> 14124.19 | E45: 3.23 | F45: 45621.1337 | H45: ='16. RTSR - Historical Wholesale'!H44 -> 14124.19 | I45: 0.65 | J45: 9180.7235 | L45: ='16. RTSR - Historical Wholesale'!L44 -> 14124.19 | M45: 1.62 | N45: 22881.1878 | P45: 32061.9113
B46: August | D46: ='16. RTSR - Historical Wholesale'!D45 -> 13771.95 | E46: 3.23 | F46: 44483.3985 | H46: ='16. RTSR - Historical Wholesale'!H45 -> 13771.95 | I46: 0.65 | J46: 8951.7675 | L46: ='16. RTSR - Historical Wholesale'!L45 -> 13771.95 | M46: 1.62 | N46: 22310.559 | P46: 31262.3265
B47: September | D47: ='16. RTSR - Historical Wholesale'!D46 -> 15167.16 | E47: 3.23 | F47: 48989.9268 | H47: ='16. RTSR - Historical Wholesale'!H46 -> 15167.16 | I47: 0.65 | J47: 9858.654 | L47: ='16. RTSR - Historical Wholesale'!L46 -> 15167.16 | M47: 1.62 | N47: 24570.7992 | P47: 34429.4532
B48: October | D48: ='16. RTSR - Historical Wholesale'!D47 -> 9909.16 | E48: 3.23 | F48: 32006.5868 | H48: ='16. RTSR - Historical Wholesale'!H47 -> 9909.16 | I48: 0.65 | J48: 6440.954 | L48: ='16. RTSR - Historical Wholesale'!L47 -> 9909.16 | M48: 1.62 | N48: 16052.8392 | P48: 22493.7932
B49: November | D49: ='16. RTSR - Historical Wholesale'!D48 -> 11164.82 | E49: 3.23 | F49: 36062.3686 | H49: ='16. RTSR - Historical Wholesale'!H48 -> 11164.82 | I49: 0.65 | J49: 7257.133 | L49: ='16. RTSR - Historical Wholesale'!L48 -> 11164.82 | M49: 1.62 | N49: 18087.0084 | P49: 25344.1414
B50: December | D50: ='16. RTSR - Historical Wholesale'!D49 -> 11323.56 | E50: 3.23 | F50: 36575.0988 | H50: ='16. RTSR - Historical Wholesale'!H49 -> 11345.81 | I50: 0.65 | J50: 7374.7765 | L50: ='16. RTSR - Historical Wholesale'!L49 -> 11345.81 | M50: 1.62 | N50: 18380.2122 | P50: 25754.9887
B52: Total | D52: =SUM(D39:D50) -> 144058.26 | E52: =IF(D52<>0,F52/D52,0) -> 3.23 | F52: =SUM(F39:F50) -> 465308.1798 | H52: =SUM(H39:H50) -> 144794.34 | I52: =IF(H52<>0,J52/H52,0) -> 0.65 | J52: =SUM(J39:J50) -> 94116.321 | L52: =SUM(L39:L50) -> 144794.34 | M52: =IF(L52<>0,N52/L52,0) -> 1.62 | N52: =SUM(N39:N50) -> 234566.8308 | P52: =SUM(P39:P50) -> 328683.1518
B54: ='16. RTSR - Historical Wholesale'!B53 -> Add Extra Host Here (I) | D54: Network | H54: Line Connection | L54: Transformation Connection | P54: Total Line
B56: Month | D56: Units Billed | E56: Rate | F56: Amount | H56: Units Billed | I56: Rate | J56: Amount | L56: Units Billed | M56: Rate | N56: Amount | P56: Amount
B58: January | D58: ='16. RTSR - Historical Wholesale'!D57 -> 0 | E58: ='15. RTSR - UTRs & Sub-Tx'!I50 -> 0 | F58: =D58*E58 -> 0 | H58: ='16. RTSR - Historical Wholesale'!H57 -> 0 | I58: ='15. RTSR - UTRs & Sub-Tx'!I52 -> 0 | J58: =H58*I58 -> 0 | L58: ='16. RTSR - Historical Wholesale'!L57 -> 0 | M58: ='15. RTSR - UTRs & Sub-Tx'!I54 -> 0 | N58: =L58*M58 -> 0 | P58: =J58+N58 -> 0
B59: February | D59: ='16. RTSR - Historical Wholesale'!D58 -> 0 | E59: =E58 -> 0 | F59: 0 | H59: ='16. RTSR - Historical Wholesale'!H58 -> 0 | I59: =I58 -> 0 | J59: 0 | L59: ='16. RTSR - Historical Wholesale'!L58 -> 0 | M59: =M58 -> 0 | N59: 0 | P59: 0
B60: March | D60: ='16. RTSR - Historical Wholesale'!D59 -> 0 | E60: 0 | F60: 0 | H60: ='16. RTSR - Historical Wholesale'!H59 -> 0 | I60: 0 | J60: 0 | L60: ='16. RTSR - Historical Wholesale'!L59 -> 0 | M60: 0 | N60: 0 | P60: 0
B61: April | D61: ='16. RTSR - Historical Wholesale'!D60 -> 0 | E61: 0 | F61: 0 | H61: ='16. RTSR - Historical Wholesale'!H60 -> 0 | I61: 0 | J61: 0 | L61: ='16. RTSR - Historical Wholesale'!L60 -> 0 | M61: 0 | N61: 0 | P61: 0
B62: May | D62: ='16. RTSR - Historical Wholesale'!D61 -> 0 | E62: 0 | F62: 0 | H62: ='16. RTSR - Historical Wholesale'!H61 -> 0 | I62: 0 | J62: 0 | L62: ='16. RTSR - Historical Wholesale'!L61 -> 0 | M62: 0 | N62: 0 | P62: 0
B63: June | D63: ='16. RTSR - Historical Wholesale'!D62 -> 0 | E63: 0 | F63: 0 | H63: ='16. RTSR - Historical Wholesale'!H62 -> 0 | I63: 0 | J63: 0 | L63: ='16. RTSR - Historical Wholesale'!L62 -> 0 | M63: 0 | N63: 0 | P63: 0
B64: July | D64: ='16. RTSR - Historical Wholesale'!D63 -> 0 | E64: 0 | F64: 0 | H64: ='16. RTSR - Historical Wholesale'!H63 -> 0 | I64: 0 | J64: 0 | L64: ='16. RTSR - Historical Wholesale'!L63 -> 0 | M64: 0 | N64: 0 | P64: 0
B65: August | D65: ='16. RTSR - Historical Wholesale'!D64 -> 0 | E65: 0 | F65: 0 | H65: ='16. RTSR - Historical Wholesale'!H64 -> 0 | I65: 0 | J65: 0 | L65: ='16. RTSR - Historical Wholesale'!L64 -> 0 | M65: 0 | N65: 0 | P65: 0
B66: September | D66: ='16. RTSR - Historical Wholesale'!D65 -> 0 | E66: 0 | F66: 0 | H66: ='16. RTSR - Historical Wholesale'!H65 -> 0 | I66: 0 | J66: 0 | L66: ='16. RTSR - Historical Wholesale'!L65 -> 0 | M66: 0 | N66: 0 | P66: 0
B67: October | D67: ='16. RTSR - Historical Wholesale'!D66 -> 0 | E67: 0 | F67: 0 | H67: ='16. RTSR - Historical Wholesale'!H66 -> 0 | I67: 0 | J67: 0 | L67: ='16. RTSR - Historical Wholesale'!L66 -> 0 | M67: 0 | N67: 0 | P67: 0
B68: November | D68: ='16. RTSR - Historical Wholesale'!D67 -> 0 | E68: 0 | F68: 0 | H68: ='16. RTSR - Historical Wholesale'!H67 -> 0 | I68: 0 | J68: 0 | L68: ='16. RTSR - Historical Wholesale'!L67 -> 0 | M68: 0 | N68: 0 | P68: 0
B69: December | D69: ='16. RTSR - Historical Wholesale'!D68 -> 0 | E69: 0 | F69: 0 | H69: ='16. RTSR - Historical Wholesale'!H68 -> 0 | I69: 0 | J69: 0 | L69: ='16. RTSR - Historical Wholesale'!L68 -> 0 | M69: 0 | N69: 0 | P69: 0
B71: Total | D71: =SUM(D58:D69) -> 0 | E71: =IF(D71<>0,F71/D71,0) -> 0 | F71: =SUM(F58:F69) -> 0 | H71: =SUM(H58:H69) -> 0 | I71: =IF(H71<>0,J71/H71,0) -> 0 | J71: =SUM(J58:J69) -> 0 | L71: =SUM(L58:L69) -> 0 | M71: =IF(L71<>0,N71/L71,0) -> 0 | N71: =SUM(N58:N69) -> 0 | P71: =SUM(P58:P69) -> 0
B73: ='16. RTSR - Historical Wholesale'!B72 -> Add Extra Host Here (II) | D73: Network | H73: Line Connection | L73: Transformation Connection | P73: Total Line
B75: Month | D75: Units Billed | E75: Rate | F75: Amount | H75: Units Billed | I75: Rate | J75: Amount | L75: Units Billed | M75: Rate | N75: Amount | P75: Amount
B77: January | D77: ='16. RTSR - Historical Wholesale'!D76 -> 0 | E77: ='15. RTSR - UTRs & Sub-Tx'!I65 -> 0 | F77: =D77*E77 -> 0 | H77: ='16. RTSR - Historical Wholesale'!H76 -> 0 | I77: ='15. RTSR - UTRs & Sub-Tx'!I67 -> 0 | J77: =H77*I77 -> 0 | L77: ='16. RTSR - Historical Wholesale'!L76 -> 0 | M77: ='15. RTSR - UTRs & Sub-Tx'!I69 -> 0 | N77: =L77*M77 -> 0 | P77: =J77+N77 -> 0
B78: February | D78: ='16. RTSR - Historical Wholesale'!D77 -> 0 | E78: =E77 -> 0 | F78: 0 | H78: ='16. RTSR - Historical Wholesale'!H77 -> 0 | I78: =I77 -> 0 | J78: 0 | L78: ='16. RTSR - Historical Wholesale'!L77 -> 0 | M78: =M77 -> 0 | N78: 0 | P78: 0
B79: March | D79: ='16. RTSR - Historical Wholesale'!D78 -> 0 | E79: 0 | F79: 0 | H79: ='16. RTSR - Historical Wholesale'!H78 -> 0 | I79: 0 | J79: 0 | L79: ='16. RTSR - Historical Wholesale'!L78 -> 0 | M79: 0 | N79: 0 | P79: 0
B80: April | D80: ='16. RTSR - Historical Wholesale'!D79 -> 0 | E80: 0 | F80: 0 | H80: ='16. RTSR - Historical Wholesale'!H79 -> 0 | I80: 0 | J80: 0 | L80: ='16. RTSR - Historical Wholesale'!L79 -> 0 | M80: 0 | N80: 0 | P80: 0
B81: May | D81: ='16. RTSR - Historical Wholesale'!D80 -> 0 | E81: 0 | F81: 0 | H81: ='16. RTSR - Historical Wholesale'!H80 -> 0 | I81: 0 | J81: 0 | L81: ='16. RTSR - Historical Wholesale'!L80 -> 0 | M81: 0 | N81: 0 | P81: 0
B82: June | D82: ='16. RTSR - Historical Wholesale'!D81 -> 0 | E82: 0 | F82: 0 | H82: ='16. RTSR - Historical Wholesale'!H81 -> 0 | I82: 0 | J82: 0 | L82: ='16. RTSR - Historical Wholesale'!L81 -> 0 | M82: 0 | N82: 0 | P82: 0
B83: July | D83: ='16. RTSR - Historical Wholesale'!D82 -> 0 | E83: 0 | F83: 0 | H83: ='16. RTSR - Historical Wholesale'!H82 -> 0 | I83: 0 | J83: 0 | L83: ='16. RTSR - Historical Wholesale'!L82 -> 0 | M83: 0 | N83: 0 | P83: 0
B84: August | D84: ='16. RTSR - Historical Wholesale'!D83 -> 0 | E84: 0 | F84: 0 | H84: ='16. RTSR - Historical Wholesale'!H83 -> 0 | I84: 0 | J84: 0 | L84: ='16. RTSR - Historical Wholesale'!L83 -> 0 | M84: 0 | N84: 0 | P84: 0
B85: September | D85: ='16. RTSR - Historical Wholesale'!D84 -> 0 | E85: 0 | F85: 0 | H85: ='16. RTSR - Historical Wholesale'!H84 -> 0 | I85: 0 | J85: 0 | L85: ='16. RTSR - Historical Wholesale'!L84 -> 0 | M85: 0 | N85: 0 | P85: 0
B86: October | D86: ='16. RTSR - Historical Wholesale'!D85 -> 0 | E86: 0 | F86: 0 | H86: ='16. RTSR - Historical Wholesale'!H85 -> 0 | I86: 0 | J86: 0 | L86: ='16. RTSR - Historical Wholesale'!L85 -> 0 | M86: 0 | N86: 0 | P86: 0
B87: November | D87: ='16. RTSR - Historical Wholesale'!D86 -> 0 | E87: 0 | F87: 0 | H87: ='16. RTSR - Historical Wholesale'!H86 -> 0 | I87: 0 | J87: 0 | L87: ='16. RTSR - Historical Wholesale'!L86 -> 0 | M87: 0 | N87: 0 | P87: 0
B88: December | D88: ='16. RTSR - Historical Wholesale'!D87 -> 0 | E88: 0 | F88: 0 | H88: ='16. RTSR - Historical Wholesale'!H87 -> 0 | I88: 0 | J88: 0 | L88: ='16. RTSR - Historical Wholesale'!L87 -> 0 | M88: 0 | N88: 0 | P88: 0
B90: Total | D90: =SUM(D77:D88) -> 0 | E90: =IF(D90<>0,F90/D90,0) -> 0 | F90: =SUM(F77:F88) -> 0 | H90: =SUM(H77:H88) -> 0 | I90: =IF(H90<>0,J90/H90,0) -> 0 | J90: =SUM(J77:J88) -> 0 | L90: =SUM(L77:L88) -> 0 | M90: =IF(L90<>0,N90/L90,0) -> 0 | N90: =SUM(N77:N88) -> 0 | P90: =SUM(P77:P88) -> 0
B92: Total | D92: Network | H92: Line Connection | L92: Transformation Connection | P92: Total Line
B94: Month | D94: Units Billed | E94: Rate | F94: Amount | H94: Units Billed | I94: Rate | J94: Amount | L94: Units Billed | M94: Rate | N94: Amount | P94: Amount
B96: January | D96: =D20+D39 -> 143310 | E96: =IF(D96<>0,F96/D96,0) -> 3.732314912 | F96: =F20+F39 -> 534878.05 | H96: =H20+H39 -> 156792 | I96: =IF(H96<>0,J96/H96,0) -> 0.8433585259 | J96: =J20+J39 -> 132231.87 | L96: =L20+L39 -> 156792 | M96: =IF(L96<>0,N96/L96,0) -> 1.969886856 | N96: =N20+N39 -> 308862.5 | P96: =J96+N96 -> 441094.37
B97: February | D97: 144416 | E97: 3.737760567 | F97: 539792.43 | H97: 151071 | I97: 0.8444937149 | J97: 127578.51 | L97: 151071 | M97: 1.971941008 | N97: 297903.1 | P97: 425481.61
B98: March | D98: 137077 | E98: 3.733625335 | F98: 511794.16 | H98: 139774 | I98: 0.8426349679 | J98: 117778.46 | L98: 139774 | M98: 1.968577561 | N98: 275155.96 | P98: 392934.42
B99: April | D99: 126592 | E99: 3.733525104 | F99: 472634.41 | H99: 132083 | I99: 0.8429927394 | J99: 111345.01 | L99: 132083 | M99: 1.969224957 | N99: 260101.14 | P99: 371446.15
B100: May | D100: 127639 | E100: 3.736629635 | F100: 476939.67 | H100: 146715.83 | I100: 0.8446634525 | J100: 123925.4995 | L100: 146715.83 | M100: 1.972248152 | N100: 289360.0246 | P100: 413285.5241
B101: June | D101: 138548.42 | E101: 3.729340592 | F101: 516694.2466 | H101: 170937.42 | I101: 0.8443223432 | J101: 144326.283 | L101: 170937.42 | M101: 1.971630907 | N101: 337025.5004 | P101: 481351.7834
B102: July | D102: 155015.19 | E102: 3.729886818 | F102: 578189.1137 | H102: 182651.19 | I102: 0.8437609604 | J102: 154113.9435 | L102: 182651.19 | M102: 1.970615071 | N102: 359935.1878 | P102: 514049.1313
B103: August | D103: 137486.95 | E103: 3.724906971 | F103: 512126.0985 | H103: 169314.95 | I103: 0.8429187588 | J103: 142718.7475 | L103: 169314.95 | M103: 1.969091087 | N103: 333396.559 | P103: 476115.3065
B104: September | D104: 156207.16 | E104: 3.726596955 | F104: 582121.1268 | H104: 183233.16 | I104: 0.8426172097 | J104: 154395.414 | L104: 183233.16 | M104: 1.968545427 | N104: 360702.7992 | P104: 515098.2132
B105: October | D105: 121388.16 | E105: 3.735102392 | F105: 453397.2068 | H105: 134006.16 | I105: 0.8444714333 | J105: 113164.374 | L105: 134006.16 | M105: 1.971900689 | N105: 264246.8392 | P105: 377411.2132
B106: November | D106: 141562.82 | E106: 3.736622431 | F106: 528966.8086 | H106: 147146.82 | I106: 0.8440661715 | J106: 124201.653 | L106: 147146.82 | M106: 1.971167358 | N106: 290051.0084 | P106: 414252.6614
B107: December | D107: 147393.56 | E107: 3.737746064 | F107: 550919.6988 | H107: 155395.81 | I107: 0.8446674109 | J107: 131257.7765 | L107: 155395.81 | M107: 1.972255315 | N107: 306480.2122 | P107: 437737.9887
B109: Total | D109: =SUM(D96:D107) -> 1676636.26 | E109: =IF(D109<>0,F109/D109,0) -> 3.732743451 | F109: =SUM(F96:F107) -> 6258453.02 | H109: =SUM(H96:H107) -> 1869121.34 | I109: =IF(H109<>0,J109/H109,0) -> 0.8437320292 | J109: =SUM(J96:J107) -> 1577037.541 | L109: =SUM(L96:L107) -> 1869121.34 | M109: =IF(L109<>0,N109/L109,0) -> 1.970562719 | N109: =SUM(N96:N107) -> 3683220.831 | P109: =SUM(P96:P107) -> 5260258.372
N111: Transformer Allowance Credit (if applicable) | P111: ='15. RTSR - UTRs & Sub-Tx'!I95 -> 0
N113: Total including deduction for Transformer Allowance Credit | P113: =P109+P111 -> 5260258.372

Sheet 19. RTSR Ntwrk to Curren WS
A13: The purpose of this sheet is to re-align the current RTS Network Rates to recover current wholesale network costs.
A16: Rate Class | B16: Rate Description | C16: Unit | E16: Current RTSR-Network | G16: Loss Adjusted Billed kWh | I16: Loss Adjusted Billed kW | K16: Billed Amount | M16: Billed Amount % | O16: Current Wholesale Billing | Q16: Proposed RTSR Network
A19: RESIDENTIAL | B19: Retail Transmission Rate - Network Service Rate | C19: $/kWh | E19: 0.0067 | G19: 266141482.4 | I19: 0 | K19: =IF(E19="", "", IF(C19="$/kWh", E19*G19, E19*I19)) -> 1783147.932 | M19: =IF(ISERROR(K19/SUM(K19:K100)),"",K19/SUM(K19:K100)) -> 0.2878468917 | O19: =IF(ISERROR('17. RTSR - Current Wholesale'!$F$109*M19), "", '17. RTSR - Current Wholesale'!$F$109*M19) -> 1825197.036 | Q19: =IF(C19="","",IF(C19="$/kWh",IF(G19<>0,O19/G19,),IF(I19<>0,O19/I19,0))) -> 0.006857995304
A20: GENERAL SERVICE LESS THAN 50 KW | B20: Retail Transmission Rate - Network Service Rate | C20: $/kWh | E20: 0.0063 | G20: 107632526.3 | I20: 0 | K20: 678084.9157 | M20: =IF(ISERROR(K20/SUM(K19:K100)),"",K20/SUM(K19:K100)) -> 0.1094607081 | O20: =IF(ISERROR('17. RTSR - Current Wholesale'!$F$109*M20), "", '17. RTSR - Current Wholesale'!$F$109*M20) -> 694075.0996 | Q20: 0.006448562748
A21: GENERAL SERVICE 50 TO 999 KW | B21: Retail Transmission Rate - Network Service Rate | C21: $/kW | E21: 2.5411 | G21: 0 | I21: 620368 | K21: 1576417.125 | M21: =IF(ISERROR(K21/SUM(K19:K100)),"",K21/SUM(K19:K100)) -> 0.2544751119 | O21: =IF(ISERROR('17. RTSR - Current Wholesale'!$F$109*M21), "", '17. RTSR - Current Wholesale'!$F$109*M21) -> 1613591.23 | Q21: 2.601022667
A22: GENERAL SERVICE 1,000 TO 4,999 KW | B22: Retail Transmission Rate - Network Service Rate | C22: $/kW | E22: 2.6989 | G22: 0 | I22: 341842 | K22: 922597.3738 | M22: =IF(ISERROR(K22/SUM(K19:K100)),"",K22/SUM(K19:K100)) -> 0.1489314384 | O22: =IF(ISERROR('17. RTSR - Current Wholesale'!$F$109*M22), "", '17. RTSR - Current Wholesale'!$F$109*M22) -> 944353.501 | Q22: 2.76254381
A23: LARGE USE | B23: Retail Transmission Rate - Network Service Rate - Interval Metered | C23: $/kW | E23: 2.9884 | G23: 0 | I23: 391850 | K23: 1171004.54 | M23: =IF(ISERROR(K23/SUM(K19:K100)),"",K23/SUM(K19:K100)) -> 0.1890308768 | O23: =IF(ISERROR('17. RTSR - Current Wholesale'!$F$109*M23), "", '17. RTSR - Current Wholesale'!$F$109*M23) -> 1198618.453 | Q23: 3.058870622
A24: UNMETERED SCATTERED LOAD | B24: Retail Transmission Rate - Network Service Rate | C24: $/kWh | E24: 0.0063 | G24: 2274931.395 | I24: 0 | K24: 14332.06779 | M24: =IF(ISERROR(K24/SUM(K19:K100)),"",K24/SUM(K19:K100)) -> 0.002313572021 | O24: =IF(ISERROR('17. RTSR - Current Wholesale'!$F$109*M24), "", '17. RTSR - Current Wholesale'!$F$109*M24) -> 14670.03785 | Q24: 0.006448562748
A25: SENTINEL LIGHTING | B25: Retail Transmission Rate - Network Service Rate | C25: $/kW | E25: 1.9261 | G25: 0 | I25: 1313 | K25: 2528.9693 | M25: =IF(ISERROR(K25/SUM(K19:K100)),"",K25/SUM(K19:K100)) -> 0.0004082420417 | O25: =IF(ISERROR('17. RTSR - Current Wholesale'!$F$109*M25), "", '17. RTSR - Current Wholesale'!$F$109*M25) -> 2588.605908 | Q25: 1.971520113
A26: STREET LIGHTING | B26: Retail Transmission Rate - Network Service Rate | C26: $/kW | E26: 1.9164 | G26: 0 | I26: 24351 | K26: 46666.2564 | M26: =IF(ISERROR(K26/SUM(K19:K100)),"",K26/SUM(K19:K100)) -> 0.007533158979 | O26: =IF(ISERROR('17. RTSR - Current Wholesale'!$F$109*M26), "", '17. RTSR - Current Wholesale'!$F$109*M26) -> 47766.71153 | Q26: 1.961591373

Sheet 20. RTSR Adj Conn to Current WS
A13: The purpose of this sheet is to re-align the current RTS Connection Rates to recover current wholesale connection costs.
A16: Rate Class | B16: Rate Description | C16: Unit | E16: Current RTSR-Connection | G16: Loss Adjusted Billed kWh | I16: Loss Adjusted Billed kW | K16: Billed Amount | M16: Billed Amount % | O16: Current Wholesale Billing | Q16: Proposed RTSR Connection
A19: RESIDENTIAL | B19: Retail Transmission Rate - Line and Transformation Connection Service Rate | C19: $/kWh | E19: 0.0057 | G19: 266141482.4 | I19: 0 | K19: =IF(E19="", "", IF(C19="$/kWh", E19*G19, E19*I19)) -> 1517006.449 | M19: =IF(ISERROR(K19/SUM(K19:K100)),"",K19/SUM(K19:K100)) -> 0.2959131563 | O19: =IF(ISERROR('17. RTSR - Current Wholesale'!$P$113*M19), "", '17. RTSR - Current Wholesale'!$P$113*M19) -> 1528822.46 | Q19: =IF(C19="","",IF(C19="$/kWh",IF(G19<>0,O19/G19,),IF(I19<>0,O19/I19,0))) -> 0.005744397477
A20: GENERAL SERVICE LESS THAN 50 KW | B20: Retail Transmission Rate - Line and Transformation Connection Service Rate | C20: $/kWh | E20: 0.005 | G20: 107632526.3 | I20: 0 | K20: 538162.6315 | M20: =IF(ISERROR(K20/SUM(K19:K100)),"",K20/SUM(K19:K100)) -> 0.1049760882 | O20: =IF(ISERROR('17. RTSR - Current Wholesale'!$P$113*M20), "", '17. RTSR - Current Wholesale'!$P$113*M20) -> 542354.397 | Q20: 0.005038945155
A21: GENERAL SERVICE 50 TO 999 KW | B21: Retail Transmission Rate - Line and Transformation Connection Service Rate | C21: $/kW | E21: 2.0066 | G21: 0 | I21: 622926 | K21: 1249963.312 | M21: =IF(ISERROR(K21/SUM(K19:K100)),"",K21/SUM(K19:K100)) -> 0.243822687 | O21: =IF(ISERROR('17. RTSR - Current Wholesale'!$P$113*M21), "", '17. RTSR - Current Wholesale'!$P$113*M21) -> 1259699.315 | Q21: 2.02222947
A22: GENERAL SERVICE 1,000 TO 4,999 KW | B22: Retail Transmission Rate - Line and Transformation Connection Service Rate | C22: $/kW | E22: 2.1997 | G22: 0 | I22: 350963 | K22: 772013.3111 | M22: =IF(ISERROR(K22/SUM(K19:K100)),"",K22/SUM(K19:K100)) -> 0.1505919079 | O22: =IF(ISERROR('17. RTSR - Current Wholesale'!$P$113*M22), "", '17. RTSR - Current Wholesale'!$P$113*M22) -> 778026.5468 | Q22: 2.216833532
A23: LARGE USE | B23: Retail Transmission Rate - Line and Transformation Connection Service Rate - Interval Metered | C23: $/kW | E23: 2.5155 | G23: 0 | I23: 396800 | K23: 998150.4 | M23: =IF(ISERROR(K23/SUM(K19:K100)),"",K23/SUM(K19:K100)) -> 0.1947030848 | O23: =IF(ISERROR('17. RTSR - Current Wholesale'!$P$113*M23), "", '17. RTSR - Current Wholesale'!$P$113*M23) -> 1005925.024 | Q23: 2.535093308
A24: UNMETERED SCATTERED LOAD | B24: Retail Transmission Rate - Line and Transformation Connection Service Rate | C24: $/kWh | E24: 0.005 | G24: 2274931.395 | I24: 0 | K24: 11374.65697 | M24: =IF(ISERROR(K24/SUM(K19:K100)),"",K24/SUM(K19:K100)) -> 0.002218784665 | O24: =IF(ISERROR('17. RTSR - Current Wholesale'!$P$113*M24), "", '17. RTSR - Current Wholesale'!$P$113*M24) -> 11463.25453 | Q24: 0.005038945155
A25: SENTINEL LIGHTING | B25: Retail Transmission Rate - Line and Transformation Connection Service Rate | C25: $/kW | E25: 1.5837 | G25: 0 | I25: 1313 | K25: 2079.3981 | M25: =IF(ISERROR(K25/SUM(K19:K100)),"",K25/SUM(K19:K100)) -> 0.0004056154508 | O25: =IF(ISERROR('17. RTSR - Current Wholesale'!$P$113*M25), "", '17. RTSR - Current Wholesale'!$P$113*M25) -> 2095.594596 | Q25: 1.596035489
A26: STREET LIGHTING | B26: Retail Transmission Rate - Line and Transformation Connection Service Rate | C26: $/kW | E26: 1.5513 | G26: 0 | I26: 24351 | K26: 37775.7063 | M26: =IF(ISERROR(K26/SUM(K19:K100)),"",K26/SUM(K19:K100)) -> 0.007368675648 | O26: =IF(ISERROR('17. RTSR - Current Wholesale'!$P$113*M26), "", '17. RTSR - Current Wholesale'!$P$113*M26) -> 38069.94245 | Q26: 1.563383124

Sheet 21. RTSR Adj Ntwk to Forcast WS
A13: The purpose of this sheet is to update the re-align RTS Network Rates to recover forecast wholesale network costs.
A16: Rate Class | B16: Rate Description | C16: Unit | E16: Adjusted RTSR-Network | G16: Loss Adjusted Billed kWh | I16: Loss Adjusted Billed kW | K16: Billed Amount | M16: Billed Amount % | O16: Forecast Wholesale Billing | Q16: Proposed RTSR Network
A19: RESIDENTIAL | B19: Retail Transmission Rate - Network Service Rate | C19: $/kWh | E19: 0.006857995304 | G19: 266141482.4 | I19: 0 | K19: =IF(E19="", "", IF(C19="$/kWh", E19*G19, E19*I19)) -> 1825197.036 | M19: =IF(ISERROR(K19/SUM(K19:K100)),"",K19/SUM(K19:K100)) -> 0.2878468917 | O19: =IF(ISERROR('18. RTSR - Forecast Wholesale'!$F$109*M19), "", '18. RTSR - Forecast Wholesale'!$F$109*M19) -> 1801476.249 | Q19: =IF(C19="","",IF(C19="$/kWh",IF(G19<>0,O19/G19,),IF(I19<>0,O19/I19,0))) -> 0.006768866818
A20: GENERAL SERVICE LESS THAN 50 KW | B20: Retail Transmission Rate - Network Service Rate | C20: $/kWh | E20: 0.006448562748 | G20: 107632526.3 | I20: 0 | K20: 694075.0996 | M20: =IF(ISERROR(K20/SUM(K19:K100)),"",K20/SUM(K19:K100)) -> 0.1094607081 | O20: =IF(ISERROR('18. RTSR - Forecast Wholesale'!$F$109*M20), "", '18. RTSR - Forecast Wholesale'!$F$109*M20) -> 685054.6994 | Q20: 0.006364755366
A21: GENERAL SERVICE 50 TO 999 KW | B21: Retail Transmission Rate - Network Service Rate | C21: $/kW | E21: 2.601022667 | G21: 0 | I21: 620368 | K21: 1613591.23 | M21: =IF(ISERROR(K21/SUM(K19:K100)),"",K21/SUM(K19:K100)) -> 0.2544751119 | O21: =IF(ISERROR('18. RTSR - Forecast Wholesale'!$F$109*M21), "", '18. RTSR - Forecast Wholesale'!$F$109*M21) -> 1592620.532 | Q21: 2.567219025
A22: GENERAL SERVICE 1,000 TO 4,999 KW | B22: Retail Transmission Rate - Network Service Rate | C22: $/kW | E22: 2.76254381 | G22: 0 | I22: 341842 | K22: 944353.501 | M22: =IF(ISERROR(K22/SUM(K19:K100)),"",K22/SUM(K19:K100)) -> 0.1489314384 | O22: =IF(ISERROR('18. RTSR - Forecast Wholesale'!$F$109*M22), "", '18. RTSR - Forecast Wholesale'!$F$109*M22) -> 932080.4104 | Q22: 2.726640993
A23: LARGE USE | B23: Retail Transmission Rate - Network Service Rate - Interval Metered | C23: $/kW | E23: 3.058870622 | G23: 0 | I23: 391850 | K23: 1198618.453 | M23: =IF(ISERROR(K23/SUM(K19:K100)),"",K23/SUM(K19:K100)) -> 0.1890308768 | O23: =IF(ISERROR('18. RTSR - Forecast Wholesale'!$F$109*M23), "", '18. RTSR - Forecast Wholesale'!$F$109*M23) -> 1183040.862 | Q23: 3.019116656
A24: UNMETERED SCATTERED LOAD | B24: Retail Transmission Rate - Network Service Rate | C24: $/kWh | E24: 0.006448562748 | G24: 2274931.395 | I24: 0 | K24: 14670.03785 | M24: =IF(ISERROR(K24/SUM(K19:K100)),"",K24/SUM(K19:K100)) -> 0.002313572021 | O24: =IF(ISERROR('18. RTSR - Forecast Wholesale'!$F$109*M24), "", '18. RTSR - Forecast Wholesale'!$F$109*M24) -> 14479.3818 | Q24: 0.006364755366
A25: SENTINEL LIGHTING | B25: Retail Transmission Rate - Network Service Rate | C25: $/kW | E25: 1.971520113 | G25: 0 | I25: 1313 | K25: 2588.605908 | M25: =IF(ISERROR(K25/SUM(K19:K100)),"",K25/SUM(K19:K100)) -> 0.0004082420417 | O25: =IF(ISERROR('18. RTSR - Forecast Wholesale'!$F$109*M25), "", '18. RTSR - Forecast Wholesale'!$F$109*M25) -> 2554.963639 | Q25: 1.945897668
A26: STREET LIGHTING | B26: Retail Transmission Rate - Network Service Rate | C26: $/kW | E26: 1.961591373 | G26: 0 | I26: 24351 | K26: 47766.71153 | M26: =IF(ISERROR(K26/SUM(K19:K100)),"",K26/SUM(K19:K100)) -> 0.007533158979 | O26: =IF(ISERROR('18. RTSR - Forecast Wholesale'!$F$109*M26), "", '18. RTSR - Forecast Wholesale'!$F$109*M26) -> 47145.92156 | Q26: 1.936097966

Sheet 22. RTSR Adj Conn. to Forcst WS
A13: The purpose of this sheet is to update the re-aligned RTS Connection Rates to recover forecast wholesale connection costs.
A16: Rate Class | B16: Rate Description | C16: Unit | E16: Adjusted RTSR-Connection | G16: Loss Adjusted Billed kWh | I16: Loss Adjusted Billed kW | K16: Billed Amount | M16: Billed Amount % | O16: Forecast Wholesale Billing | Q16: Proposed RTSR Connection
A19: RESIDENTIAL | B19: Retail Transmission Rate - Line and Transformation Connection Service Rate | C19: $/kWh | E19: 0.005744397477 | G19: 266141482.4 | I19: 0 | K19: =IF(E19="", "", IF(C19="$/kWh", E19*G19, E19*I19)) -> 1528822.46 | M19: =IF(ISERROR(K19/SUM(K19:K100)),"",K19/SUM(K19:K100)) -> 0.2959131563 | O19: =IF(ISERROR('18. RTSR - Forecast Wholesale'!$P$113*M19), "", '18. RTSR - Forecast Wholesale'!$P$113*M19) -> 1556579.658 | Q19: =IF(C19="","",IF(C19="$/kWh",IF(G19<>0,O19/G19,),IF(I19<>0,O19/I19,0))) -> 0.005848692372
A20: GENERAL SERVICE LESS THAN 50 KW | B20: Retail Transmission Rate - Line and Transformation Connection Service Rate | C20: $/kWh | E20: 0.005038945155 | G20: 107632526.3 | I20: 0 | K20: 542354.397 | M20: =IF(ISERROR(K20/SUM(K19:K100)),"",K20/SUM(K19:K100)) -> 0.1049760882 | O20: =IF(ISERROR('18. RTSR - Forecast Wholesale'!$P$113*M20), "", '18. RTSR - Forecast Wholesale'!$P$113*M20) -> 552201.3469 | Q20: 0.005130431905
A21: GENERAL SERVICE 50 TO 999 KW | B21: Retail Transmission Rate - Line and Transformation Connection Service Rate | C21: $/kW | E21: 2.02222947 | G21: 0 | I21: 622926 | K21: 1259699.315 | M21: =IF(ISERROR(K21/SUM(K19:K100)),"",K21/SUM(K19:K100)) -> 0.243822687 | O21: =IF(ISERROR('18. RTSR - Forecast Wholesale'!$P$113*M21), "", '18. RTSR - Forecast Wholesale'!$P$113*M21) -> 1282570.331 | Q21: 2.058944932
A22: GENERAL SERVICE 1,000 TO 4,999 KW | B22: Retail Transmission Rate - Line and Transformation Connection Service Rate | C22: $/kW | E22: 2.216833532 | G22: 0 | I22: 350963 | K22: 778026.5468 | M22: =IF(ISERROR(K22/SUM(K19:K100)),"",K22/SUM(K19:K100)) -> 0.1505919079 | O22: =IF(ISERROR('18. RTSR - Forecast Wholesale'!$P$113*M22), "", '18. RTSR - Forecast Wholesale'!$P$113*M22) -> 792152.3444 | Q22: 2.257082212
A23: LARGE USE | B23: Retail Transmission Rate - Line and Transformation Connection Service Rate - Interval Metered | C23: $/kW | E23: 2.535093308 | G23: 0 | I23: 396800 | K23: 1005925.024 | M23: =IF(ISERROR(K23/SUM(K19:K100)),"",K23/SUM(K19:K100)) -> 0.1947030848 | O23: =IF(ISERROR('18. RTSR - Forecast Wholesale'!$P$113*M23), "", '18. RTSR - Forecast Wholesale'!$P$113*M23) -> 1024188.532 | Q23: 2.581120291
A24: UNMETERED SCATTERED LOAD | B24: Retail Transmission Rate - Line and Transformation Connection Service Rate | C24: $/kWh | E24: 0.005038945155 | G24: 2274931.395 | I24: 0 | K24: 11463.25453 | M24: =IF(ISERROR(K24/SUM(K19:K100)),"",K24/SUM(K19:K100)) -> 0.002218784665 | O24: =IF(ISERROR('18. RTSR - Forecast Wholesale'!$P$113*M24), "", '18. RTSR - Forecast Wholesale'!$P$113*M24) -> 11671.38061 | Q24: 0.005130431905
A25: SENTINEL LIGHTING | B25: Retail Transmission Rate - Line and Transformation Connection Service Rate | C25: $/kW | E25: 1.596035489 | G25: 0 | I25: 1313 | K25: 2095.594596 | M25: =IF(ISERROR(K25/SUM(K19:K100)),"",K25/SUM(K19:K100)) -> 0.0004056154508 | O25: =IF(ISERROR('18. RTSR - Forecast Wholesale'!$P$113*M25), "", '18. RTSR - Forecast Wholesale'!$P$113*M25) -> 2133.642071 | Q25: 1.625013002
A26: STREET LIGHTING | B26: Retail Transmission Rate - Line and Transformation Connection Service Rate | C26: $/kW | E26: 1.563383124 | G26: 0 | I26: 24351 | K26: 38069.94245 | M26: =IF(ISERROR(K26/SUM(K19:K100)),"",K26/SUM(K19:K100)) -> 0.007368675648 | O26: =IF(ISERROR('18. RTSR - Forecast Wholesale'!$P$113*M26), "", '18. RTSR - Forecast Wholesale'!$P$113*M26) -> 38761.13777 | Q26: 1.591767803

Sheet 23. RTSR Final 2015 RTS Rates
A13: This sheet lists proposed RTSRs for all classes. No input required.
A16: Rate Class | B16: Rate Description | C16: Unit | E16: Proposed Retail Transmission Rate
A19: RESIDENTIAL | B19: Retail Transmission Rate - Network Service Rate | C19: $/kWh | E19: 0.006768866818
A20: RESIDENTIAL | B20: Retail Transmission Rate - Line and Transformation Connection Service Rate | C20: $/kWh | E20: 0.005848692372
A21: GENERAL SERVICE LESS THAN 50 KW | B21: Retail Transmission Rate - Network Service Rate | C21: $/kWh | E21: 0.006364755366
A22: GENERAL SERVICE LESS THAN 50 KW | B22: Retail Transmission Rate - Line and Transformation Connection Service Rate | C22: $/kWh | E22: 0.005130431905
A23: GENERAL SERVICE 50 TO 999 KW | B23: Retail Transmission Rate - Network Service Rate | C23: $/kW | E23: 2.567219025
A24: GENERAL SERVICE 50 TO 999 KW | B24: Retail Transmission Rate - Line and Transformation Connection Service Rate | C24: $/kW | E24: 2.058944932
A25: GENERAL SERVICE 1,000 TO 4,999 KW | B25: Retail Transmission Rate - Network Service Rate | C25: $/kW | E25: 2.726640993
A26: GENERAL SERVICE 1,000 TO 4,999 KW | B26: Retail Transmission Rate - Line and Transformation Connection Service Rate | C26: $/kW | E26: 2.257082212
A27: LARGE USE | B27: Retail Transmission Rate - Network Service Rate - Interval Metered | C27: $/kW | E27: 3.019116656
A28: LARGE USE | B28: Retail Transmission Rate - Line and Transformation Connection Service Rate - Interval Metered | C28: $/kW | E28: 2.581120291
A29: UNMETERED SCATTERED LOAD | B29: Retail Transmission Rate - Network Service Rate | C29: $/kWh | E29: 0.006364755366
A30: UNMETERED SCATTERED LOAD | B30: Retail Transmission Rate - Line and Transformation Connection Service Rate | C30: $/kWh | E30: 0.005130431905
A31: SENTINEL LIGHTING | B31: Retail Transmission Rate - Network Service Rate | C31: $/kW | E31: 1.945897668
A32: SENTINEL LIGHTING | B32: Retail Transmission Rate - Line and Transformation Connection Service Rate | C32: $/kW | E32: 1.625013002
A33: STREET LIGHTING | B33: Retail Transmission Rate - Network Service Rate | C33: $/kW | E33: 1.936097966
A34: STREET LIGHTING | B34: Retail Transmission Rate - Line and Transformation Connection Service Rate | C34: $/kW | E34: 1.591767803

Sheet 24. Rev2Cost_GDPIPI
Y1: FALSE | Z1: 0 | AC1: NO
Y2: TRUE
A12: If applicable, please enter any adjustments related to the revenue to cost ratio model into columns C and E. The Price Escalator and Stretch Factor have been set at the 2014 values and will be updated by Board staff at a later date.
A15: Price Escalator | B15: 0.016 | C15: Choose Stretch Factor Group | E15: III
A16: Productivity Factor | B16: 0 | C16: Associated Stretch Factor Value | E16: =IF(E15="I", 0%, IF(E15="II", 0.15%, IF(E15="III", 0.3%, IF(E15="IV", 0.45%, 0.6%)))) -> 0.003
A17: Price Cap Index | B17: =B15-B16-E16 -> 0.013
B19: Current MFC | C19: MFC Adjustment from R/C Model | D19: Current Volumetric Charge | E19: DVR Adjustment from R/C Model | F19: Price Cap Index to be Applied to MFC and DVR | G19: Proposed MFC | H19: Proposed Volumetric Charge
A20: Rate Class
A22: RESIDENTIAL | B22: 15.7 | D22: 0.0214 | F22: =$B$17 -> 0.013 | G22: =ROUND(SUM(B22,C22)*(1+F22),2) -> 15.9 | H22: =ROUND(SUM(D22,E22)*(1+F22),4) -> 0.0217
A23: GENERAL SERVICE LESS THAN 50 KW | B23: 26.97 | D23: 0.0189 | F23: 0.013 | G23: 27.32 | H23: 0.0191
A24: GENERAL SERVICE 50 TO 999 KW | B24: 143.99 | D24: 4.1847 | F24: 0.013 | G24: 145.86 | H24: 4.2391
A25: GENERAL SERVICE GREATER THAN 50 kW - WMP | F25: 0.013 | G25: 0 | H25: 0
A26: GENERAL SERVICE 1,000 TO 4,999 KW | B26: 3165.33 | D26: 1.7071 | F26: 0.013 | G26: 3206.48 | H26: 1.7293
A27: LARGE USE | B27: 24769.59 | D27: 1.8602 | F27: 0.013 | G27: 25091.59 | H27: 1.8844
A28: LARGE USE - WMP | F28: 0.013 | G28: 0 | H28: 0
A29: UNMETERED SCATTERED LOAD | B29: 12.12 | D29: 0.033 | F29: 0.013 | G29: 12.28 | H29: 0.0334
A30: SENTINEL LIGHTING | B30: 3.9 | D30: 25.7399 | F30: 0.013 | G30: 3.95 | H30: 26.0745
A31: STREET LIGHTING | B31: 2.43 | D31: 18.8258 | F31: 0.013 | G31: 2.46 | H31: 19.0705
A32: microFIT | B32: 5.4 | G32: 5.4

Sheet 24. hidden (hidden)
A1: Rate Class | B1: MFC Adjustment from R/C Model | C1: DVR Adjustment from R/C Model
A2: RESIDENTIAL | B2: 15.7 | D2: 0.0214
A3: GENERAL SERVICE LESS THAN 50 KW | B3: 26.97 | D3: 0.0189
A4: GENERAL SERVICE 50 TO 999 KW | B4: 143.99 | D4: 4.1847
A5: GENERAL SERVICE GREATER THAN 50 kW - WMP
A6: GENERAL SERVICE 1,000 TO 4,999 KW | B6: 3165.33 | D6: 1.7071
A7: LARGE USE | B7: 24769.59 | D7: 1.8602
A8: LARGE USE - WMP
A9: UNMETERED SCATTERED LOAD | B9: 12.12 | D9: 0.033
A10: SENTINEL LIGHTING | B10: 3.9 | D10: 25.7399

Sheet 25. Other Charges & LF
A11: Please enter the following charges as found on your most recent Board-Approved Tariff Schedule. The standard Allowance rates have been included as default entries. If you have different rates, please make the appropriate corrections in the applicable cells below. As well, please enter the current Specific Service Charges below. The standard Retail Service Charges have been entered below. If you have different rates, please make the appropriate corrections in columns A, C or D as applicable (cells are unlocked).
C13: UNIT | D13: RATE
A15: ALLOWANCES
A17: Transformer Allowance for Ownership - per kW of billing demand/month | C17: $/kW | D17: -0.6
A20: Primary Metering Allowance for transformer losses – applied to measured demand and energy | C20: % | D20: -1
A22: SPECIFIC SERVICE CHARGES
A24: APPLICATION
A26: The application of these rates and charges shall be in accordance with the Licence of the Distributor and any Code or Order of the Board, and amendments thereto as approved by the Board, which may be applicable to the administration of this schedule.
A27: No charges to meet the costs of any work or service done or furnished for the purpose of the distribution of electricity shall be made except as permitted by this schedule, unless required by the Distributor’s Licence or a Code or Order of the Board, and amendments thereto as approved by the Board, or as specified herein.
A28: It should be noted that this schedule does not list any charges, assessments or credits that are required by law to be invoiced by a distributor and that are not subject to Board approval, such as the Debt Retirement Charge, the Global Adjustment, the Ontario Clean Energy Benefit and the HST.
A30: Customer Administration
A31: Duplicate Invoices for previous billing | C31: $ | D31: 15
A32: Income Tax Letter | C32: $ | D32: 15
A33: Legal letter charge | C33: $ | D33: 15
A34: Account set up charge/change of occupancy charge (plus credit agency costs if applicable) | C34: $ | D34: 10
A35: Returned cheque (plus bank charges) | C35: $ | D35: 15
A36: Special meter reads | C36: $ | D36: 30
A37: Account History | C37: $ | D37: 15
A38: Meter dispute charge plus Measurement Canada fees (if meter found correct) | C38: $ | D38: 30
A67: Non-Payment of Account
A68: Late Payment – per month | C68: % | D68: 1.5
A69: Late Payment – per annum | C69: % | D69: 19.56
A70: Collection of account charge – no disconnection | C70: $ | D70: 30
A71: Disconnect/Reconnect at meter – during regular hours | C71: $ | D71: 65
A72: Disconnect/Reconnect Charge – At Meter – After Hours | C72: $ | D72: 185
A73: Specific Charge for Access to the Power Poles - $/pole/year | C73: $ | D73: 22.35
A116: RETAIL SERVICE CHARGES (if applicable)
A118: The application of these rates and charges shall be in accordance with the Licence of the Distributor and any Code or Order of the Board, and amendments thereto as approved by the Board, which may be applicable to the administration of this schedule.
A120: No rates and charges for the distribution of electricity and charges to meet the costs of any work or service done or furnished for the purpose of the distribution of electricity shall be made except as permitted by this schedule, unless required by the Distributor’s Licence or a Code or Order of the Board, and amendments thereto as approved by the Board, or as specified herein.
A122: Unless specifically noted, this schedule does not contain any charges for the electricity commodity, be it under the Regulated Price Plan, a contract with a retailer or the wholesale market price, as applicable.
A124: It should be noted that this schedule does not list any charges, assessments, or credits that are required by law to be invoiced by a distributor and that are not subject to Board approval, such as the Debt Retirement Charge, the Global Adjustment, the Ontario Clean Energy Benefit and the HST.
A126: Retail Service Charges refer to services provided by a distributor to retailers or customers related to the supply of competitive electricity.
A128: One-time charge, per retailer, to establish the service agreement between the distributor and the retailer | C128: $ | D128: 100
A129: Monthly Fixed Charge, per retailer | C129: $ | D129: 20
A130: Monthly Variable Charge, per customer, per retailer | C130: $/cust. | D130: 0.5
A131: Distributor-consolidated billing monthly charge, per customer, per retailer | C131: $/cust. | D131: 0.3
A132: Retailer-consolidated billing monthly credit, per customer, per retailer | C132: $/cust. | D132: -0.3
A133: Service Transaction Requests (STR)
A134: Request fee, per request, applied to the requesting party | C134: $ | D134: 0.25
A135: Processing fee, per request, applied to the requesting party | C135: $ | D135: 0.5
A136: Request for customer information as outlined in Section 10.6.3 and Chapter 11 of the Retail
A137: Settlement Code directly to retailers and customers, if not delivered electronically through the
A138: Electronic Business Transaction (EBT) system, applied to the requesting party
A139: Up to twice a year | C139: $ | D139: no charge
A140: More than twice a year, per request (plus incremental delivery costs) | C140: $ | D140: 2
A143: LOSS FACTORS
A145: If the distributor is not capable of prorating changed loss factors jointly with distribution rates, the revised loss factors will be implemented upon the first subsequent billing for each billing cycle.
A148: Total Loss Factor – Secondary Metered Customer < 5,000 kW | D148: 1.0421 | H148: TLF_Secondary_LT_5000kW
A149: Total Loss Factor – Secondary Metered Customer > 5,000 kW | D149: 1.017 | H149: TLF_Primary_LT_5000kW
A150: Total Loss Factor – Primary Metered Customer < 5,000 kW | D150: 1.0316
A151: Total Loss Factor – Primary Metered Customer > 5,000 kW | D151: 1.0069

Sheet 26. Proposed Rates
Z1: 3
L5: =ROUND(LEN(B5), -2) / 100 -> 0
L9: =ROUND(LEN(B9), -2) / 100 -> 0
B12: In the Green Cells below, enter any proposed rate riders that are not already included in this model (e.g: ICM rate riders). In column B, the rate rider descriptions must begin with "Rate Rider for". In column C, choose the associated unit from the drop-down menu. In column D, enter the rate. All rate riders with a "$" unit will be rounded to 2 decimal places and all others will be rounded to 4 decimal places.
A20: RESIDENTIAL | B20: RESIDENTIAL SERVICE CLASSIFICATION | C20: Unit | D20: Rate
A21: RESIDENTIAL
A22: RESIDENTIAL
A23: RESIDENTIAL
A24: RESIDENTIAL
A25: RESIDENTIAL
A26: RESIDENTIAL
A27: RESIDENTIAL
A28: RESIDENTIAL
A29: RESIDENTIAL
A30: RESIDENTIAL
A32: GENERAL SERVICE LESS THAN 50 KW | B32: GENERAL SERVICE LESS THAN 50 KW SERVICE CLASSIFICATION | C32: Unit | D32: Rate
A33: GENERAL SERVICE LESS THAN 50 KW
A34: GENERAL SERVICE LESS THAN 50 KW
A35: GENERAL SERVICE LESS THAN 50 KW
A36: GENERAL SERVICE LESS THAN 50 KW
A37: GENERAL SERVICE LESS THAN 50 KW
A38: GENERAL SERVICE LESS THAN 50 KW
A39: GENERAL SERVICE LESS THAN 50 KW
A40: GENERAL SERVICE LESS THAN 50 KW
A41: GENERAL SERVICE LESS THAN 50 KW
A42: GENERAL SERVICE LESS THAN 50 KW
A44: GENERAL SERVICE 50 TO 999 KW | B44: GENERAL SERVICE 50 TO 999 KW SERVICE CLASSIFICATION | C44: Unit | D44: Rate
A45: GENERAL SERVICE 50 TO 999 KW
A46: GENERAL SERVICE 50 TO 999 KW
A47: GENERAL SERVICE 50 TO 999 KW
A48: GENERAL SERVICE 50 TO 999 KW
A49: GENERAL SERVICE 50 TO 999 KW
A50: GENERAL SERVICE 50 TO 999 KW
A51: GENERAL SERVICE 50 TO 999 KW
A52: GENERAL SERVICE 50 TO 999 KW
A53: GENERAL SERVICE 50 TO 999 KW
A54: GENERAL SERVICE 50 TO 999 KW
A56: GENERAL SERVICE GREATER THAN 50 KW - WMP | B56: GENERAL SERVICE GREATER THAN 50 KW - WMP SERVICE CLASSIFICATION | C56: Unit | D56: Rate
A57: GENERAL SERVICE GREATER THAN 50 KW - WMP
A58: GENERAL SERVICE GREATER THAN 50 KW - WMP
A59: GENERAL SERVICE GREATER THAN 50 KW - WMP
A60: GENERAL SERVICE GREATER THAN 50 KW - WMP
A61: GENERAL SERVICE GREATER THAN 50 KW - WMP
A62: GENERAL SERVICE GREATER THAN 50 KW - WMP
A63: GENERAL SERVICE GREATER THAN 50 KW - WMP
A64: GENERAL SERVICE GREATER THAN 50 KW - WMP
A65: GENERAL SERVICE GREATER THAN 50 KW - WMP
A66: GENERAL SERVICE GREATER THAN 50 KW - WMP
A68: GENERAL SERVICE 1,000 TO 4,999 KW | B68: GENERAL SERVICE 1,000 TO 4,999 KW SERVICE CLASSIFICATION | C68: Unit | D68: Rate
A69: GENERAL SERVICE 1,000 TO 4,999 KW
A70: GENERAL SERVICE 1,000 TO 4,999 KW
A71: GENERAL SERVICE 1,000 TO 4,999 KW
A72: GENERAL SERVICE 1,000 TO 4,999 KW
A73: GENERAL SERVICE 1,000 TO 4,999 KW
A74: GENERAL SERVICE 1,000 TO 4,999 KW
A75: GENERAL SERVICE 1,000 TO 4,999 KW
A76: GENERAL SERVICE 1,000 TO 4,999 KW
A77: GENERAL SERVICE 1,000 TO 4,999 KW
A78: GENERAL SERVICE 1,000 TO 4,999 KW
A80: LARGE USE | B80: LARGE USE SERVICE CLASSIFICATION | C80: Unit | D80: Rate
A81: LARGE USE
A82: LARGE USE
A83: LARGE USE
A84: LARGE USE
A85: LARGE USE
A86: LARGE USE
A87: LARGE USE
A88: LARGE USE
A89: LARGE USE
A90: LARGE USE
A92: LARGE USE - WMP | B92: LARGE USE - WMP SERVICE CLASSIFICATION | C92: Unit | D92: Rate
A93: LARGE USE - WMP
A94: LARGE USE - WMP
A95: LARGE USE - WMP
A96: LARGE USE - WMP
A97: LARGE USE - WMP
A98: LARGE USE - WMP
A99: LARGE USE - WMP
A100: LARGE USE - WMP
A101: LARGE USE - WMP
A102: LARGE USE - WMP
A104: UNMETERED SCATTERED LOAD | B104: UNMETERED SCATTERED LOAD SERVICE CLASSIFICATION | C104: Unit | D104: Rate
A105: UNMETERED SCATTERED LOAD
A106: UNMETERED SCATTERED LOAD
A107: UNMETERED SCATTERED LOAD
A108: UNMETERED SCATTERED LOAD
A109: UNMETERED SCATTERED LOAD
A110: UNMETERED SCATTERED LOAD
A111: UNMETERED SCATTERED LOAD
A112: UNMETERED SCATTERED LOAD
A113: UNMETERED SCATTERED LOAD
A114: UNMETERED SCATTERED LOAD
A116: SENTINEL LIGHTING | B116: SENTINEL LIGHTING SERVICE CLASSIFICATION | C116: Unit | D116: Rate
A117: SENTINEL LIGHTING
A118: SENTINEL LIGHTING
A119: SENTINEL LIGHTING
A120: SENTINEL LIGHTING
A121: SENTINEL LIGHTING
A122: SENTINEL LIGHTING
A123: SENTINEL LIGHTING
A124: SENTINEL LIGHTING
A125: SENTINEL LIGHTING
A126: SENTINEL LIGHTING
A128: STREET LIGHTING | B128: STREET LIGHTING SERVICE CLASSIFICATION | C128: Unit | D128: Rate
A129: STREET LIGHTING
A130: STREET LIGHTING
A131: STREET LIGHTING
A132: STREET LIGHTING
A133: STREET LIGHTING
A134: STREET LIGHTING
A135: STREET LIGHTING
A136: STREET LIGHTING
A137: STREET LIGHTING
A138: STREET LIGHTING
A140: microFIT | B140: microFIT SERVICE CLASSIFICATION | C140: Unit | D140: Rate
A141: microFIT
A142: microFIT
A143: microFIT
A144: microFIT
A145: microFIT
A146: microFIT
A147: microFIT
A148: microFIT
A149: microFIT
A150: microFIT
B154: PROPOSED MONTHLY RATES AND CHARGES - Regulatory Component
A156: Wholesale Market Service Rate | B156: Wholesale Market Service Rate | C156: $/kWh | D156: 0.0044
A157: Rural or Remote Electricity Rate Protection Charge (RRRP) | B157: Rural or Remote Electricity Rate Protection Charge (RRRP) | C157: $/kWh | D157: 0.0013
A158: Standard Supply Service - Administrative Charge (if applicable) | B158: Standard Supply Service - Administrative Charge (if applicable) | C158: $ | D158: 0.25

Sheet 26. Hidden (hidden)
A1: RESIDENTIAL | B1: RESIDENTIAL SERVICE CLASSIFICATION | C1: Unit | D1: Rate
A2: RESIDENTIAL
A3: RESIDENTIAL
A4: RESIDENTIAL
A5: RESIDENTIAL
A6: RESIDENTIAL
A7: RESIDENTIAL
A8: RESIDENTIAL
A9: RESIDENTIAL
A10: RESIDENTIAL
A11: RESIDENTIAL
A13: GENERAL SERVICE LESS THAN 50 KW | B13: GENERAL SERVICE LESS THAN 50 KW SERVICE CLASSIFICATION | C13: Unit | D13: Rate
A14: GENERAL SERVICE LESS THAN 50 KW
A15: GENERAL SERVICE LESS THAN 50 KW
A16: GENERAL SERVICE LESS THAN 50 KW
A17: GENERAL SERVICE LESS THAN 50 KW
A18: GENERAL SERVICE LESS THAN 50 KW
A19: GENERAL SERVICE LESS THAN 50 KW
A20: GENERAL SERVICE LESS THAN 50 KW
A21: GENERAL SERVICE LESS THAN 50 KW
A22: GENERAL SERVICE LESS THAN 50 KW
A23: GENERAL SERVICE LESS THAN 50 KW
A25: GENERAL SERVICE 50 TO 999 KW | B25: GENERAL SERVICE 50 TO 999 KW SERVICE CLASSIFICATION | C25: Unit | D25: Rate
A26: GENERAL SERVICE 50 TO 999 KW
A27: GENERAL SERVICE 50 TO 999 KW
A28: GENERAL SERVICE 50 TO 999 KW
A29: GENERAL SERVICE 50 TO 999 KW
A30: GENERAL SERVICE 50 TO 999 KW
A31: GENERAL SERVICE 50 TO 999 KW
A32: GENERAL SERVICE 50 TO 999 KW
A33: GENERAL SERVICE 50 TO 999 KW
A34: GENERAL SERVICE 50 TO 999 KW
A35: GENERAL SERVICE 50 TO 999 KW
A37: GENERAL SERVICE GREATER THAN 50 KW - WMP | B37: GENERAL SERVICE GREATER THAN 50 KW - WMP SERVICE CLASSIFICATION | C37: Unit | D37: Rate
A38: GENERAL SERVICE GREATER THAN 50 KW - WMP
A39: GENERAL SERVICE GREATER THAN 50 KW - WMP
A40: GENERAL SERVICE GREATER THAN 50 KW - WMP
A41: GENERAL SERVICE GREATER THAN 50 KW - WMP
A42: GENERAL SERVICE GREATER THAN 50 KW - WMP
A43: GENERAL SERVICE GREATER THAN 50 KW - WMP
A44: GENERAL SERVICE GREATER THAN 50 KW - WMP
A45: GENERAL SERVICE GREATER THAN 50 KW - WMP
A46: GENERAL SERVICE GREATER THAN 50 KW - WMP
A47: GENERAL SERVICE GREATER THAN 50 KW - WMP
A49: GENERAL SERVICE 1,000 TO 4,999 KW | B49: GENERAL SERVICE 1,000 TO 4,999 KW SERVICE CLASSIFICATION | C49: Unit | D49: Rate
A50: GENERAL SERVICE 1,000 TO 4,999 KW
A51: GENERAL SERVICE 1,000 TO 4,999 KW
A52: GENERAL SERVICE 1,000 TO 4,999 KW
A53: GENERAL SERVICE 1,000 TO 4,999 KW
A54: GENERAL SERVICE 1,000 TO 4,999 KW
A55: GENERAL SERVICE 1,000 TO 4,999 KW
A56: GENERAL SERVICE 1,000 TO 4,999 KW
A57: GENERAL SERVICE 1,000 TO 4,999 KW
A58: GENERAL SERVICE 1,000 TO 4,999 KW
A59: GENERAL SERVICE 1,000 TO 4,999 KW
A61: LARGE USE | B61: LARGE USE SERVICE CLASSIFICATION | C61: Unit | D61: Rate
A62: LARGE USE
A63: LARGE USE
A64: LARGE USE
A65: LARGE USE
A66: LARGE USE
A67: LARGE USE
A68: LARGE USE
A69: LARGE USE
A70: LARGE USE
A71: LARGE USE
A73: LARGE USE - WMP | B73: LARGE USE - WMP SERVICE CLASSIFICATION | C73: Unit | D73: Rate
A74: LARGE USE - WMP
A75: LARGE USE - WMP
A76: LARGE USE - WMP
A77: LARGE USE - WMP
A78: LARGE USE - WMP
A79: LARGE USE - WMP
A80: LARGE USE - WMP
A81: LARGE USE - WMP
A82: LARGE USE - WMP
A83: LARGE USE - WMP
A85: UNMETERED SCATTERED LOAD | B85: UNMETERED SCATTERED LOAD SERVICE CLASSIFICATION | C85: Unit | D85: Rate
A86: UNMETERED SCATTERED LOAD
A87: UNMETERED SCATTERED LOAD
A88: UNMETERED SCATTERED LOAD
A89: UNMETERED SCATTERED LOAD
A90: UNMETERED SCATTERED LOAD
A91: UNMETERED SCATTERED LOAD
A92: UNMETERED SCATTERED LOAD
A93: UNMETERED SCATTERED LOAD
A94: UNMETERED SCATTERED LOAD
A95: UNMETERED SCATTERED LOAD
A97: SENTINEL LIGHTING | B97: SENTINEL LIGHTING SERVICE CLASSIFICATION | C97: Unit | D97: Rate
A98: SENTINEL LIGHTING
A99: SENTINEL LIGHTING
A100: SENTINEL LIGHTING
A101: SENTINEL LIGHTING
A102: SENTINEL LIGHTING
A103: SENTINEL LIGHTING
A104: SENTINEL LIGHTING
A105: SENTINEL LIGHTING
A106: SENTINEL LIGHTING
A107: SENTINEL LIGHTING
A109: STREET LIGHTING | B109: STREET LIGHTING SERVICE CLASSIFICATION | C109: Unit | D109: Rate
A110: STREET LIGHTING
A111: STREET LIGHTING
A112: STREET LIGHTING
A113: STREET LIGHTING
A114: STREET LIGHTING
A115: STREET LIGHTING
A116: STREET LIGHTING
A117: STREET LIGHTING
A118: STREET LIGHTING
A119: STREET LIGHTING
A121: microFIT | B121: microFIT SERVICE CLASSIFICATION | C121: Unit | D121: Rate
A122: microFIT
A123: microFIT
A124: microFIT
A125: microFIT
A126: microFIT
A127: microFIT
A128: microFIT
A129: microFIT
A130: microFIT
A131: microFIT
B135: PROPOSED MONTHLY RATES AND CHARGES - Regulatory Component
A137: Wholesale Market Service Rate | B137: Wholesale Market Service Rate | C137: $/kWh | D137: 0.0044
A138: Rural or Remote Electricity Rate Protection Charge (RRRP) | B138: Rural or Remote Electricity Rate Protection Charge (RRRP) | C138: $/kWh | D138: 0.0013
A139: Standard Supply Service - Administrative Charge (if applicable) | B139: Standard Supply Service - Administrative Charge (if applicable) | C139: $ | D139: 0.25

Sheet 27. Final Tariff Schedule
A1: hidden column | B1: ='1. Information Sheet'!F14 -> Bluewater Power Distribution Corporation | F1: hidden column | Z1: 3
A2: for rate classes | B2: TARIFF OF RATES AND CHARGES | F2: for proposed
B3: ="Effective and Implementation Date " & TEXT('1. Information Sheet'!F26, "mmmm dd, yyyy") -> Effective and Implementation Date May 01, 2015 | F3: labeliing
B5: This schedule supersedes and replaces all previously
B6: approved schedules of Rates, Charges and Loss Factors | L6: =ROUND(LEN(B6), -2) / 100 -> 1
B7: =IF(LEN('1. Information Sheet'!F18)=0, "Please enter your assigned EB# on Sheet 1", '1. Information Sheet'!F18) -> EB-2014-0057
B9: RESIDENTIAL SERVICE CLASSIFICATION
B11: All service supplied to single-family dwelling units for domestic or household purposes shall be classed as residential service. Where electricity service is provided for combined residential and business purposes (including agricultural usage) and the wiring does not provide for separate metering, the classification shall be in the discretion of Bluewater Power Distribution Corporation (“Bluewater Power”) and shall be based on such considerations as the estimated predominant consumption or the municipal tax roll classification. A residential customer may be found in a detached, semi-detached, linear row housing, apartment building or mixed-use building. Where more than one dwelling is served by a single meter, that service shall be considered a General Service Customer. Further servicing details are available in the distributor’s Conditions of Service. | L11: =ROUND(LEN(B11), -2) / 100 -> 9
B13: APPLICATION
B15: The application of these rates and charges shall be in accordance with the Licence of the Distributor and any Code or Order of the Board, and amendments thereto as approved by the Board, which may be applicable to the administration of this schedule. | L15: =ROUND(LEN(B15), -2) / 100 -> 3
B17: No rates and charges for the distribution of electricity and charges to meet the costs of any work or service done or furnished for the purpose of the distribution of electricity shall be made except as permitted by this schedule, unless required by the Distributor’s Licence or a Code or Order of the Board, and amendments thereto as approved by the Board, or as specified herein. | L17: =ROUND(LEN(B17), -2) / 100 -> 4
B19: Unless specifically noted, this schedule does not contain any charges for the electricity commodity, be it under the Regulated Price Plan, a contract with a retailer or the wholesale market price, as applicable. In addition, the charges in the MONTHLY RATES AND CHARGES – Regulatory Component of this schedule do not apply to a customer that is an embedded wholesale market participant. | L19: =ROUND(LEN(B19), -2) / 100 -> 4
B21: It should be noted that this schedule does not list any charges, assessments or credits that are required by law to be invoiced by a distributor and that are not subject to Board approval, such as the Debt Retirement Charge, the Global Adjustment, the Ontario Clean Energy Benefit and the HST. | L21: =ROUND(LEN(B21), -2) / 100 -> 3
B23: MONTHLY RATES AND CHARGES - Delivery Component
A25: RESIDENTIAL | B25: Service Charge | D25: $ | E25: 15.9 | K25: 1_P_MSC
A26: RESIDENTIAL | B26: Rate Rider for Smart Metering Entity Charge - effective until October 31, 2018 | D26: $ | E26: 0.79 | K26: 1_P_SMEC
A27: RESIDENTIAL | B27: Distribution Volumetric Rate | D27: $/kWh | E27: 0.0217 | K27: 1_P_VC_1
A28: RESIDENTIAL | B28: Low Voltage Service Rate | D28: $/kWh | E28: 0.0002 | K28: 1_P_LVrate
A29: RESIDENTIAL | B29: Rate Rider for Disposition of Deferral/Variance Accounts (2015) - effective until April 30, 2016 | D29: $/kWh | E29: -0.0016 | K29: 1_P_VC_DEFVAR_kWh_1
A30: RESIDENTIAL | B30: Rate Rider for Disposition of Global Adjustment Account (2015) - effective until April 30, 2016 Applicable only for Non RPP Customers | D30: $/kWh | E30: 0.0024 | K30: 1_P_VC_GA_Rate_Rider_kWh_1
A31: RESIDENTIAL | B31: Retail Transmission Rate - Network Service Rate | D31: $/kWh | E31: 0.006768866818 | K31: 1_P_RTSR_Network
A32: RESIDENTIAL | B32: Retail Transmission Rate - Line and Transformation Connection Service Rate | D32: $/kWh | E32: 0.005848692372 | K32: 1_P_RTSR_Connection
A33: RESIDENTIAL
A34: RESIDENTIAL | B34: MONTHLY RATES AND CHARGES - Regulatory Component
A35: RESIDENTIAL
A36: RESIDENTIAL | B36: Wholesale Market Service Rate | D36: $/kWh | E36: 0.0044 | K36: 1_P_WMSR
A37: RESIDENTIAL | B37: Rural or Remote Electricity Rate Protection Charge (RRRP) | D37: $/kWh | E37: 0.0013 | K37: 1_P_RRPC
A38: RESIDENTIAL | B38: Standard Supply Service - Administrative Charge (if applicable) | D38: $ | E38: 0.25 | K38: 1_P_SSS
B40: GENERAL SERVICE LESS THAN 50 KW SERVICE CLASSIFICATION
B42: This classification applies to a customer not designated as Residential, and that over a twelve month period has, or a new customer forecast to have, an average monthly peak demand less than 50 kW, and has a monthly peak demand that never exceeds 100 kW. Bluewater Power shall review this rate class designation on an annual basis and the customer's designated rate class may change as a result. Further servicing details are available in the distributor’s Conditions of Service. | L42: =ROUND(LEN(B42), -2) / 100 -> 5
B44: APPLICATION
B46: The application of these rates and charges shall be in accordance with the Licence of the Distributor and any Code or Order of the Board, and amendments thereto as approved by the Board, which may be applicable to the administration of this schedule. | L46: =ROUND(LEN(B46), -2) / 100 -> 3
B48: No rates and charges for the distribution of electricity and charges to meet the costs of any work or service done or furnished for the purpose of the distribution of electricity shall be made except as permitted by this schedule, unless required by the Distributor’s Licence or a Code or Order of the Board, and amendments thereto as approved by the Board, or as specified herein. | L48: =ROUND(LEN(B48), -2) / 100 -> 4
B50: Unless specifically noted, this schedule does not contain any charges for the electricity commodity, be it under the Regulated Price Plan, a contract with a retailer or the wholesale market price, as applicable. In addition, the charges in the MONTHLY RATES AND CHARGES – Regulatory Component of this schedule do not apply to a customer that is an embedded wholesale market participant. | L50: =ROUND(LEN(B50), -2) / 100 -> 4
B52: It should be noted that this schedule does not list any charges, assessments or credits that are required by law to be invoiced by a distributor and that are not subject to Board approval, such as the Debt Retirement Charge, the Global Adjustment, the Ontario Clean Energy Benefit and the HST. | L52: =ROUND(LEN(B52), -2) / 100 -> 3
B54: MONTHLY RATES AND CHARGES - Delivery Component
A56: GENERAL SERVICE LESS THAN 50 KW | B56: Service Charge | D56: $ | E56: 27.32 | K56: 2_P_MSC
A57: GENERAL SERVICE LESS THAN 50 KW | B57: Rate Rider for Recovery of Stranded Meter Assets - effective until April 30, 2017 | D57: $ | E57: 4.66 | K57: 2_P_MSC_Rate_Rider_1
A58: GENERAL SERVICE LESS THAN 50 KW | B58: Rate Rider for Smart Metering Entity Charge - effective until October 31, 2018 | D58: $ | E58: 0.79 | K58: 2_P_SMEC
A59: GENERAL SERVICE LESS THAN 50 KW | B59: Distribution Volumetric Rate | D59: $/kWh | E59: 0.0191 | K59: 2_P_VC_1
A60: GENERAL SERVICE LESS THAN 50 KW | B60: Low Voltage Service Rate | D60: $/kWh | E60: 0.0002 | K60: 2_P_LVrate
A61: GENERAL SERVICE LESS THAN 50 KW | B61: Rate Rider for Disposition of Deferral/Variance Accounts (2015) - effective until April 30, 2016 | D61: $/kWh | E61: -0.0017 | K61: 2_P_VC_DEFVAR_kWh_1
A62: GENERAL SERVICE LESS THAN 50 KW | B62: Rate Rider for Disposition of Global Adjustment Account (2015) - effective until April 30, 2016 Applicable only for Non RPP Customers | D62: $/kWh | E62: 0.0024 | K62: 2_P_VC_GA_Rate_Rider_kWh_1
A63: GENERAL SERVICE LESS THAN 50 KW | B63: Retail Transmission Rate - Network Service Rate | D63: $/kWh | E63: 0.006364755366 | K63: 2_P_RTSR_Network
A64: GENERAL SERVICE LESS THAN 50 KW | B64: Retail Transmission Rate - Line and Transformation Connection Service Rate | D64: $/kWh | E64: 0.005130431905 | K64: 2_P_RTSR_Connection
A65: GENERAL SERVICE LESS THAN 50 KW
A66: GENERAL SERVICE LESS THAN 50 KW | B66: MONTHLY RATES AND CHARGES - Regulatory Component
A67: GENERAL SERVICE LESS THAN 50 KW
A68: GENERAL SERVICE LESS THAN 50 KW | B68: Wholesale Market Service Rate | D68: $/kWh | E68: 0.0044 | K68: 2_P_WMSR
A69: GENERAL SERVICE LESS THAN 50 KW | B69: Rural or Remote Electricity Rate Protection Charge (RRRP) | D69: $/kWh | E69: 0.0013 | K69: 2_P_RRPC
A70: GENERAL SERVICE LESS THAN 50 KW | B70: Standard Supply Service - Administrative Charge (if applicable) | D70: $ | E70: 0.25 | K70: 2_P_SSS
B72: GENERAL SERVICE 50 TO 999 KW SERVICE CLASSIFICATION
B74: This classification applies to a customer not designated as Residential, and that over a twelve month period has, or a new customer forecast to have, an average monthly peak demand equal to or greater than 50 kW and less than 1,000 kW. This rate class designation is reviewed on an annual basis and the customer's designated rate class may change as a result. Further servicing details are available in the distributor’s Conditions of Service. | L74: =ROUND(LEN(B74), -2) / 100 -> 4
B76: APPLICATION
B78: The application of these rates and charges shall be in accordance with the Licence of the Distributor and any Code or Order of the Board, and amendments thereto as approved by the Board, which may be applicable to the administration of this schedule. | L78: =ROUND(LEN(B78), -2) / 100 -> 3
B80: No rates and charges for the distribution of electricity and charges to meet the costs of any work or service done or furnished for the purpose of the distribution of electricity shall be made except as permitted by this schedule, unless required by the Distributor’s Licence or a Code or Order of the Board, and amendments thereto as approved by the Board, or as specified herein. | L80: =ROUND(LEN(B80), -2) / 100 -> 4
B82: Unless specifically noted, this schedule does not contain any charges for the electricity commodity, be it under the Regulated Price Plan, a contract with a retailer or the wholesale market price, as applicable. In addition, the charges in the MONTHLY RATES AND CHARGES – Regulatory Component of this schedule do not apply to a customer that is an embedded wholesale market participant. | L82: =ROUND(LEN(B82), -2) / 100 -> 4
B84: It should be noted that this schedule does not list any charges, assessments or credits that are required by law to be invoiced by a distributor and that are not subject to Board approval, such as the Debt Retirement Charge, the Global Adjustment, the Ontario Clean Energy Benefit and the HST. | L84: =ROUND(LEN(B84), -2) / 100 -> 3
B86: MONTHLY RATES AND CHARGES - Delivery Component
A88: GENERAL SERVICE 50 TO 999 KW | B88: Service Charge | D88: $ | E88: 145.86 | K88: 3_P_MSC
A89: GENERAL SERVICE 50 TO 999 KW | B89: Distribution Volumetric Rate | D89: $/kW | E89: 4.2391 | K89: 3_P_VC_1
A90: GENERAL SERVICE 50 TO 999 KW | B90: Low Voltage Service Rate | D90: $/kW | E90: 0.0748 | K90: 3_P_LVrate
A91: GENERAL SERVICE 50 TO 999 KW | B91: Rate Rider for Disposition of Deferral/Variance Accounts (2015) - effective until April 30, 2016 | D91: $/kW | E91: -0.6204 | K91: 3_P_VC_DEFVAR_kW_1
A92: GENERAL SERVICE 50 TO 999 KW | B92: Rate Rider for Disposition of Global Adjustment Account (2015) - effective until April 30, 2016 Applicable only for Non RPP Customers | D92: $/kW | E92: 0.0024 | K92: 3_P_VC_GA_Rate_Rider_kW_1
A93: GENERAL SERVICE 50 TO 999 KW | B93: Retail Transmission Rate - Network Service Rate | D93: $/kW | E93: 2.567219025 | K93: 3_P_RTSR_Network
A94: GENERAL SERVICE 50 TO 999 KW | B94: Retail Transmission Rate - Line and Transformation Connection Service Rate | D94: $/kW | E94: 2.058944932 | K94: 3_P_RTSR_Connection
A95: GENERAL SERVICE 50 TO 999 KW
A96: GENERAL SERVICE 50 TO 999 KW | B96: MONTHLY RATES AND CHARGES - Regulatory Component
A97: GENERAL SERVICE 50 TO 999 KW
A98: GENERAL SERVICE 50 TO 999 KW | B98: Wholesale Market Service Rate | D98: $/kWh | E98: 0.0044 | K98: 3_P_WMSR
A99: GENERAL SERVICE 50 TO 999 KW | B99: Rural or Remote Electricity Rate Protection Charge (RRRP) | D99: $/kWh | E99: 0.0013 | K99: 3_P_RRPC
A100: GENERAL SERVICE 50 TO 999 KW | B100: Standard Supply Service - Administrative Charge (if applicable) | D100: $ | E100: 0.25 | K100: 3_P_SSS
B102: GENERAL SERVICE GREATER THAN 50 KW - WMP SERVICE CLASSIFICATION
L104: =ROUND(LEN(B104), -2) / 100 -> 0
B106: APPLICATION
L108: =ROUND(LEN(B108), -2) / 100 -> 0
L110: =ROUND(LEN(B110), -2) / 100 -> 0
L112: =ROUND(LEN(B112), -2) / 100 -> 0
L114: =ROUND(LEN(B114), -2) / 100 -> 0
B116: MONTHLY RATES AND CHARGES - Delivery Component
A118: GENERAL SERVICE GREATER THAN 50 KW - WMP | B118: Rate Rider for Disposition of Deferral/Variance Accounts (2015) - effective until April 30, 2016 | D118: $/kW | E118: -0.0928 | K118: 4_P_VC_DEFVAR_kW_1
A119: GENERAL SERVICE GREATER THAN 50 KW - WMP
A120: GENERAL SERVICE GREATER THAN 50 KW - WMP | B120: MONTHLY RATES AND CHARGES - Regulatory Component
A121: GENERAL SERVICE GREATER THAN 50 KW - WMP
A122: GENERAL SERVICE GREATER THAN 50 KW - WMP | B122: Wholesale Market Service Rate | D122: $/kWh | E122: 0.0044 | K122: 4_P_WMSR
A123: GENERAL SERVICE GREATER THAN 50 KW - WMP | B123: Rural or Remote Electricity Rate Protection Charge (RRRP) | D123: $/kWh | E123: 0.0013 | K123: 4_P_RRPC
A124: GENERAL SERVICE GREATER THAN 50 KW - WMP | B124: Standard Supply Service - Administrative Charge (if applicable) | D124: $ | E124: 0.25 | K124: 4_P_SSS
B126: GENERAL SERVICE 1,000 TO 4,999 KW SERVICE CLASSIFICATION
B128: This classification applies to a customer not designated Residential, and that: over a twelve month period has, or a new customer forecast to have, an average monthly peak demand equal to or greater than 1,000 kW and less than 5,000 kW. This rate class designation is reviewed on an annual basis and the customer's designated rate class may change as a result. Further servicing details are available in the distributor’s Conditions of Service. | L128: =ROUND(LEN(B128), -2) / 100 -> 4
B130: APPLICATION
B132: The application of these rates and charges shall be in accordance with the Licence of the Distributor and any Code or Order of the Board, and amendments thereto as approved by the Board, which may be applicable to the administration of this schedule. | L132: =ROUND(LEN(B132), -2) / 100 -> 3
B134: No rates and charges for the distribution of electricity and charges to meet the costs of any work or service done or furnished for the purpose of the distribution of electricity shall be made except as permitted by this schedule, unless required by the Distributor’s Licence or a Code or Order of the Board, and amendments thereto as approved by the Board, or as specified herein. | L134: =ROUND(LEN(B134), -2) / 100 -> 4
B136: Unless specifically noted, this schedule does not contain any charges for the electricity commodity, be it under the Regulated Price Plan, a contract with a retailer or the wholesale market price, as applicable. In addition, the charges in the MONTHLY RATES AND CHARGES – Regulatory Component of this schedule do not apply to a customer that is an embedded wholesale market participant. | L136: =ROUND(LEN(B136), -2) / 100 -> 4
B138: It should be noted that this schedule does not list any charges, assessments or credits that are required by law to be invoiced by a distributor and that are not subject to Board approval, such as the Debt Retirement Charge, the Global Adjustment, the Ontario Clean Energy Benefit and the HST. | L138: =ROUND(LEN(B138), -2) / 100 -> 3
B140: MONTHLY RATES AND CHARGES - Delivery Component
A142: GENERAL SERVICE 1,000 TO 4,999 KW | B142: Service Charge | D142: $ | E142: 3206.48 | K142: 5_P_MSC
A143: GENERAL SERVICE 1,000 TO 4,999 KW | B143: Distribution Volumetric Rate | D143: $/kW | E143: 1.7293 | K143: 5_P_VC_1
A144: GENERAL SERVICE 1,000 TO 4,999 KW | B144: Low Voltage Service Rate | D144: $/kW | E144: 0.082 | K144: 5_P_LVrate
A145: GENERAL SERVICE 1,000 TO 4,999 KW | B145: Rate Rider for Disposition of Deferral/Variance Accounts (2015) - effective until April 30, 2016 | D145: $/kW | E145: -0.8232 | K145: 5_P_VC_DEFVAR_kW_1
A146: GENERAL SERVICE 1,000 TO 4,999 KW | B146: Rate Rider for Disposition of Global Adjustment Account (2015) - effective until April 30, 2016 Applicable only for Non RPP Customers | D146: $/kW | E146: 0.0024 | K146: 5_P_VC_GA_Rate_Rider_kW_1
A147: GENERAL SERVICE 1,000 TO 4,999 KW | B147: Retail Transmission Rate - Network Service Rate | D147: $/kW | E147: 2.726640993 | K147: 5_P_RTSR_Network
A148: GENERAL SERVICE 1,000 TO 4,999 KW | B148: Retail Transmission Rate - Line and Transformation Connection Service Rate | D148: $/kW | E148: 2.257082212 | K148: 5_P_RTSR_Connection
A149: GENERAL SERVICE 1,000 TO 4,999 KW
A150: GENERAL SERVICE 1,000 TO 4,999 KW | B150: MONTHLY RATES AND CHARGES - Regulatory Component
A151: GENERAL SERVICE 1,000 TO 4,999 KW
A152: GENERAL SERVICE 1,000 TO 4,999 KW | B152: Wholesale Market Service Rate | D152: $/kWh | E152: 0.0044 | K152: 5_P_WMSR
A153: GENERAL SERVICE 1,000 TO 4,999 KW | B153: Rural or Remote Electricity Rate Protection Charge (RRRP) | D153: $/kWh | E153: 0.0013 | K153: 5_P_RRPC
A154: GENERAL SERVICE 1,000 TO 4,999 KW | B154: Standard Supply Service - Administrative Charge (if applicable) | D154: $ | E154: 0.25 | K154: 5_P_SSS
B156: LARGE USE SERVICE CLASSIFICATION
B158: This classification applies to a customer not designated as Residential, and that over 12 consecutive billing periods has, or a new customer forecast to have, an average monthly peak demand equal to or greater than 5,000 kW. This rate class designation is reviewed on an annual basis and the customer's designated rate class may change as a result. Further servicing details are available in the distributor’s Conditions of Service. | L158: =ROUND(LEN(B158), -2) / 100 -> 4
B160: APPLICATION
B162: The application of these rates and charges shall be in accordance with the Licence of the Distributor and any Code or Order of the Board, and amendments thereto as approved by the Board, which may be applicable to the administration of this schedule. | L162: =ROUND(LEN(B162), -2) / 100 -> 3
B164: No rates and charges for the distribution of electricity and charges to meet the costs of any work or service done or furnished for the purpose of the distribution of electricity shall be made except as permitted by this schedule, unless required by the Distributor’s Licence or a Code or Order of the Board, and amendments thereto as approved by the Board, or as specified herein. | L164: =ROUND(LEN(B164), -2) / 100 -> 4
B166: Unless specifically noted, this schedule does not contain any charges for the electricity commodity, be it under the Regulated Price Plan, a contract with a retailer or the wholesale market price, as applicable. In addition, the charges in the MONTHLY RATES AND CHARGES – Regulatory Component of this schedule do not apply to a customer that is an embedded wholesale market participant. | L166: =ROUND(LEN(B166), -2) / 100 -> 4
B168: It should be noted that this schedule does not list any charges, assessments or credits that are required by law to be invoiced by a distributor and that are not subject to Board approval, such as the Debt Retirement Charge, the Global Adjustment, the Ontario Clean Energy Benefit and the HST. | L168: =ROUND(LEN(B168), -2) / 100 -> 3
B170: MONTHLY RATES AND CHARGES - Delivery Component
A172: LARGE USE | B172: Service Charge | D172: $ | E172: 25091.59 | K172: 6_P_MSC
A173: LARGE USE | B173: Distribution Volumetric Rate | D173: $/kW | E173: 1.8844 | K173: 6_P_VC_1
A174: LARGE USE | B174: Low Voltage Service Rate | D174: $/kW | E174: 0.0938 | K174: 6_P_LVrate
A175: LARGE USE | B175: Rate Rider for Disposition of Deferral/Variance Accounts (2015) - effective until April 30, 2016 | D175: $/kW | E175: -1.1329 | K175: 6_P_VC_DEFVAR_kW_1
A176: LARGE USE | B176: Retail Transmission Rate - Network Service Rate - Interval Metered | D176: $/kW | E176: 3.019116656 | K176: 6_P_RTSR_Network_Interval
A177: LARGE USE | B177: Retail Transmission Rate - Line and Transformation Connection Service Rate - Interval Metered | D177: $/kW | E177: 2.581120291 | K177: 6_P_RTSR_Connection_Interval
A178: LARGE USE
A179: LARGE USE | B179: MONTHLY RATES AND CHARGES - Regulatory Component
A180: LARGE USE
A181: LARGE USE | B181: Wholesale Market Service Rate | D181: $/kWh | E181: 0.0044 | K181: 6_P_WMSR
A182: LARGE USE | B182: Rural or Remote Electricity Rate Protection Charge (RRRP) | D182: $/kWh | E182: 0.0013 | K182: 6_P_RRPC
A183: LARGE USE | B183: Standard Supply Service - Administrative Charge (if applicable) | D183: $ | E183: 0.25 | K183: 6_P_SSS
B185: LARGE USE - WMP SERVICE CLASSIFICATION
L187: =ROUND(LEN(B187), -2) / 100 -> 0
B189: APPLICATION
L191: =ROUND(LEN(B191), -2) / 100 -> 0
L193: =ROUND(LEN(B193), -2) / 100 -> 0
L195: =ROUND(LEN(B195), -2) / 100 -> 0
L197: =ROUND(LEN(B197), -2) / 100 -> 0
B199: MONTHLY RATES AND CHARGES - Delivery Component
A201: LARGE USE - WMP | B201: Rate Rider for Disposition of Deferral/Variance Accounts (2015) - effective until April 30, 2016 | D201: $/kW | E201: -0.1437 | K201: 7_P_VC_DEFVAR_kW_1
A202: LARGE USE - WMP
A203: LARGE USE - WMP | B203: MONTHLY RATES AND CHARGES - Regulatory Component
A204: LARGE USE - WMP
A205: LARGE USE - WMP | B205: Wholesale Market Service Rate | D205: $/kWh | E205: 0.0044 | K205: 7_P_WMSR
A206: LARGE USE - WMP | B206: Rural or Remote Electricity Rate Protection Charge (RRRP) | D206: $/kWh | E206: 0.0013 | K206: 7_P_RRPC
A207: LARGE USE - WMP | B207: Standard Supply Service - Administrative Charge (if applicable) | D207: $ | E207: 0.25 | K207: 7_P_SSS
B209: UNMETERED SCATTERED LOAD SERVICE CLASSIFICATION
B211: This classification applies to an account whose average monthly maximum demand is less than, or a new customer forecast to be less than, 50 kW and the consumption is unmetered. Such connections include cable TV power packs, bus shelters, telephone booths, traffic lights, railway crossings, etc. The level of the consumption will be agreed to by Bluewater Power and the customer, based on detailed manufacturer information/documentation with regard to electrical consumption of the unmetered load or periodic monitoring of actual consumption. Further servicing details are available in the distributor’s Conditions of Service. | L211: =ROUND(LEN(B211), -2) / 100 -> 6
B213: APPLICATION
B215: The application of these rates and charges shall be in accordance with the Licence of the Distributor and any Code or Order of the Board, and amendments thereto as approved by the Board, which may be applicable to the administration of this schedule. | L215: =ROUND(LEN(B215), -2) / 100 -> 3
B217: No rates and charges for the distribution of electricity and charges to meet the costs of any work or service done or furnished for the purpose of the distribution of electricity shall be made except as permitted by this schedule, unless required by the Distributor’s Licence or a Code or Order of the Board, and amendments thereto as approved by the Board, or as specified herein. | L217: =ROUND(LEN(B217), -2) / 100 -> 4
B219: Unless specifically noted, this schedule does not contain any charges for the electricity commodity, be it under the Regulated Price Plan, a contract with a retailer or the wholesale market price, as applicable. In addition, the charges in the MONTHLY RATES AND CHARGES – Regulatory Component of this schedule do not apply to a customer that is an embedded wholesale market participant. | L219: =ROUND(LEN(B219), -2) / 100 -> 4
B221: It should be noted that this schedule does not list any charges, assessments or credits that are required by law to be invoiced by a distributor and that are not subject to Board approval, such as the Debt Retirement Charge, the Global Adjustment, the Ontario Clean Energy Benefit and the HST. | L221: =ROUND(LEN(B221), -2) / 100 -> 3
B223: MONTHLY RATES AND CHARGES - Delivery Component
A225: UNMETERED SCATTERED LOAD | B225: Service Charge (per connection) | D225: $ | E225: 12.28 | K225: 8_P_MSC
A226: UNMETERED SCATTERED LOAD | B226: Distribution Volumetric Rate | D226: $/kWh | E226: 0.0334 | K226: 8_P_VC_1
A227: UNMETERED SCATTERED LOAD | B227: Low Voltage Service Rate | D227: $/kWh | E227: 0.0002 | K227: 8_P_LVrate
A228: UNMETERED SCATTERED LOAD | B228: Rate Rider for Disposition of Deferral/Variance Accounts (2015) - effective until April 30, 2016 | D228: $/kWh | E228: -0.0017 | K228: 8_P_VC_DEFVAR_kWh_1
A229: UNMETERED SCATTERED LOAD | B229: Retail Transmission Rate - Network Service Rate | D229: $/kWh | E229: 0.006364755366 | K229: 8_P_RTSR_Network
A230: UNMETERED SCATTERED LOAD | B230: Retail Transmission Rate - Line and Transformation Connection Service Rate | D230: $/kWh | E230: 0.005130431905 | K230: 8_P_RTSR_Connection
A231: UNMETERED SCATTERED LOAD
A232: UNMETERED SCATTERED LOAD | B232: MONTHLY RATES AND CHARGES - Regulatory Component
A233: UNMETERED SCATTERED LOAD
A234: UNMETERED SCATTERED LOAD | B234: Wholesale Market Service Rate | D234: $/kWh | E234: 0.0044 | K234: 8_P_WMSR
A235: UNMETERED SCATTERED LOAD | B235: Rural or Remote Electricity Rate Protection Charge (RRRP) | D235: $/kWh | E235: 0.0013 | K235: 8_P_RRPC
A236: UNMETERED SCATTERED LOAD | B236: Standard Supply Service - Administrative Charge (if applicable) | D236: $ | E236: 0.25 | K236: 8_P_SSS
B238: SENTINEL LIGHTING SERVICE CLASSIFICATION
B240: This classification refers to accounts that are an unmetered lighting load supplied to a sentinel light. Further servicing details are available in the distributor’s Conditions of Service. | L240: =ROUND(LEN(B240), -2) / 100 -> 2
B242: APPLICATION
B244: The application of these rates and charges shall be in accordance with the Licence of the Distributor and any Code or Order of the Board, and amendments thereto as approved by the Board, which may be applicable to the administration of this schedule. | L244: =ROUND(LEN(B244), -2) / 100 -> 3
B246: No rates and charges for the distribution of electricity and charges to meet the costs of any work or service done or furnished for the purpose of the distribution of electricity shall be made except as permitted by this schedule, unless required by the Distributor’s Licence or a Code or Order of the Board, and amendments thereto as approved by the Board, or as specified herein. | L246: =ROUND(LEN(B246), -2) / 100 -> 4
B248: Unless specifically noted, this schedule does not contain any charges for the electricity commodity, be it under the Regulated Price Plan, a contract with a retailer or the wholesale market price, as applicable. In addition, the charges in the MONTHLY RATES AND CHARGES – Regulatory Component of this schedule do not apply to a customer that is an embedded wholesale market participant. | L248: =ROUND(LEN(B248), -2) / 100 -> 4
B250: It should be noted that this schedule does not list any charges, assessments or credits that are required by law to be invoiced by a distributor and that are not subject to Board approval, such as the Debt Retirement Charge, the Global Adjustment, the Ontario Clean Energy Benefit and the HST. | L250: =ROUND(LEN(B250), -2) / 100 -> 3
B252: MONTHLY RATES AND CHARGES - Delivery Component
A254: SENTINEL LIGHTING | B254: Service Charge (per connection) | D254: $ | E254: 3.95 | K254: 9_P_MSC
A255: SENTINEL LIGHTING | B255: Distribution Volumetric Rate | D255: $/kW | E255: 26.0745 | K255: 9_P_VC_1
A256: SENTINEL LIGHTING | B256: Low Voltage Service Rate | D256: $/kW | E256: 0.059 | K256: 9_P_LVrate
A257: SENTINEL LIGHTING | B257: Rate Rider for Disposition of Deferral/Variance Accounts (2015) - effective until April 30, 2016 | D257: $/kW | E257: -0.7661 | K257: 9_P_VC_DEFVAR_kW_1
A258: SENTINEL LIGHTING | B258: Retail Transmission Rate - Network Service Rate | D258: $/kW | E258: 1.945897668 | K258: 9_P_RTSR_Network
A259: SENTINEL LIGHTING | B259: Retail Transmission Rate - Line and Transformation Connection Service Rate | D259: $/kW | E259: 1.625013002 | K259: 9_P_RTSR_Connection
A260: SENTINEL LIGHTING
A261: SENTINEL LIGHTING | B261: MONTHLY RATES AND CHARGES - Regulatory Component
A262: SENTINEL LIGHTING
A263: SENTINEL LIGHTING | B263: Wholesale Market Service Rate | D263: $/kWh | E263: 0.0044 | K263: 9_P_WMSR
A264: SENTINEL LIGHTING | B264: Rural or Remote Electricity Rate Protection Charge (RRRP) | D264: $/kWh | E264: 0.0013 | K264: 9_P_RRPC
A265: SENTINEL LIGHTING | B265: Standard Supply Service - Administrative Charge (if applicable) | D265: $ | E265: 0.25 | K265: 9_P_SSS
B267: STREET LIGHTING SERVICE CLASSIFICATION
B269: This classification applies to an account for roadway lighting with a Municipality, Regional Municipality, Ministry of Transportation and private roadway lighting, controlled by photo cells. The consumption for these customers will be based on the calculated connected load times the required lighting times established in the approved OEB street lighting load shape template. Further servicing details are available in the distributor’s Conditions of Service. | L269: =ROUND(LEN(B269), -2) / 100 -> 5
B271: APPLICATION
B273: The application of these rates and charges shall be in accordance with the Licence of the Distributor and any Code or Order of the Board, and amendments thereto as approved by the Board, which may be applicable to the administration of this schedule. | L273: =ROUND(LEN(B273), -2) / 100 -> 3
B275: No rates and charges for the distribution of electricity and charges to meet the costs of any work or service done or furnished for the purpose of the distribution of electricity shall be made except as permitted by this schedule, unless required by the Distributor’s Licence or a Code or Order of the Board, and amendments thereto as approved by the Board, or as specified herein. | L275: =ROUND(LEN(B275), -2) / 100 -> 4
B277: Unless specifically noted, this schedule does not contain any charges for the electricity commodity, be it under the Regulated Price Plan, a contract with a retailer or the wholesale market price, as applicable. In addition, the charges in the MONTHLY RATES AND CHARGES – Regulatory Component of this schedule do not apply to a customer that is an embedded wholesale market participant. | L277: =ROUND(LEN(B277), -2) / 100 -> 4
B279: It should be noted that this schedule does not list any charges, assessments or credits that are required by law to be invoiced by a distributor and that are not subject to Board approval, such as the Debt Retirement Charge, the Global Adjustment, the Ontario Clean Energy Benefit and the HST. | L279: =ROUND(LEN(B279), -2) / 100 -> 3
B281: MONTHLY RATES AND CHARGES - Delivery Component
A283: STREET LIGHTING | B283: Service Charge (per connection) | D283: $ | E283: 2.46 | K283: 10_P_MSC
A284: STREET LIGHTING | B284: Distribution Volumetric Rate | D284: $/kW | E284: 19.0705 | K284: 10_P_VC_1
A285: STREET LIGHTING | B285: Low Voltage Service Rate | D285: $/kW | E285: 0.0578 | K285: 10_P_LVrate
A286: STREET LIGHTING | B286: Rate Rider for Disposition of Deferral/Variance Accounts (2015) - effective until April 30, 2016 | D286: $/kW | E286: -0.6441 | K286: 10_P_VC_DEFVAR_kW_1
A287: STREET LIGHTING | B287: Rate Rider for Disposition of Global Adjustment Account (2015) - effective until April 30, 2016 Applicable only for Non RPP Customers | D287: $/kW | E287: 0.0024 | K287: 10_P_VC_GA_Rate_Rider_kW_1
A288: STREET LIGHTING | B288: Retail Transmission Rate - Network Service Rate | D288: $/kW | E288: 1.936097966 | K288: 10_P_RTSR_Network
A289: STREET LIGHTING | B289: Retail Transmission Rate - Line and Transformation Connection Service Rate | D289: $/kW | E289: 1.591767803 | K289: 10_P_RTSR_Connection
A290: STREET LIGHTING
A291: STREET LIGHTING | B291: MONTHLY RATES AND CHARGES - Regulatory Component
... 63 more rows

Sheet 14. Bill Impacts (hidden)
Z1: =MATCH(A13, '3. Rate Class Selection'!B19:B40,0) -> 1 | AA1: =VLOOKUP(A13, lists!AO:AP,2,0) -> kWh
A11: Choose a Rate Class from the drop-down menu below and click UPDATE. For Street Lighting and USL classes, please ensure that the number of customers is manually entered into cells B30 and B31. Click the UPDATE button to refresh the sheet.
A13: RESIDENTIAL | F13: =IF(ISERROR(SEARCH("MicroFit",A13,1))=FALSE,"Bill impact presentation for this class does not exist.", "") -> 
A15: Consumption | B15: =730*D15*B17 -> 3650000 | C15: kWh | D15: 10000 | E15: =IF(AA1 = "kWh", "", "kW") -> 
A16: RPP Tier One | B16: 600 | C16: kWh | E16: 1
A17: Load Factor | B17: 0.5
A18: Loss Factor | B18: 1
B21: CURRENT ESTIMATED BILL | E21: PROPOSED ESTIMATED BILL
B22: Volume | C22: Current Rate ($) | D22: Current Charge ($) | E22: Volume | F22: Proposed Rate ($) | G22: Proposed Charge ($) | I22: Change ($) | J22: Change (%) | K22: % of Total RPP Bill | L22: % of Total TOU Bill
A23: Energy First Tier (kWh) | B23: 3650000 | C23: 0.075 | D23: =B23*C23 -> 273750 | E23: =B23 -> 3650000 | F23: =C23 -> 0.075 | G23: =E23*F23 -> 273750 | I23: =G23-D23 -> 0 | J23: =I23/D23 -> 0 | K23: =G23/G48 -> 0.8646078577
A24: Energy Second Tier (kWh) | B24: 0 | C24: 0.088 | D24: =B24*C24 -> 0 | E24: =B24 -> 0 | F24: =C24 -> 0.088 | G24: =E24*F24 -> 0 | I24: =G24-D24 -> 0 | J24: 0 | K24: =G24/G48 -> 0
A26: TOU - Off Peak | B26: =0.64*$B$15*$B$18 -> 2336000 | C26: 0.065 | D26: =C26*B26 -> 151840 | E26: =B26 -> 2336000 | F26: =C26 -> 0.065 | G26: =F26*E26 -> 151840 | I26: =G26-D26 -> 0 | J26: =I26/D26 -> 0 | L26: =G26/G54 -> 0.449726096
A27: TOU - Mid Peak | B27: =0.18*$B$15*$B$18 -> 657000 | C27: 0.1 | D27: =C27*B27 -> 65700 | E27: =B27 -> 657000 | F27: =C27 -> 0.1 | G27: =F27*E27 -> 65700 | H27: =G27*F27 -> 6570 | I27: =G27-D27 -> 0 | J27: =I27/D27 -> 0 | L27: =G27/G54 -> 0.1945930223
A28: TOU - On Peak | B28: =0.18*$B$15*$B$18 -> 657000 | C28: 0.117 | D28: 76869 | F28: =C28 -> 0.117 | G28: =F28*E28 -> 0 | H28: =G28*F28 -> 0 | J28: =I28/D28 -> 0 | L28: =G28/G54 -> 0
A30: Service Charge | B30: 1 | D30: 0 | G30: =F30*E30 -> 0 | H30: 0 | J30: 0 | K30: 0 | L30: 0
A31: Service Charge Rate Rider(s) | B31: 1 | C31: 0 | D31: 0 | F31: 0 | G31: 0 | H31: 0 | J31: 0 | K31: 0 | L31: 0
A32: Distribution Volumetric Rate | B32: 10000 | D32: 0 | E32: =B32 -> 10000 | G32: 0 | H32: 0 | I32: =G32-D32 -> 0 | J32: 0 | K32: 0 | L32: 0
A33: Low Voltage Volumetric Rate | B33: 10000 | D33: 0 | G33: 0 | H33: 0 | J33: 0 | K33: 0 | L33: 0
A34: Distribution Volumetric Rate Rider(s) | B34: 10000 | C34: 0 | D34: 0 | F34: 1.2025 | G34: 0 | H34: 0 | J34: 0 | K34: =G34/G48 -> 0 | L34: =G34/G54 -> 0
A35: Total: Distribution | D35: =ROUND(SUM(D30:D34),2) -> 0 | G35: =ROUND(SUM(G30:G34),2) -> 0 | J35: 0 | K35: =G35/G48 -> 0 | L35: =G35/G54 -> 0
A36: Total: Retail Transmission
A37: Sub-Total: Delivery (Distribution and Retail Transmission) | D37: =SUM(D36,D35) -> 0 | G37: =SUM(G36,G35) -> 0 | J37: 0 | K37: =G37/G48 -> 0 | L37: =G37/G54 -> 0
A38: Wholesale Market Service Rate | B38: 3650000 | C38: 0 | D38: =B38*C38 -> 0 | F38: =C38 -> 0 | G38: =E38*F38 -> 0 | J38: 0 | K38: 0 | L38: 0
A39: Rural Rate Protection Charge | B39: 3650000 | C39: 0 | D39: =B39*C39 -> 0 | E39: 3650000 | F39: 0 | G39: =E39*F39 -> 0 | I39: =G39-D39 -> 0 | J39: 0 | K39: 0 | L39: 0
A40: Standard Supply Service – Administration Charge (if applicable) | B40: 1 | C40: 0 | D40: =B40*C40 -> 0 | E40: 1 | F40: 0 | G40: =E40*F40 -> 0 | I40: =G40-D40 -> 0 | J40: 0 | K40: 0 | L40: 0
A41: Sub-Total: Regulatory | D41: =SUM(D38:D40) -> 0 | G41: =SUM(G38:H40) -> 0 | I41: =G41-D41 -> 0 | J41: 0 | K41: 0 | L41: 0
A42: Debt Retirement Charge (DRC) | B42: 3650000 | C42: 0.007 | D42: =B42*C42 -> 25550 | E42: =B42 -> 3650000 | F42: =C42 -> 0.007 | G42: =E42*F42 -> 25550 | I42: =G42-D42 -> 0 | J42: =I42/D42 -> 0 | K42: =G42/G48 -> 0.08069673339 | L42: =G42/G54 -> 0.07567506422
A44: Total Bill on RPP (before taxes) | D44: 299300 | G44: 311325 | I44: =G44-D44 -> 12025 | J44: =I44/D44 -> 0.04017707985 | K44: =G44/G48 -> 0.9832841691
A45: HST | C45: 0.13 | D45: =C45*D44 -> 38909 | F45: =C45 -> 0.13 | G45: =F45*G44 -> 40472.25 | I45: =G45-D45 -> 1563.25 | J45: =I45/D45 -> 0.04017707985 | K45: =G45/G48 -> 0.127826942
A46: Total Bill (including HST) | D46: =D45+D44 -> 338209 | G46: =G45+G44 -> 351797.25 | I46: =G46-D46 -> 13588.25 | J46: =I46/D46 -> 0.04017707985 | K46: =G46/G48 -> 1.111111111
A47: Ontario Clean Energy Benefit (OCEB) | C47: -0.1 | D47: =-0.1*D46 -> -33820.9 | F47: =C47 -> -0.1 | G47: =-0.1*G46 -> -35179.725 | I47: =G47-D47 -> -1358.825 | J47: =I47/D47 -> 0.04017707985 | K47: =G47/G48 -> -0.1111111111
A48: Total Bill on RPP (including OCEB) | D48: =D46+D47 -> 304388.1 | G48: =G46+G47 -> 316617.525 | I48: =G48-D48 -> 12229.425 | J48: =I48/D48 -> 0.04017707985 | K48: =G48/G48 -> 1
A50: Total Bill on TOU (before taxes) | D50: 319959 | G50: 331984 | I50: =G50-D50 -> 12025 | J50: =I50/D50 -> 0.03758294031 | L50: =G50/G54 -> 0.9832841691
A51: HST | C51: 0.13 | D51: =C51*D50 -> 41594.67 | F51: =C51 -> 0.13 | G51: =F51*G50 -> 43157.92 | I51: =G51-D51 -> 1563.25 | J51: =I51/D51 -> 0.03758294031 | L51: =G51/G54 -> 0.127826942
A52: Total Bill (including HST) | D52: =D51+D50 -> 361553.67 | G52: =G51+G50 -> 375141.92 | I52: =G52-D52 -> 13588.25 | J52: =I52/D52 -> 0.03758294031 | L52: =G52/G54 -> 1.111111111
A53: Ontario Clean Energy Benefit (OCEB) | C53: -0.1 | D53: =-0.1*D52 -> -36155.367 | F53: =C53 -> -0.1 | G53: =-0.1*G52 -> -37514.192 | I53: =G53-D53 -> -1358.825 | J53: =I53/D53 -> 0.03758294031 | L53: =G53/G54 -> -0.1111111111
A54: Total Bill on TOU (including OCEB) | D54: =D52+D53 -> 325398.303 | G54: =G52+G53 -> 337627.728 | I54: =G54-D54 -> 12229.425 | J54: =I54/D54 -> 0.03758294031 | L54: =G54/G54 -> 1
A57: Applicants must provide bill impacts for residential at 800 kWh and GS<50kW at 2000 kWh. In addition, their filing should cover the range that is relevant to their service territory, class by class. A general guideline of consumption levels follows: Residential (kWh) - 100, 250, 500, 800, 1000, 1500, 2000 GS<50kW (kWh) - 1000, 2000, 5000, 10000, 15000 GS>50kW (kW) 100, 500, 1000 Large User - range appropriate for utility Street/Sentinel Lighting Classes and USL - 150 kWh and 1 kW, range appropriate for utility.

Sheet 28. Bill Impacts
S1: 1 | Z1: =MATCH(C14, '3. Rate Class Selection'!B19:B40,0) -> 2 | AA1: =VLOOKUP(C14, lists!AO:AP,2,0) -> kWh
A14: Rate Class | C14: GENERAL SERVICE LESS THAN 50 KW
A16: Loss Factor | E16: 1.0421
A18: Consumption | C18: kWh | E18: 2000
A20: If Billed on a kW basis:
A21: Demand | C21: kW
E25: Current Board-Approved | I25: Proposed | M25: Impact
E26: Rate | F26: Volume | G26: Charge | I26: Rate | J26: Volume | K26: Charge | M26: $ Change | N26: % Change
E27: ($) | G27: ($) | I27: ($) | K27: ($)
A28: Monthly Service Charge | E28: 26.97 | F28: 1 | G28: =F28*E28 -> 26.97 | I28: 27.35 | J28: 1 | K28: =J28*I28 -> 27.35 | M28: =K28-G28 -> 0.38 | N28: =IF((G28)=0,"",(M28/G28)) -> 0.01408972933
A29: Distribution Volumetric Rate | E29: 0.0189 | F29: 2000 | G29: =F29*E29 -> 37.8 | I29: 0.0192 | J29: =F29 -> 2000 | K29: =J29*I29 -> 38.4 | M29: 0.6 | N29: 0.01587301587
A30: Fixed Rate Riders | E30: 10.6 | F30: 1 | G30: =F30*E30 -> 10.6 | I30: 4.66 | J30: 1 | K30: =J30*I30 -> 4.66 | M30: -5.94 | N30: -0.5603773585
A31: Volumetric Rate Riders | E31: 0.0009 | F31: 2000 | G31: =F31*E31 -> 1.8 | I31: 0 | J31: =F31 -> 2000 | K31: =J31*I31 -> 0 | M31: -1.8 | N31: -1
A32: Sub-Total A (excluding pass through) | G32: =SUM(G28:G31) -> 77.17 | K32: =SUM(K28:K31) -> 70.41 | M32: -6.76 | N32: -0.08759880783
A33: Line Losses on Cost of Power | E33: =E45*0.64+E46*0.18+E47*0.18 -> 0.09246 | F33: =E18*(E16-1) -> 84.2 | G33: =E33*F33 -> 7.785132 | I33: =I45*0.64+I46*0.18+I47*0.18 -> 0.09246 | J33: =F33 -> 84.2 | K33: =I33*J33 -> 7.785132 | M33: 0 | N33: 0
A34: Total Deferral/Variance Account Rate Riders | E34: -0.0036 | F34: 2000 | G34: =F34*E34 -> -7.2 | I34: -0.0017 | J34: =F34 -> 2000 | K34: =J34*I34 -> -3.4 | M34: 3.8 | N34: -0.5277777778
A35: Low Voltage Service Charge | E35: 0.0002 | F35: 2000 | G35: =F35*E35 -> 0.4 | I35: 0.0002 | J35: =F35 -> 2000 | K35: =J35*I35 -> 0.4 | M35: 0 | N35: 0
A36: Smart Meter Entity Charge | E36: 0.79 | F36: 1 | G36: =F36*E36 -> 0.79 | I36: 0.79 | J36: =F36 -> 1 | K36: =J36*I36 -> 0.79 | M36: 0 | N36: 0
A37: Sub-Total B - Distribution (includes Sub-Total A) | G37: =SUM(G32:G36) -> 78.945132 | K37: =SUM(K32:K36) -> 75.985132 | M37: =K37-G37 -> -2.96 | N37: =IF((G37)=0,"",(M37/G37)) -> -0.03749439547
A38: RTSR - Network | E38: 0.0063 | F38: 2084.2 | G38: =F38*E38 -> 13.13046 | I38: 0.0064 | J38: =F38 -> 2084.2 | K38: =J38*I38 -> 13.33888 | M38: 0.20842 | N38: 0.01587301587
A39: RTSR - Connection and/or Line and Transformation Connection | E39: 0.005 | F39: 2084.2 | G39: =F39*E39 -> 10.421 | I39: 0.005 | J39: =F39 -> 2084.2 | K39: =J39*I39 -> 10.421 | M39: 0 | N39: 0
A40: Sub-Total C - Delivery (including Sub-Total B) | G40: =SUM(G37:G39) -> 102.496592 | K40: =SUM(K37:K39) -> 99.745012 | M40: -2.75158 | N40: -0.02684557551
A41: Wholesale Market Service Charge (WMSC) | E41: 0.0044 | F41: =E18*E16 -> 2084.2 | G41: =F41*E41 -> 9.17048 | I41: 0.0044 | J41: =E18*E16 -> 2084.2 | K41: =J41*I41 -> 9.17048 | M41: 0 | N41: 0
A42: Rural and Remote Rate Protection (RRRP) | E42: 0.0013 | F42: =E18*E16 -> 2084.2 | G42: 2.70946 | I42: 0.0013 | J42: =E18*E16 -> 2084.2 | K42: 2.70946 | M42: 0 | N42: 0
A43: Standard Supply Service Charge | E43: 0.25 | F43: 1 | G43: 0.25 | I43: 0.25 | J43: 1 | K43: 0.25 | M43: 0 | N43: 0
A44: Debt Retirement Charge (DRC) | E44: 0.007 | F44: =E18 -> 2000 | G44: 14 | I44: 0.007 | J44: =E18 -> 2000 | K44: 14 | M44: 0 | N44: 0
A45: TOU - Off Peak | E45: 0.075 | F45: 1280 | G45: 96 | I45: 0.075 | J45: =F45 -> 1280 | K45: 96 | M45: 0 | N45: 0
A46: TOU - Mid Peak | E46: 0.112 | F46: 360 | G46: 40.32 | I46: 0.112 | J46: =F46 -> 360 | K46: 40.32 | M46: 0 | N46: 0
A47: TOU - On Peak | E47: 0.135 | F47: 360 | G47: 48.6 | I47: 0.135 | J47: =F47 -> 360 | K47: 48.6 | M47: 0 | N47: 0
A49: Total Bill on TOU (before Taxes) | G49: =SUM(G40:G44,G45:G47) -> 313.546532 | K49: =SUM(K40:K44,K45:K47) -> 310.794952 | M49: =K49-G49 -> -2.75158 | N49: =IF((G49)=0,"",(M49/G49)) -> -0.008775667147
A50: HST | E50: 0.13 | G50: =G49*E50 -> 40.76104916 | I50: 0.13 | K50: =K49*I50 -> 40.40334376 | M50: -0.3577054 | N50: -0.008775667147
A51: Total Bill (including HST) | G51: =G49+G50 -> 354.3075812 | K51: =K49+K50 -> 351.1982958 | M51: -3.1092854 | N51: -0.008775667147
A52: Ontario Clean Energy Benefit 1 | G52: =ROUND(-G51*10%,2) -> -35.43 | K52: =ROUND(-K51*10%,2) -> -35.12 | M52: 0.31 | N52: -0.008749647192
A53: Total Bill on TOU (including OCEB) | G53: =G51+G52 -> 318.8775812 | K53: =K51+K52 -> 316.0782958 | M53: -2.7992854 | N53: -0.008778558185
A58: Note: For distributors who have a majority of customers on Tiered pricing, please provide a separate bill impact for such customers.

Sheet lists (hidden)
A1: DISTRIBUTED GENERATION [DGEN] | B1: Embedded Distributor | C1: =COUNTA(B1:B17) -> 4 | I1: A Standby Service Charge will be applied for a month where standby power is not provided. The applicable rate is the approved Distribution Volumetric Rate of the applicable service class and is applied to gross metered demand or contracted amount, whichever is greater. A monthly administration charge of $200, for simple metering arrangements, or $500, for complex metering arrangements, will also be applied. | L1: Loss Factors | N1: Units | O1: Units1 | P1: Units2 | Z1: Account History | AA1: Account set up charge/change of occupancy charge (plus credit agency costs if applicable) | AB1: Total Loss Factor – Embedded Distributor – Hydro One Networks Inc. | AL1: Algoma Power Inc. | AM1: Algoma Power Inc. | AO1: DISTRIBUTED GENERATION [DGEN] | AP1: kW | AT1: Sub-Total: Delivery (Distribution and Retail Transmission)
A2: EMBEDDED DISTRIBUTOR | B2: General Service 3,000 to 4,999 kW | I2: Distribution Volumetric Rate | L2: Total Loss Factor – Primary Metered Customer | N2: $ | O2: $/kWh | P2: $ | Z2: Account set up charge/change of occupancy charge | AA2: Administrative Billing Charge | AB2: Total Loss Factor – Primary Metered Customer | AL2: Atikokan Hydro Inc. | AM2: Atikokan Hydro Inc. | AO2: EMBEDDED DISTRIBUTOR | AP2: kW | AT2: Wholesale Market Service Rate | AW2: =AU2*AV2 -> 0 | AX2: =AU2 -> 0 | AY2: 0 | AZ2: =AX2*AY2 -> 0 | BB2: =AZ2-AW2 -> 0 | BC2: =BB2/AW2 -> 
A3: EMBEDDED DISTRIBUTOR | B3: General Service 1,000 to 4,999 kW | I3: Distribution Volumetric Rate - $/kW of contracted amount | L3: Total Loss Factor – Primary Metered Customer < 5,000 kW | N3: $/kWh | O3: $/kW | P3: % | W3: MSC | Z3: Account set up charge/change of occupancy charge (plus credit agency costs if applicable – Residential) | AA3: Bell Canada Pole Rentals | AB3: Total Loss Factor – Primary Metered Customer < 5,000 kW | AL3: Bluewater Power Distribution Corporation | AM3: Bluewater Power Distribution Corporation | AO3: EMBEDDED DISTRIBUTOR | AP3: kW | AT3: Rural or Remote Electricity Rate Protection Charge (RRRP) | AW3: =AU3*AV3 -> 0 | AX3: 0 | AY3: 0 | AZ3: =AX3*AY3 -> 0 | BB3: =AZ3-AW3 -> 0 | BC3: =BB3/AW3 -> 
A4: FARMS - SINGLE PHASE ENERGY-BILLED [F1] | B4: General Service Equal To Or Greater Than 1,500 kW - Interval Metered | I4: Distribution Wheeling Service Rate | L4: Total Loss Factor – Primary Metered Customer > 5,000 kW | N4: $/kW | O4: $/kVA | W4: SM_Rate_Adder | Z4: Account set up charge/change of occupancy charge (plus credit agency costs if applicable) | AA4: Clearance Pole Attachment charge $/pole/year | AB4: Total Loss Factor – Primary Metered Customer > 5,000 kW | AL4: Brant County Power Inc. | AM4: Brant County Power Inc. | AO4: FARMS - SINGLE PHASE ENERGY-BILLED [F1] | AP4: kWh | AT4: Standard Supply Service – Administration Charge (if applicable) | AW4: =AU4*AV4 -> 0 | AX4: 0 | AY4: 0 | AZ4: =AX4*AY4 -> 0 | BB4: =AZ4-AW4 -> 0 | BC4: =BB4/AW4 -> 
A5: FARMS - THREE PHASE ENERGY-BILLED [F3] | I5: Electricity Rate | L5: Total Loss Factor – Secondary Metered Customer | N5: $/kVA | W5: MSC_Rate_Rider_ | Z5: Arrears certificate | AA5: Collection of account charge – no disconnection | AB5: Total Loss Factor – Secondary Metered Customer | AL5: Brantford Power Inc. | AM5: Brantford Power Inc. | AO5: FARMS - THREE PHASE ENERGY-BILLED [F3] | AP5: kWh | AT5: Sub-Total: Regulatory | AW5: =SUM(AW2:AW4) -> 0 | AZ5: =SUM(AZ2:BA4) -> 0 | BB5: =AZ5-AW5 -> 0 | BC5: =BB5/AW5 -> 
A6: GENERAL SERVICE - COMMERCIAL | I6: Electricity Rate - All Additional kWh | L6: Total Loss Factor – Secondary Metered Customer < 5,000 kW | W6: VC | Z6: Arrears certificate (credit reference) | AA6: Collection of account charge – no disconnection – after regular hours | AB6: Total Loss Factor – Secondary Metered Customer < 5,000 kW | AL6: Burlington Hydro Inc. | AM6: Burlington Hydro Inc. | AO6: GENERAL SERVICE - COMMERCIAL | AP6: kW | AT6: Debt Retirement Charge (DRC) | AW6: =AU6*AV6 -> 0 | AX6: =AU6 -> 0 | AY6: =AV6 -> 0 | AZ6: =AX6*AY6 -> 0 | BB6: =AZ6-AW6 -> 0 | BC6: =BB6/AW6 -> 
A7: GENERAL SERVICE - INSTITUTIONAL | I7: Electricity Rate - First 250 kWh | AL7: Cambridge and North Dumfries Hydro Inc. | AM7: Cambridge and North Dumfries Hydro Inc. | AO7: GENERAL SERVICE - INSTITUTIONAL | AP7: kW
A8: GENERAL SERVICE 1,000 TO 2,999 KW | I8: Electricity Rate -All Additional kWh | L8: Total Loss Factor – Secondary Metered Customer > 5,000 kW | W8: VC_Rate_Rider_ | Z8: Charge to certify cheque | AA8: Collection of account charge – no disconnection - during regular business hours | AB8: Total Loss Factor – Secondary Metered Customer > 5,000 kW | AL8: Canadian Niagara Power Inc. | AM8: Canadian Niagara Power Inc. | AO8: GENERAL SERVICE 1,000 TO 2,999 KW | AP8: kW | AT8: Total Bill on RPP (before taxes) | BB8: =AZ8-AW8 -> 0
A9: GENERAL SERVICE 1,000 TO 4,999 KW | I9: Electricity Rate First 1,000 kWh | L9: Distribution Loss Factor - Secondary Metered Customer < 5,000 kW | W9: VC_GA_Rate_Rider_kW_ | Z9: Collection of Account Charge – No Disconnection | AA9: Collection of account charge – no disconnection – during regular hours | AL9: Centre Wellington Hydro Ltd. | AM9: Centre Wellington Hydro Ltd. | AO9: GENERAL SERVICE 1,000 TO 4,999 KW | AP9: kW | AT9: HST | AW9: =AV9*AW8 -> 0 | AY9: =AV9 -> 0 | AZ9: =AY9*AZ8 -> 0 | BB9: =AZ9-AW9 -> 0 | BC9: =BB9/AW9 -> 
A10: GENERAL SERVICE 1,000 TO 4,999 KW - INTERVAL METERS | I10: Electricity Rate First 25,000 kWh | L10: Distribution Loss Factor - Secondary Metered Customer > 5,000 kW | W10: VC_LV_Rate | Z10: Credit Card Convenience Charge | AA10: Collection/Disconnection/Load Limiter/Reconnection – if in Community | AL10: Chapleau Public Utilities Corporation | AM10: Chapleau Public Utilities Corporation | AO10: GENERAL SERVICE 1,000 TO 4,999 KW - INTERVAL METERS | AP10: kW | AT10: Total Bill (including HST) | AW10: =AW9+AW8 -> 0 | AZ10: =AZ9+AZ8 -> 0 | BB10: =AZ10-AW10 -> 0 | BC10: =BB10/AW10 -> 
A11: GENERAL SERVICE 1,000 TO 4,999 KW (CO-GENERATION) | I11: Electricity Rate First 6,000 kWh | L11: Distribution Loss Factor - Primary Metered Customer < 5,000 kW | W11: RTSR_Network | Z11: Credit check (plus credit agency costs) | AA11: Credit Card Convenience Charge | AL11: Collus PowerStream Corporation | AM11: Collus PowerStream Corporation | AO11: GENERAL SERVICE 1,000 TO 4,999 KW (CO-GENERATION) | AP11: kW | AT11: Ontario Clean Energy Benefit (OCEB) | AW11: =-0.1*AW10 -> 0 | AY11: =AV11 -> 0 | AZ11: =-0.1*AZ10 -> 0 | BB11: =AZ11-AW11 -> 0 | BC11: =BB11/AW11 -> 
A12: GENERAL SERVICE 1,500 TO 4,999 KW | I12: Electricity Rate Next 1,500 kWh | L12: Distribution Loss Factor - Primary Metered Customer > 5,000 kW | W12: RTSR_Connection | Z12: Credit reference Letter | AA12: Disconnect/Reconnect at meter – after regular hours | AL12: Cooperative Hydro Embrun Inc. | AM12: Cooperative Hydro Embrun Inc. | AO12: GENERAL SERVICE 1,500 TO 4,999 KW | AP12: kW | AT12: Total Bill on RPP (including OCEB) | AW12: =AW10+AW11 -> 0 | AZ12: =AZ10+AZ11 -> 0 | BB12: =AZ12-AW12 -> 0 | BC12: =BB12/AW12 -> 
A13: GENERAL SERVICE 2,500 TO 4,999 KW | I13: General Service 1,500 to 4,999 kW customer | AL13: E.L.K. Energy Inc. | AM13: E.L.K. Energy Inc. | AO13: GENERAL SERVICE 2,500 TO 4,999 KW | AP13: kW
A14: GENERAL SERVICE 3,000 TO 4,999 KW | I14: General Service 50 to 1,499 kW customer | L14: Total Loss Factor - Embedded Distributor | W14: RTSR_Network_Interval | Z14: Credit reference/credit check (plus credit agency costs – General Service) | AA14: Disconnect/Reconnect at meter – during regular hours | AL14: Enersource Hydro Mississauga Inc. | AM14: Enersource Hydro Mississauga Inc. | AO14: GENERAL SERVICE 3,000 TO 4,999 KW | AP14: kW | AT14: Total Bill on TOU (before taxes) | BB14: =AZ14-AW14 -> 0
A15: GENERAL SERVICE 3,000 TO 4,999 KW - INTERMEDIATE USE | I15: General Service Large Use customer | L15: Total Loss Factor – Embedded Distributor – Hydro One Networks Inc. | W15: RTSR_Connection_Interval | Z15: Credit Reference/credit check (plus credit agency costs) | AA15: Disconnect/Reconnect at pole – after regular hours | AL15: Entegrus Powerlines Inc. | AM15: Entegrus Powerlines Inc. | AO15: GENERAL SERVICE 3,000 TO 4,999 KW - INTERMEDIATE USE | AP15: kW | AT15: HST | AW15: =AV15*AW14 -> 0 | AY15: =AV15 -> 0 | AZ15: =AY15*AZ14 -> 0 | BB15: =AZ15-AW15 -> 0 | BC15: =BB15/AW15 -> 
A16: GENERAL SERVICE 3,000 TO 4,999 KW - INTERVAL METERED | I16: Green Energy Act Initiatives Funding Adder - effective until the date of the next cost of service-based rate order | W16: RTSR_Network_Interval_GR1000kW | Z16: Dispute Test – Commercial self contained -- MC | AA16: Disconnect/Reconnect at pole – during regular hours | AL16: Entegrus Powerlines Inc. - Dutton Service Area | AM16: Entegrus Powerlines Inc. - Dutton Service Area | AO16: GENERAL SERVICE 3,000 TO 4,999 KW - INTERVAL METERED | AP16: kW | AT16: Total Bill (including HST) | AW16: =AW15+AW14 -> 0 | AZ16: =AZ15+AZ14 -> 0 | BB16: =AZ16-AW16 -> 0 | BC16: =BB16/AW16 -> 
A17: GENERAL SERVICE 3,000 TO 4,999 KW - TIME OF USE | I17: Green Energy Act Plan Funding Adder | W17: RTSR_Connection_Interval_GR1000kW | Z17: Dispute Test – Commercial TT -- MC | AA17: Disconnect/Reconnect Charge – At Meter – After Hours | AL17: Entegrus Powerlines Inc. - former Chatham-Kent Hydro Service Area | AM17: Entegrus Powerlines Inc. - former Chatham-Kent Hydro Service Area | AO17: GENERAL SERVICE 3,000 TO 4,999 KW - TIME OF USE | AP17: kW | AT17: Ontario Clean Energy Benefit (OCEB) | AW17: =-0.1*AW16 -> 0 | AY17: =AV17 -> 0 | AZ17: =-0.1*AZ16 -> 0 | BB17: =AZ17-AW17 -> 0 | BC17: =BB17/AW17 -> 
A18: GENERAL SERVICE 50 TO 1,000 KW | I18: Green Energy Act Plan Funding Adder - effective April 1, 2013 until March 31, 2014 | W18: RTSR_Line_Connection | Z18: Dispute Test – Residential | AA18: Disconnect/Reconnect Charge – At Meter – During Regular Hours | AL18: Entegrus Powerlines Inc. - Newbury Service Area | AM18: Entegrus Powerlines Inc. - Newbury Service Area | AO18: GENERAL SERVICE 50 TO 1,000 KW | AP18: kW | AT18: Total Bill on TOU (including OCEB) | AW18: =AW16+AW17 -> 0 | AZ18: =AZ16+AZ17 -> 0 | BB18: =AZ18-AW18 -> 0 | BC18: =BB18/AW18 -> 
A19: GENERAL SERVICE 50 TO 1,000 KW - INTERVAL METERS | I19: Green Energy Act Plan Funding Adder - effective April 1, 2014 until March 31, 2015 | W19: RTSR_Transformer_Connection | Z19: Duplicate Invoices for previous billing | AA19: Disconnect/Reconnect Charge – At Pole – After Hours | AL19: Entegrus Powerlines Inc. - Strathroy, Mount Brydges and Parkhill Service Areas | AM19: Entegrus Powerlines Inc. - Strathroy, Mount Brydges and Parkhill Service Areas | AO19: GENERAL SERVICE 50 TO 1,000 KW - INTERVAL METERS | AP19: kW
A20: GENERAL SERVICE 50 TO 1,000 KW - NON INTERVAL METERS | I20: ICM Rate Rider (2014) - in effect until the effective date of the next cost of service rates | W20: WMSR | Z20: Easement Letter | AA20: Disconnect/Reconnect Charge – At Pole – During Regular Hours | AL20: ENWIN Utilities Ltd. | AM20: ENWIN Utilities Ltd. | AO20: GENERAL SERVICE 50 TO 1,000 KW - NON INTERVAL METERS | AP20: kW
A21: GENERAL SERVICE 50 TO 1,499 KW | I21: Low Voltage Service Charge | W21: RRRP | Z21: Income Tax Letter | AA21: Disconnect/Reconnect Charges for non payment of account - At Meter After Hours | AL21: Erie Thames Powerlines Corporation | AM21: Erie Thames Powerlines Corporation | AO21: GENERAL SERVICE 50 TO 1,499 KW | AP21: kW
A22: GENERAL SERVICE 50 TO 1,499 KW - INTERVAL METERED | I22: Low Voltage Service Rate | W22: SPC | Z22: Interval Meter Interrogation | AA22: Disconnect/Reconnect charges for non payment of account – at meter after regular hours | AL22: Espanola Regional Hydro Distribution Corporation | AM22: Espanola Regional Hydro Distribution Corporation | AO22: GENERAL SERVICE 50 TO 1,499 KW - INTERVAL METERED | AP22: kW
A23: GENERAL SERVICE 50 TO 2,499 KW | I23: Low Voltage Volumetric Rate | W23: DRC | Z23: Interval meter request change | AA23: Disconnect/Reconnect Charges for non payment of account - At Meter During Regular Hours | AL23: Essex Powerlines Corporation | AM23: Essex Powerlines Corporation | AO23: GENERAL SERVICE 50 TO 2,499 KW | AP23: kW
A24: GENERAL SERVICE 50 TO 2,999 KW | I24: LRAM Rate Rider - Effective Until April 30, 2015 | W24: SSS | Z24: Legal letter | AA24: Disconnect/Reconnect charges for non payment of account – at meter during regular hours | AL24: Festival Hydro Inc. | AM24: Festival Hydro Inc. | AO24: GENERAL SERVICE 50 TO 2,999 KW | AP24: kW
A25: GENERAL SERVICE 50 TO 2,999 KW - INTERVAL METERED | I25: Minimum Distribution Charge - per KW of maximum billing demand in the previous 11 months | W25: SFLF | Z25: Legal letter charge | AA25: Disconnect/Reconnect charges for non payment of account – at pole after regular hours | AL25: Fort Frances Power Corporation | AM25: Fort Frances Power Corporation | AO25: GENERAL SERVICE 50 TO 2,999 KW - INTERVAL METERED | AP25: kW
A26: GENERAL SERVICE 50 TO 2,999 KW - TIME OF USE | B26: January | I26: Monthly Distribution Wheeling Service Rate - Dedicated LV Line | W26: DLF_Secondary_LT_5000kW | Z26: Meter dispute charge plus Measurement Canada fees (if meter found correct) | AA26: Disconnect/Reconnect charges for non payment of account – at pole during regular hours | AL26: Greater Sudbury Hydro Inc. | AM26: Greater Sudbury Hydro Inc. | AO26: GENERAL SERVICE 50 TO 2,999 KW - TIME OF USE | AP26: kW
A27: GENERAL SERVICE 50 TO 4,999 KW | B27: February | I27: Monthly Distribution Wheeling Service Rate - Hydro One Networks | W27: DLF_Secondary_GT_5000kW | Z27: Notification charge | AA27: Disconnect/Reconnection for >300 volts - after regular hours | AL27: Grimsby Power Inc. | AM27: Grimsby Power Inc. | AO27: GENERAL SERVICE 50 TO 4,999 KW | AP27: kW
A28: GENERAL SERVICE 50 TO 4,999 KW - INTERVAL METERED | B28: March | I28: Monthly Distribution Wheeling Service Rate - Shared LV Line | W28: DLF_Primary_LT_5000kW | Z28: Pulling Post Dated Cheques | AA28: Disconnect/Reconnection for >300 volts - during regular hours | AL28: Guelph Hydro Electric Systems Inc. | AM28: Guelph Hydro Electric Systems Inc. | AO28: GENERAL SERVICE 50 TO 4,999 KW - INTERVAL METERED | AP28: kW
A29: GENERAL SERVICE 50 TO 4,999 KW - TIME OF USE | B29: April | I29: Monthly Distribution Wheeling Service Rate - Waterloo North Hydro | W29: DLF_Primary_GT_5000kW | Z29: Request for other billing information | AA29: Disposal of Concrete Poles | AL29: Haldimand County Hydro Inc. | AM29: Haldimand County Hydro Inc. | AO29: GENERAL SERVICE 50 TO 4,999 KW - TIME OF USE | AP29: kW
A30: GENERAL SERVICE 50 TO 4,999 KW (COGENERATION) | B30: May | I30: Rate Rider for Application of Tax Change - effective until April 30, 2015 | W30: TLF_Secondary_LT_5000kW | Z30: Returned cheque (plus bank charges) | AA30: Dispute Test – Commercial TT -- MC | AL30: Halton Hills Hydro Inc. | AM30: Halton Hills Hydro Inc. | AO30: GENERAL SERVICE 50 TO 4,999 KW (COGENERATION) | AP30: kW
A31: GENERAL SERVICE 50 TO 4,999 KW (FORMERLY TIME OF USE) | B31: June | I31: Rate Rider for Application of Tax Change - effective until December 31, 2014 | W31: TLF_Secondary_GT_5000kW | Z31: Returned cheque charge (plus bank charges) | AA31: Install/Remove load control device – after regular hours | AL31: Hearst Power Distribution Company Limited | AM31: Hearst Power Distribution Company Limited | AO31: GENERAL SERVICE 50 TO 4,999 KW (FORMERLY TIME OF USE) | AP31: kW
A32: GENERAL SERVICE 50 TO 499 KW | B32: July | I32: Rate Rider for Application of Tax Change (2014) - effective until April 30, 2015 | W32: TLF_Primary_LT_5000kW | Z32: Special Billing Service (aggregation) | AA32: Install/Remove load control device – during regular hours | AL32: Horizon Utilities Corporation | AM32: Horizon Utilities Corporation | AO32: GENERAL SERVICE 50 TO 499 KW | AP32: kW
A33: GENERAL SERVICE 50 TO 699 KW | B33: August | I33: Rate Rider for Application of Tax Change (per connection) - effective until April 30, 2015 | W33: TLF_Primary_GT_5000kW | Z33: Special Billing Service (sub-metering charge per meter) | AA33: Interval Meter Interrogation | AL33: Hydro 2000 Inc. | AM33: Hydro 2000 Inc. | AO33: GENERAL SERVICE 50 TO 699 KW | AP33: kW
A34: GENERAL SERVICE 50 TO 999 KW | B34: September | I34: Rate Rider for CGAAP Accounting Changes (2013) - effective until April 30, 2017 | W34: TLF_EmbeddedDistributor | Z34: Special meter reads | AA34: Interval Meter Load Management Tool Charge $/month | AL34: Hydro Hawkesbury Inc. | AM34: Hydro Hawkesbury Inc. | AO34: GENERAL SERVICE 50 TO 999 KW | AP34: kW
A35: GENERAL SERVICE 50 TO 999 KW - INTERVAL METERED | B35: October | I35: Rate Rider for Deferral/Variance Account (2012) - effective unitl April 30, 2016 | Z35: Statement of Account | AA35: Interval meter request change | AL35: Hydro One Brampton Networks Inc. | AM35: Hydro One Brampton Networks Inc. | AO35: GENERAL SERVICE 50 TO 999 KW - INTERVAL METERED | AP35: kW
A36: GENERAL SERVICE 500 TO 4,999 KW | B36: November | I36: Rate Rider for Deferral/Variance Account Disposition – effective until April 30, 2015 | Z36: Unprocessed Payment Charge (plus bank charges) | AA36: Late Payment – per annum | AL36: Hydro One Networks Inc. | AM36: Hydro One Networks Inc. | AO36: GENERAL SERVICE 500 TO 4,999 KW | AP36: kW
A37: GENERAL SERVICE 700 TO 4,999 KW | B37: December | I37: Rate Rider for Deferral/Variance Account Disposition (2012) - effective until April 30, 2016 | AA37: Late Payment – per month | AL37: Hydro Ottawa Limited | AM37: Hydro Ottawa Limited | AO37: GENERAL SERVICE 700 TO 4,999 KW | AP37: kW
A38: GENERAL SERVICE DEMAND BILLED (50 KW AND ABOVE) [GSD] | I38: Rate Rider for Deferral/Variance Account Disposition (2013) - effective until April 30, 2014 | AA38: Layout fees | AL38: Innisfil Hydro Distribution Systems Limited | AM38: Innisfil Hydro Distribution Systems Limited | AO38: GENERAL SERVICE DEMAND BILLED (50 KW AND ABOVE) [GSD] | AP38: kW
A39: GENERAL SERVICE ENERGY BILLED (LESS THAN 50 KW) [GSE-METERED] | I39: Rate Rider for Deferral/Variance Account Disposition (2014) - effective until April 28, 2016 | AA39: Meter dispute charge plus Measurement Canada fees (if meter found correct) | AL39: Kenora Hydro Electric Corporation Ltd. | AM39: Kenora Hydro Electric Corporation Ltd. | AO39: GENERAL SERVICE ENERGY BILLED (LESS THAN 50 KW) [GSE-METERED] | AP39: kWh
A40: GENERAL SERVICE ENERGY BILLED (LESS THAN TO 50 KW) [GSE-UNMETERED] | I40: Rate Rider for Deferral/Variance Account Disposition (2014) - effective until April 30, 2015 | AA40: Meter Interrogation Charge | AL40: Kingston Hydro Corporation | AM40: Kingston Hydro Corporation | AO40: GENERAL SERVICE ENERGY BILLED (LESS THAN TO 50 KW) [GSE-UNMETERED] | AP40: kWh
A41: GENERAL SERVICE EQUAL TO OR GREATER THAN 1,500 KW | I41: Rate Rider for Deferral/Variance Account Disposition (2014) - effective until December 31, 2014 | AA41: Missed Service Appointment | AL41: Kitchener-Wilmot Hydro Inc. | AM41: Kitchener-Wilmot Hydro Inc. | AO41: GENERAL SERVICE EQUAL TO OR GREATER THAN 1,500 KW | AP41: kW
A42: GENERAL SERVICE EQUAL TO OR GREATER THAN 1,500 KW - INTERVAL METERED | I42: Rate Rider for Deferral/Variance Account Disposition (2014) - effective until December 31, 2015 | AA42: Norfolk Pole Rentals – Billed | AL42: Lakefront Utilities Inc. | AM42: Lakefront Utilities Inc. | AO42: GENERAL SERVICE EQUAL TO OR GREATER THAN 1,500 KW - INTERVAL METERED | AP42: kW
A43: GENERAL SERVICE GREATER THAN 1,000 KW | I43: Rate Rider for Deferral/Variance Account Dispositon (2012) - effective until April 30, 2016 | AA43: Optional Interval/TOU Meter charge $/month | AL43: Lakeland Power Distribution Ltd. | AM43: Lakeland Power Distribution Ltd. | AO43: GENERAL SERVICE GREATER THAN 1,000 KW | AP43: kW
A44: GENERAL SERVICE GREATER THAN 50 kW - WMP | I44: Rate Rider for Disposition of Accounting Changes Under CGAAP Account 1576 - effective until April 30, 2016 | AA44: Overtime Locate | AL44: London Hydro Inc. | AM44: London Hydro Inc. | AO44: GENERAL SERVICE GREATER THAN 50 kW - WMP | AP44: kW
A45: GENERAL SERVICE INTERMEDIATE 1,000 TO 4,999 KW | I45: Rate Rider for Disposition of Deferral/Variance Accounts (2010) - effective until December 31, 2014 | AA45: Owner Requested Disconnection/Reconnection – after regular hours | AL45: Midland Power Utility Corporation | AM45: Midland Power Utility Corporation | AO45: GENERAL SERVICE INTERMEDIATE 1,000 TO 4,999 KW | AP45: kW
A46: GENERAL SERVICE INTERMEDIATE RATE CLASS 1,000 TO 4,999 KW (FORMERLY GENERAL SERVICE > 50 KW CUSTOMERS) | I46: Rate Rider for Disposition of Deferral/Variance Accounts (2011) - effective until April 30, 2015 | AA46: Owner Requested Disconnection/Reconnection – during regular hours | AL46: Milton Hydro Distribution Inc. | AM46: Milton Hydro Distribution Inc. | AO46: GENERAL SERVICE INTERMEDIATE RATE CLASS 1,000 TO 4,999 KW (FORMERLY GENERAL SERVICE > 50 KW CUSTOMERS) | AP46: kW
A47: GENERAL SERVICE INTERMEDIATE RATE CLASS 1,000 TO 4,999 KW (FORMERLY LARGE USE CUSTOMERS) | I47: Rate Rider for Disposition of Deferral/Variance Accounts (2011) - effective until April 30, 2016 | AA47: Returned cheque (plus bank charges) | AL47: Newmarket - Tay Power Distribution Ltd. | AM47: Newmarket - Tay Power Distribution Ltd. | AO47: GENERAL SERVICE INTERMEDIATE RATE CLASS 1,000 TO 4,999 KW (FORMERLY LARGE USE CUSTOMERS) | AP47: kW
A48: GENERAL SERVICE LESS THAN 50 KW | I48: Rate Rider for Disposition of Deferral/Variance Accounts (2012) - effective until April 30, 2014 | AA48: Rural system expansion / line connection fee | AL48: Niagara Peninsula Energy Inc. | AM48: Niagara Peninsula Energy Inc. | AO48: GENERAL SERVICE LESS THAN 50 KW | AP48: kWh
A49: GENERAL SERVICE LESS THAN 50 KW - SINGLE PHASE ENERGY-BILLED [G1] | I49: Rate Rider for Disposition of Deferral/Variance Accounts (2012) - effective until April 30, 2015 | AA49: Same Day Open Trench | AL49: Niagara-on-the-Lake Hydro Inc. | AM49: Niagara-on-the-Lake Hydro Inc. | AO49: GENERAL SERVICE LESS THAN 50 KW - SINGLE PHASE ENERGY-BILLED [G1] | AP49: kWh
A50: GENERAL SERVICE LESS THAN 50 KW - THREE PHASE ENERGY-BILLED [G3] | I50: Rate Rider for Disposition of Deferral/Variance Accounts (2012) - effective until April 30, 2016 | AA50: Scheduled Day Open Trench | AL50: Norfolk Power Distribution Inc. | AM50: Norfolk Power Distribution Inc. | AO50: GENERAL SERVICE LESS THAN 50 KW - THREE PHASE ENERGY-BILLED [G3] | AP50: kWh
A51: GENERAL SERVICE LESS THAN 50 KW - TRANSMISSION CLASS ENERGY-BILLED [T] | I51: Rate Rider for Disposition of Deferral/Variance Accounts (2012) - effective until August 31, 2014 | AA51: Service call – after regular hours | AL51: North Bay Hydro Distribution Limited | AM51: North Bay Hydro Distribution Limited | AO51: GENERAL SERVICE LESS THAN 50 KW - TRANSMISSION CLASS ENERGY-BILLED [T] | AP51: kWh
A52: GENERAL SERVICE LESS THAN 50 KW - URBAN ENERGY-BILLED [UG] | I52: Rate Rider for Disposition of Deferral/Variance Accounts (2012) - effective until December 31, 2015 | AA52: Service call – customer owned equipment | AL52: Northern Ontario Wires Inc. | AM52: Northern Ontario Wires Inc. | AO52: GENERAL SERVICE LESS THAN 50 KW - URBAN ENERGY-BILLED [UG] | AP52: kWh
A53: GENERAL SERVICE SINGLE PHASE - G1 | I53: Rate Rider for Disposition of Deferral/Variance Accounts (2012) - effective until December 31, 2016 Applicable only in the former service area of Clinton Power | AA53: Service Call – Customer-owned Equipment – After Regular Hours | AL53: Oakville Hydro Electricity Distribution Inc. | AM53: Oakville Hydro Electricity Distribution Inc. | AO53: GENERAL SERVICE SINGLE PHASE - G1 | AP53: kW
A54: GENERAL SERVICE THREE PHASE - G3 | I54: Rate Rider for Disposition of Deferral/Variance Accounts (2012) – effective until December 31, 2016 Applicable only in the former service area of Clinton Power | AA54: Service Call – Customer-owned Equipment – During Regular Hours | AL54: Orangeville Hydro Limited | AM54: Orangeville Hydro Limited | AO54: GENERAL SERVICE THREE PHASE - G3 | AP54: kW
A55: INTERMEDIATE USERS | I55: Rate Rider for Disposition of Deferral/Variance Accounts (2012) - effective until January 31, 2014 | AA55: Service Charge for onsite interrogation of interval meter due to customer phone line failure - required weekly until line repaired $ 6 | AL55: Orillia Power Distribution Corporation | AM55: Orillia Power Distribution Corporation | AO55: INTERMEDIATE USERS | AP55: kW
A56: INTERMEDIATE WITH SELF GENERATION | I56: Rate Rider for Disposition of Deferral/Variance Accounts (2012) - effective until June 30, 2014 | AA56: Service Layout - Commercial | AL56: Oshawa PUC Networks Inc. | AM56: Oshawa PUC Networks Inc. | AO56: INTERMEDIATE WITH SELF GENERATION | AP56: kW
A57: LARGE USE | I57: Rate Rider for Disposition of Deferral/Variance Accounts (2013) - Applicable only to Wholesale Market Participants - effective until April 30, 2015 | AA57: Service Layout - ResidentiaI | AL57: Ottawa River Power Corporation | AM57: Ottawa River Power Corporation | AO57: LARGE USE | AP57: kW
A58: LARGE USE - 3TS | I58: Rate Rider for Disposition of Deferral/Variance Accounts (2013) - effective until April 30, 2014 | AA58: Special Billing Service (sub-metering charge per meter) | AL58: Parry Sound Power Corporation | AM58: Parry Sound Power Corporation | AO58: LARGE USE - 3TS | AP58: kW
A59: LARGE USE - FORD ANNEX | I59: Rate Rider for Disposition of Deferral/Variance Accounts (2013) - effective until April 30, 2015 | AA59: Special meter reads | AL59: Peterborough Distribution Incorporated | AM59: Peterborough Distribution Incorporated | AO59: LARGE USE - FORD ANNEX | AP59: kW
A60: LARGE USE - REGULAR | I60: Rate Rider for Disposition of Deferral/Variance Accounts (2013) - effective until April 30, 2015 - not applicable to Wholesale Market Participants | AA60: Specific Charge for Access to the Power Poles - $/pole/year | AL60: PowerStream Inc. | AM60: PowerStream Inc. | AO60: LARGE USE - REGULAR | AP60: kW
A61: LARGE USE > 5000 KW | I61: Rate Rider for Disposition of Deferral/Variance Accounts (2013) - effective until April 30, 2017 | AA61: Specific Charge for Bell Canada Access to the Power Poles – per pole/year | AL61: PUC Distribution Inc. | AM61: PUC Distribution Inc. | AO61: LARGE USE > 5000 KW | AP61: kW
A62: microFIT | I62: Rate Rider for Disposition of Deferral/Variance Accounts (2013) - effective until August 31, 2014 | AA62: Switching for company maintenance – Charge based on Time and Materials | AL62: Renfrew Hydro Inc. | AM62: Renfrew Hydro Inc. | AO62: microFIT | AP62: $
A63: RESIDENTIAL | I63: Rate Rider for Disposition of Deferral/Variance Accounts (2013) - effective until December 31, 2014 | AA63: Temporary Service – Install & remove – overhead – no transformer | AL63: Rideau St. Lawrence Distribution Inc. | AM63: Rideau St. Lawrence Distribution Inc. | AO63: RESIDENTIAL | AP63: kWh
A64: RESIDENTIAL - HENSALL | I64: Rate Rider for Disposition of Deferral/Variance Accounts (2013) - effective until May 31, 2014 | AA64: Temporary Service – Install & remove – overhead – with transformer | AL64: Sioux Lookout Hydro Inc. | AM64: Sioux Lookout Hydro Inc. | AO64: RESIDENTIAL - HENSALL | AP64: kWh
A65: RESIDENTIAL - HIGH DENSITY [R1] | I65: Rate Rider for Disposition of Deferral/Variance Accounts (2014) - effective until December 31, 2015 | AA65: Temporary Service – Install & remove – underground – no transformer | AL65: St. Thomas Energy Inc. | AM65: St. Thomas Energy Inc. | AO65: RESIDENTIAL - HIGH DENSITY [R1] | AP65: kWh
A66: RESIDENTIAL - LOW DENSITY [R2] | I66: Rate Rider for Disposition of Deferred PILs Variance Account 1562 - effective until March 31, 2016 | AA66: Temporary service install & remove – overhead – no transformer | AL66: Thunder Bay Hydro Electricity Distribution Inc. | AM66: Thunder Bay Hydro Electricity Distribution Inc. | AO66: RESIDENTIAL - LOW DENSITY [R2] | AP66: kWh
A67: RESIDENTIAL - MEDIUM DENSITY [R1] | I67: Rate Rider for Disposition of Deferred PILs Variance Account 1562 (2012) - effective until April 30, 2015 | AA67: Temporary Service Install & Remove – Overhead – With Transformer | AL67: Tillsonburg Hydro Inc. | AM67: Tillsonburg Hydro Inc. | AO67: RESIDENTIAL - MEDIUM DENSITY [R1] | AP67: kWh
A68: RESIDENTIAL - NORMAL DENSITY [R2] | I68: Rate Rider for Disposition of Deferred PILs Variance Account 1562 (2012) - effective until April 30, 2016 | AA68: Temporary Service Install & Remove – Underground – No Transformer | AL68: Toronto Hydro-Electric System Limited | AM68: Toronto Hydro-Electric System Limited | AO68: RESIDENTIAL - NORMAL DENSITY [R2] | AP68: kWh
A69: RESIDENTIAL - TIME OF USE | I69: Rate Rider for Disposition of Deferred PILs Variance Account 1562 (2nd Installment - 2012) - effective until April 30, 2016 | AA69: Temporary service installation and removal – overhead – no transformer | AL69: Veridian Connections Inc. | AM69: Veridian Connections Inc. | AO69: RESIDENTIAL - TIME OF USE | AP69: kWh
A70: RESIDENTIAL - URBAN [UR] | I70: Rate Rider for Disposition of Deferred PILs Variance Account 1562 (per connection) (2012) - effective until April 30, 2015 | AA70: Temporary service installation and removal – overhead – with transformer | AL70: Wasaga Distribution Inc. | AM70: Wasaga Distribution Inc. | AO70: RESIDENTIAL - URBAN [UR] | AP70: kWh
A71: RESIDENTIAL REGULAR | I71: Rate Rider for Disposition of Deferred PILs Variance Account 1562 (per connection) (2012) - effective until April 30, 2016 | AA71: Temporary service installation and removal – underground – no transformer | AL71: Waterloo North Hydro Inc. | AM71: Waterloo North Hydro Inc. | AO71: RESIDENTIAL REGULAR | AP71: kWh
A72: RESIDENTIAL SUBURBAN | I72: Rate Rider for Disposition of Global Adjustment Sub-Account (2011) - effective until April 30, 2015 Applicable only for Non-RPP Customers | AL72: Welland Hydro-Electric System Corp. | AM72: Welland Hydro-Electric System Corp. | AO72: RESIDENTIAL SUBURBAN | AP72: kWh
A73: RESIDENTIAL SUBURBAN SEASONAL | I73: Rate Rider for Disposition of Global Adjustment Sub-Account (2011) - effective until April 30, 2016 Applicable only for Non-RPP Customers | AL73: Wellington North Power Inc. | AM73: Wellington North Power Inc. | AO73: RESIDENTIAL SUBURBAN SEASONAL | AP73: kWh
A74: RESIDENTIAL SUBURBAN YEAR ROUND | I74: Rate Rider for Disposition of Global Adjustment Sub-Account (2012) - effective until April 30, 2014 Applicable only for Non-RPP Customers | AL74: West Coast Huron Energy Inc. | AM74: West Coast Huron Energy Inc. | AO74: RESIDENTIAL SUBURBAN YEAR ROUND | AP74: kWh
A75: RESIDENTIAL URBAN | I75: Rate Rider for Disposition of Global Adjustment Sub-Account (2012) - effective until April 30, 2015 Applicable only for Non-RPP Customers | AL75: Westario Power Inc. | AM75: Westario Power Inc. | AO75: RESIDENTIAL URBAN | AP75: kWh
A76: RESIDENTIAL URBAN YEAR-ROUND | I76: Rate Rider for Disposition of Global Adjustment Sub-Account (2012) - effective until April 30, 2015 Applicatble only for Non-RPP Customers | AL76: Whitby Hydro Electric Corporation | AM76: Whitby Hydro Electric Corporation | AO76: RESIDENTIAL URBAN YEAR-ROUND | AP76: kWh
A77: SEASONAL RESIDENTIAL | I77: Rate Rider for Disposition of Global Adjustment Sub-Account (2012) - effective until April 30, 2016 Applicable only for Non-RPP Customers | AL77: Woodstock Hydro Services Inc. | AM77: Woodstock Hydro Services Inc. | AO77: SEASONAL RESIDENTIAL | AP77: kWh
A78: SEASONAL RESIDENTIAL - HIGH DENSITY [R3] | I78: Rate Rider for Disposition of Global Adjustment Sub-Account (2012) - effective until January 31, 2014. Applicable only for Non-RPP Customers | AO78: SEASONAL RESIDENTIAL - HIGH DENSITY [R3] | AP78: kWh
A79: SEASONAL RESIDENTIAL - NORMAL DENSITY [R4] | I79: Rate Rider for Disposition of Global Adjustment Sub-Account (2012) - effective until June 30, 2014 Applicable only for Non-RPP Customers | AO79: SEASONAL RESIDENTIAL - NORMAL DENSITY [R4] | AP79: kWh
A80: SENTINEL LIGHTING | I80: Rate Rider for Disposition of Global Adjustment Sub-Account (2012) Applicable only for Non-RPP Customers - effective until August 31, 2014 | AO80: SENTINEL LIGHTING | AP80: kW
A81: SMALL COMMERCIAL AND USL - PER CONNECTION | I81: Rate Rider for Disposition of Global Adjustment Sub-Account (2012) Applicable only to Non-RPP Customers - effective until August 31, 2014 | AO81: SMALL COMMERCIAL AND USL - PER CONNECTION | AP81: kWh
A82: SMALL COMMERCIAL AND USL - PER METER | I82: Rate Rider for Disposition of Global Adjustment Sub-Account (2013) - effective until April 30, 2014 Applicable only for Non-RPP Customers | AO82: SMALL COMMERCIAL AND USL - PER METER | AP82: kWh
A83: STANDARD A GENERAL SERVICE AIR ACCESS | I83: Rate Rider for Disposition of Global Adjustment Sub-Account (2013) - effective until April 30, 2015 Applicable only for Non-RPP Customers | AO83: STANDARD A GENERAL SERVICE AIR ACCESS | AP83: kWh
A84: STANDARD A GENERAL SERVICE ROAD/RAIL | I84: Rate Rider for Disposition of Global Adjustment Sub-Account (2013) - effective until April 30, 2015 Applicable only for Non-RPP Customers and excluding Wholesale Market Participants | AO84: STANDARD A GENERAL SERVICE ROAD/RAIL | AP84: kWh
A85: STANDARD A GRID CONNECTED | I85: Rate Rider for Disposition of Global Adjustment Sub-Account (2013) - effective until April 30, 2017 Applicable only for Non-RPP Customers | AO85: STANDARD A GRID CONNECTED | AP85: kWh
A86: STANDARD A RESIDENTIAL AIR ACCESS | I86: Rate Rider For Disposition of Global Adjustment Sub-Account (2013) - effective until August 31, 2014 Applicable only for Non-RPP Customers | AO86: STANDARD A RESIDENTIAL AIR ACCESS | AP86: kWh
A87: STANDARD A RESIDENTIAL ROAD/RAIL | I87: Rate Rider for Disposition of Global Adjustment Sub-Account (2013) - effective until December 31, 2014 Applicable only for Non-RPP Customers | AO87: STANDARD A RESIDENTIAL ROAD/RAIL | AP87: kWh
A88: STANDBY - GENERAL SERVICE 1,000 - 5,000 KW | I88: Rate Rider for Disposition of Global Adjustment Sub-Account (2013) - effective until May 31, 2014 Applicable only for Non-RPP Customers | AO88: STANDBY - GENERAL SERVICE 1,000 - 5,000 KW | AP88: kW
A89: STANDBY - GENERAL SERVICE 50 - 1,000 KW | I89: Rate Rider for Disposition of Global Adjustment Sub-Account (2014) - effective until December 31, 2014. Applicable only for Non-RPP - Class B Customers | AO89: STANDBY - GENERAL SERVICE 50 - 1,000 KW | AP89: kW
A90: STANDBY - LARGE USE | I90: Rate Rider for Disposition of Global Adjustment Sub-Account (2014) - effective until December 31, 2014. Applicable only for Non-RPP Customers | AO90: STANDBY - LARGE USE | AP90: kW
A91: STANDBY DISTRIBUTION SERVICE | I91: Rate Rider for Disposition of Global Adjustment Sub-Account (2014) - effective until December 31, 2014. Applicable only for Non-RPP Customers - Class A Customers | AO91: STANDBY DISTRIBUTION SERVICE | AP91: kW
A92: STANDBY POWER | I92: Rate Rider for Disposition of Global Adjustment Sub-Account (2014) - effective until December 31, 2014. Applicable only for Non-RPP Customers - Interval Metered | AO92: STANDBY POWER | AP92: kW
A93: STANDBY POWER - APPROVED ON AN INTERIM BASIS | I93: Rate Rider for Disposition of Global Adjustment Sub-Account (2014) - effective until December 31, 2014. Applicable only for Non-RPP Customers - Non Interval Metered | AO93: STANDBY POWER - APPROVED ON AN INTERIM BASIS | AP93: kW
A94: STANDBY POWER GENERAL SERVICE 1,500 TO 4,999 KW | I94: Rate Rider for Disposition of Global Adjustment Sub-Account (2014) - effective until December 31, 2015. Applicable only for Non-RPP Customers. | AO94: STANDBY POWER GENERAL SERVICE 1,500 TO 4,999 KW | AP94: kW
A95: STANDBY POWER GENERAL SERVICE 50 TO 1,499 KW | I95: Rate Rider for Disposition of Post Retirement Actuarial Gain - effective until March 31, 2025 | AO95: STANDBY POWER GENERAL SERVICE 50 TO 1,499 KW | AP95: kW
A96: STANDBY POWER GENERAL SERVICE LARGE USE | I96: Rate Rider for Disposition of Residual Hisotrical Smart Meter Costs - effective until April 30, 2015 | AO96: STANDBY POWER GENERAL SERVICE LARGE USE | AP96: kW
A97: STREET LIGHTING | I97: Rate Rider for Disposition of Residual Hisotrical Smart Meter Costs - effective until April 30, 2017 | AO97: STREET LIGHTING | AP97: kW
A98: SUB TRANSMISSION [ST] | I98: Rate Rider for Disposition of Residual Historical Smart Meter Costs - effective until April 30, 2014 | AO98: SUB TRANSMISSION [ST] | AP98: kW
A99: UNMETERED SCATTERED LOAD | I99: Rate Rider for Disposition of Residual Historical Smart Meter Costs - effective until April 30, 2016 | AO99: UNMETERED SCATTERED LOAD | AP99: kWh
A100: URBAN GENERAL SERVICE DEMAND BILLED (50 KW AND ABOVE) [UGD] | I100: Rate Rider for Disposition of Residual Historical Smart Meter Costs - effective until August 31, 2014 | AO100: URBAN GENERAL SERVICE DEMAND BILLED (50 KW AND ABOVE) [UGD] | AP100: kW
A101: URBAN GENERAL SERVICE ENERGY BILLED (LESS THAN 50 KW) [UGE] | I101: Rate Rider for Disposition of Residual Historical Smart Meter Costs - effective until August 31, 2015 | AO101: URBAN GENERAL SERVICE ENERGY BILLED (LESS THAN 50 KW) [UGE] | AP101: kWh
A102: WESTPORT SEWAGE TREATMENT PLANT | I102: Rate Rider for Disposition of Residual Historical Smart Meter Costs - effective until December 31, 2014 | AO102: WESTPORT SEWAGE TREATMENT PLANT | AP102: kW
A103: YEAR-ROUND RESIDENTIAL - R2 | I103: Rate Rider for Disposition of Residual Historical Smart Meter Costs – effective until December 31, 2014 | AO103: YEAR-ROUND RESIDENTIAL - R2 | AP103: kWh
A104: LARGE USE - WMP | I104: Rate Rider for Disposition of Residual Historical Smart Meter Costs - effective until December 31, 2015
I105: Rate Rider for Disposition of Residual Historical Smart Meter Costs - effective until December 31, 2016
I106: Rate Rider for Disposition of Residual Historical Smart Meter Costs - effective until October 31, 2014
I107: Rate Rider for Disposition of Residual Historical Smart Meter Costs - effective until September 30, 2014
I108: Rate Rider for Disposition of Residual Historical Smart Meter Costs - Non-Interval Metered - effective until April 30, 2014
I109: Rate Rider for Disposition of Residual Historical Smart Meter Costs 2 - in effect until the effective date of the next cost of service-based rate order
I110: Rate Rider for Disposition of Residual Historical Smart Meter Costs 3 - in effect until the effective date of the next cost of service-based rate order
I111: Rate Rider for Disposition of Residual Incremental Historical Smart Meter Costs - effective until August 31, 2015
I112: Rate Rider for Disposition of Stranded Meter costs - effective until April 30, 2015
I113: Rate Rider for Disposition of Stranded Meter Costs - effective until April 30, 2016
I114: Rate Rider for Disposition of Stranded Meter Costs - effective until April 30, 2017
I115: Rate Rider for Global Adjustment Sub Account Disposition - effective until April 30, 2016 Applicable only for Non RPP Customers
I116: Rate Rider for Global Adjustment Sub-Account Disposition (2014) - effective until April 28, 2016 Applicable only for Non-RPP Customers
I117: Rate Rider for Global Adjustment Sub-Account Disposition (2014) - effective until April 30, 2015 Applicable only for Non-RPP Customers
I118: Rate Rider for Global Adjustment Sub-Account Disposition (2014) - effective until December 30, 2015 Applicable only for Non-RPP Customers
I119: Rate Rider for Global Adjustment Sub-Account Disposition (2014) - effective until December 31, 2014 Applicable only for Non-RPP Customers
I120: Rate Rider for Global Adjustment Sub-Account Disposition (2014) - effective until December 31, 2015 Applicable only for Non-RPP Customers
I121: Rate Rider for Global Adjustment Sub-Account Disposition Applicable only for Non-RPP Customers - effective until April 30, 2015
I122: Rate Rider for Incremental Capital - Distribution Volumetric - effective until April 30, 2016
I123: Rate Rider for Incremental Capital - Service Charge - effective until April 30, 2016
I124: Rate Rider for Incremental Capital (2012) - effective until April 30, 2015
I125: Rate Rider for Lost Revenue Adjustment Mechanism Variance Account (LRAMVA) Recovery (2012 CDM Activities) - effective until April 30, 2015
I126: Rate Rider for Recover of Residual Historical Smart meter Costs - effective until June 30, 2014
I127: Rate Rider for Recovery of CGAAP/CWIP Differential - in effect until December 31, 2016
I128: Rate Rider for Recovery of Foregone Revenue - effective until April 30, 2015
I129: Rate Rider for Recovery of Forgone Revenue - effective until April 30, 2015
I130: Rate Rider for Recovery of Forgone Revenue - effective until December 31, 2014
I131: Rate Rider for Recovery of Green Energy Act related costs - effective until December 31, 2014
I132: Rate Rider for Recovery of Incremental Capital (2013) - in effect until the effective date of the next cost of service-based rate order
I133: Rate Rider for Recovery of Incremental Capital (2013) - in effect until the effective date of the next cost of service-based rate order
I134: Rate Rider for Recovery of Incremental Capital (2013) (per connection) - in effect until the effective date of the next cost of service-based rate order
I135: Rate Rider for Recovery of Incremental Capital (2013) (per connection)- in effect until the effective date of the next cost of service-based rate order
I136: Rate Rider for Recovery of Incremental Capital Costs
I137: Rate Rider for Recovery of Incremental Capital Costs - effective until April 30, 2015
I138: Rate Rider for Recovery of Incremental Capital Module Costs (2014) - in effect until the effective date of the next cost of service-based rate order
I139: Rate Rider for Recovery of Incremental Capital Module Costs (2014) - in effect until the effective date of the next cost of service-based rate order
I140: Rate Rider for Recovery of Lost Revenue Adjustment Mechanism ( LRAM)/Shared Savings Mechanism (SSM) (2012) - effective until August 31, 2014
I141: Rate Rider for Recovery of Lost Revenue Adjustment Mechanism (2013) - effective until December 31, 2014
I142: Rate Rider for Recovery of Lost Revenue Adjustment Mechanism (LRAM) - effective until April 30, 2016
I143: Rate Rider for Recovery of Lost Revenue Adjustment Mechanism (LRAM) (pre-2011 CDM Activities) - effective until April 30, 2015
I144: Rate Rider for Recovery of Lost Revenue Adjustment Mechanism (LRAM) (pre-2011 CDM Activities) (2013) - effective until April 30, 2015
I145: Rate Rider for Recovery of Lost Revenue Adjustment Mechanism (LRAM)/Shared Savings
I146: Rate Rider for Recovery of Lost Revenue Adjustment Mechanism (LRAM)/Shared Savings Mechanism (SSM) - effective until December 31, 2018 and applicable in the service area excluding the former service areas of Clinton Power and West Perth Power
I147: Rate Rider for Recovery of Lost Revenue Adjustment Mechanism (LRAM)/Shared Savings Mechanism (SSM) - effective until December 31, 2014 and applicable in the service area excluding the former service areas of Clinton Power and West Perth Power
I148: Rate Rider for Recovery of Lost Revenue Adjustment Mechanism (LRAM)/Shared Savings Mechanism (SSM) - effective until December 31, 2014 and applicable only in the former service area of Clinton Power
I149: Rate Rider for Recovery of Lost Revenue Adjustment Mechanism (LRAM)/Shared Savings Mechanism (SSM) - effective until December 31, 2014 and applicable only in the former service area of West Perth Power
I150: Rate Rider for Recovery of Lost Revenue Adjustment Mechanism (LRAM)/Shared Savings Mechanism (SSM) - effective until December 31, 2014 and applicable in the service area excluding the former service area of Clinton Power
I151: Rate Rider for Recovery of Lost Revenue Adjustment Mechanism (LRAM)/Shared Savings Mechanism (SSM) - effective until March 31, 2016
I152: Rate Rider for Recovery of Lost Revenue Adjustment Mechanism (LRAM)/Shared Savings Mechanism (SSM) (2012) - effective until August 31, 2014
I153: Rate Rider for Recovery of Lost Revenue Adjustment Mechanism (LRAM)/Shared Savings Mechanism (SSM) Recovery - effective until April 30, 2015
I154: Rate Rider for Recovery of Lost Revenue Adjustment Mechanism Variance Account (LRAMVA) (2014) - effective until April 30, 2015
I155: Rate Rider for Recovery of Residual Historical Smart Meter Costs - effective July 1, 2012 - April 30, 2016
I156: Rate Rider for Recovery of Smart Meter Incremental Revenue Requirement - effective until the date of the next cost of service-based rate order
I157: Rate Rider for Recovery of Smart Meter Incremental Revenue Requirement - effective until the effective date of the next cost of service-based rate order, or October 31, 2017, whichever occurs earlier
I158: Rate Rider for Recovery of Smart Meter Incremental Revenue Requirement - in effect until the effective date of the next cost of service-based rate order
I159: Rate Rider for Recovery of Smart Meter Incremental Revenue Requirement - Non-Interval Metered - in effect until the effective date of the next cost of service-based rate order
I160: Rate Rider for Recovery of Smart Meter Incremental Revenue Requirements - in effect until the effective date of the next cost of service application
I161: Rate Rider for Recovery of Smart Meter Stranded Assets - effective until April 30, 2016
I162: Rate Rider for Recovery of Storm Damage Costs - effective until August 31, 2017
I163: Rate Rider for Recovery of Stranded Assets - effective until April 30, 2016
I164: Rate Rider for Recovery of Stranded Meter Assets - effective July 1, 2012 - April 30, 2016
I165: Rate Rider for Recovery of Stranded Meter Assets – effective until April 30, 2015
I166: Rate Rider for Recovery of Stranded Meter Assets - effective until April 30, 2016
I167: Rate Rider for Recovery of Stranded Meter Assets - effective until April 30, 2017
I168: Rate Rider for Recovery of Stranded Meter Assets - effective until August 31, 2015
I169: Rate Rider for Recovery of Stranded Meter Assets - effective until August 31, 2017
I170: Rate Rider for Recovery of Stranded Meter Assets - effective until December 31, 2014
I171: Rate Rider for Recovery of Stranded Meter Assets - effective until December 31, 2015
I172: Rate Rider for Recovery of Stranded Meter Assets - effective until June 30, 2016
I173: Rate Rider for Recovery of Stranded Meter Assets - effective until March 31, 2016
I174: Rate Rider for Recovery of Stranded Meter Assets - effective until May 31, 2014
I175: Rate Rider for Reversal of Deferral/Variance Account Disposition (2011) - effective until April 30, 2015
I176: Rate Rider for Smart Meter Disposition - effective until April 30, 2016
I177: Rate Rider for Smart Meter Incremental Revenue Requirement - in effect until the effective date of the next cost of service-based rate order
I178: Rate Rider for Smart Metering Entity Charge - effective until October 31, 2018
I179: Rate Rider for Stranded Meter Cost Recovery - effective until April 30, 2017
I180: Rate Rider for Tax Change
I181: Rate Rider for Tax Change - effective until April 30, 2015
I182: Rate Rider for Tax Change (2014) - effective until April 30, 2015
I183: Retail Transmission Rate - Line and Transformation Connection Service Rate
I184: Retail Transmission Rate - Line and Transformation Connection Service Rate - (less than 1,000 kW)
I185: Retail Transmission Rate - Line and Transformation Connection Service Rate - Interval Metered
I186: Retail Transmission Rate - Line and Transformation Connection Service Rate - Interval Metered (1,000 to 4,999 kW)
I187: Retail Transmission Rate - Line and Transformation Connection Service Rate - Interval Metered (less than 1,000 kW)
I188: Retail Transmission Rate - Line and Transformation Connection Service Rate - Interval Metered < 1,000 kW
I189: Retail Transmission Rate - Line and Transformation Connection Service Rate FOR ALL SERVICE AREAS EXCEPT HENSALL
I190: Retail Transmission Rate - Line and Transformation Connection Service Rate - Interval Metered > 1,000 kW
I191: Retail Transmission Rate - Line Connection Service Rate
I192: Retail Transmission Rate - Network Service Rate
I193: Retail Transmission Rate - Network Service Rate - (less than 1,000 kW)
I194: Retail Transmission Rate - Network Service Rate - Interval Metered
I195: Retail Transmission Rate - Network Service Rate - Interval Metered (1,000 to 4,999 kW)
I196: Retail Transmission Rate - Network Service Rate - Interval Metered (less than 1,000 kW)
I197: Retail Transmission Rate - Network Service Rate - Interval Metered > 1,000 kW
I198: Retail Transmission Rate - Transformation Connection Service Rate
I199: Rider for Global Adjustment Sub-Account Disposition (2012) - effective until April 30, 2016 Applicable only for Non-RPP Customers
I200: Rural or Remote Electricity Rate Protection Charge (RRRP)
... 14 more rows

Sheet Sheet1 (hidden)

Sheet Residential
S1: 1 | Z1: =MATCH(C14, '3. Rate Class Selection'!B19:B40,0) -> 1 | AA1: =VLOOKUP(C14, lists!AO:AP,2,0) -> kWh
A14: Rate Class | C14: RESIDENTIAL
A16: Loss Factor | E16: 1.0421
A18: Consumption | C18: kWh | E18: 800
A20: If Billed on a kW basis:
A21: Demand | C21: kW
E25: Current Board-Approved | I25: Proposed | M25: Impact
E26: Rate | F26: Volume | G26: Charge | I26: Rate | J26: Volume | K26: Charge | M26: $ Change | N26: % Change
E27: ($) | G27: ($) | I27: ($) | K27: ($)
A28: Monthly Service Charge | E28: 15.7 | F28: 1 | G28: =F28*E28 -> 15.7 | I28: 15.92 | J28: 1 | K28: =J28*I28 -> 15.92 | M28: =K28-G28 -> 0.22 | N28: =IF((G28)=0,"",(M28/G28)) -> 0.01401273885
A29: Distribution Volumetric Rate | E29: 0.0214 | F29: 800 | G29: =F29*E29 -> 17.12 | I29: 0.0217 | J29: =F29 -> 800 | K29: =J29*I29 -> 17.36 | M29: 0.24 | N29: 0.01401869159
A30: Fixed Rate Riders | E30: 1.47 | F30: 1 | G30: =F30*E30 -> 1.47 | I30: 0 | J30: 1 | K30: =J30*I30 -> 0 | M30: -1.47 | N30: -1
A31: Volumetric Rate Riders | E31: 0.0006 | F31: 800 | G31: =F31*E31 -> 0.48 | I31: 0 | J31: =F31 -> 800 | K31: =J31*I31 -> 0 | M31: -0.48 | N31: -1
A32: Sub-Total A (excluding pass through) | G32: =SUM(G28:G31) -> 34.77 | K32: =SUM(K28:K31) -> 33.28 | M32: -1.49 | N32: -0.04285303422
A33: Line Losses on Cost of Power | E33: =E45*0.64+E46*0.18+E47*0.18 -> 0.09246 | F33: =E18*(E16-1) -> 33.68 | G33: =E33*F33 -> 3.1140528 | I33: =I45*0.64+I46*0.18+I47*0.18 -> 0.09246 | J33: =F33 -> 33.68 | K33: =I33*J33 -> 3.1140528 | M33: 0 | N33: 0
A34: Total Deferral/Variance Account Rate Riders | E34: -0.0037 | F34: 800 | G34: =F34*E34 -> -2.96 | I34: -0.0016 | J34: =F34 -> 800 | K34: =J34*I34 -> -1.28 | M34: 1.68 | N34: -0.5675675676
A35: Low Voltage Service Charge | E35: 0.0002 | F35: 800 | G35: =F35*E35 -> 0.16 | I35: 0.0002 | J35: =F35 -> 800 | K35: =J35*I35 -> 0.16 | M35: 0 | N35: 0
A36: Smart Meter Entity Charge | E36: 0.79 | F36: 1 | G36: =F36*E36 -> 0.79 | I36: 0.79 | J36: =F36 -> 1 | K36: =J36*I36 -> 0.79 | M36: 0 | N36: 0
A37: Sub-Total B - Distribution (includes Sub-Total A) | G37: =SUM(G32:G36) -> 35.8740528 | K37: =SUM(K32:K36) -> 36.0640528 | M37: 0.19 | N37: 0.005296307085
A38: RTSR - Network | E38: 0.0067 | F38: 833.68 | G38: =F38*E38 -> 5.585656 | I38: 0.0069 | J38: =F38 -> 833.68 | K38: =J38*I38 -> 5.752392 | M38: 0.166736 | N38: 0.02985074627
A39: RTSR - Connection and/or Line and Transformation Connection | E39: 0.0057 | F39: 833.68 | G39: =F39*E39 -> 4.751976 | I39: 0.0057 | J39: =F39 -> 833.68 | K39: =J39*I39 -> 4.751976 | M39: 0 | N39: 0
A40: Sub-Total C - Delivery (including Sub-Total B) | G40: =SUM(G37:G39) -> 46.2116848 | K40: =SUM(K37:K39) -> 46.5684208 | M40: 0.356736 | N40: 0.007719606016
A41: Wholesale Market Service Charge (WMSC) | E41: 0.0044 | F41: =E18*E16 -> 833.68 | G41: =F41*E41 -> 3.668192 | I41: 0.0044 | J41: =E18*E16 -> 833.68 | K41: =J41*I41 -> 3.668192 | M41: 0 | N41: 0
A42: Rural and Remote Rate Protection (RRRP) | E42: 0.0013 | F42: =E18*E16 -> 833.68 | G42: 1.083784 | I42: 0.0013 | J42: =E18*E16 -> 833.68 | K42: 1.083784 | M42: 0 | N42: 0
A43: Standard Supply Service Charge | E43: 0.25 | F43: 1 | G43: 0.25 | I43: 0.25 | J43: 1 | K43: 0.25 | M43: 0 | N43: 0
A44: Debt Retirement Charge (DRC) | E44: 0.007 | F44: =E18 -> 800 | G44: 5.6 | I44: 0.007 | J44: =E18 -> 800 | K44: 5.6 | M44: 0 | N44: 0
A45: TOU - Off Peak | E45: 0.075 | F45: 512 | G45: 38.4 | I45: 0.075 | J45: =F45 -> 512 | K45: 38.4 | M45: 0 | N45: 0
A46: TOU - Mid Peak | E46: 0.112 | F46: 144 | G46: 16.128 | I46: 0.112 | J46: =F46 -> 144 | K46: 16.128 | M46: 0 | N46: 0
A47: TOU - On Peak | E47: 0.135 | F47: 144 | G47: 19.44 | I47: 0.135 | J47: =F47 -> 144 | K47: 19.44 | M47: 0 | N47: 0
A49: Total Bill on TOU (before Taxes) | G49: =SUM(G40:G44,G45:G47) -> 130.7816608 | K49: =SUM(K40:K44,K45:K47) -> 131.1383968 | M49: =K49-G49 -> 0.356736 | N49: =IF((G49)=0,"",(M49/G49)) -> 0.002727721898
A50: HST | E50: 0.13 | G50: =G49*E50 -> 17.0016159 | I50: 0.13 | K50: =K49*I50 -> 17.04799158 | M50: 0.04637568 | N50: 0.002727721898
A51: Total Bill (including HST) | G51: =G49+G50 -> 147.7832767 | K51: =K49+K50 -> 148.1863884 | M51: 0.40311168 | N51: 0.002727721898
A52: Ontario Clean Energy Benefit 1 | G52: =ROUND(-G51*10%,2) -> -14.78 | K52: =ROUND(-K51*10%,2) -> -14.82 | M52: -0.04 | N52: 0.002706359946
A53: Total Bill on TOU (including OCEB) | G53: =G51+G52 -> 133.0032767 | K53: =K51+K52 -> 133.3663884 | M53: 0.36311168 | N53: 0.002730095746
A58: Note: For distributors who have a majority of customers on Tiered pricing, please provide a separate bill impact for such customers.

Sheet GS<50
S1: 1 | Z1: =MATCH(C14, '3. Rate Class Selection'!B19:B40,0) -> 2 | AA1: =VLOOKUP(C14, lists!AO:AP,2,0) -> kWh
A14: Rate Class | C14: GENERAL SERVICE LESS THAN 50 KW
A16: Loss Factor | E16: 1.0421
A18: Consumption | C18: kWh | E18: 2000
A20: If Billed on a kW basis:
A21: Demand | C21: kW
E25: Current Board-Approved | I25: Proposed | M25: Impact
E26: Rate | F26: Volume | G26: Charge | I26: Rate | J26: Volume | K26: Charge | M26: $ Change | N26: % Change
E27: ($) | G27: ($) | I27: ($) | K27: ($)
A28: Monthly Service Charge | E28: 26.97 | F28: 1 | G28: =F28*E28 -> 26.97 | I28: 27.35 | J28: 1 | K28: =J28*I28 -> 27.35 | M28: =K28-G28 -> 0.38 | N28: =IF((G28)=0,"",(M28/G28)) -> 0.01408972933
A29: Distribution Volumetric Rate | E29: 0.0189 | F29: 2000 | G29: =F29*E29 -> 37.8 | I29: 0.0192 | J29: =F29 -> 2000 | K29: =J29*I29 -> 38.4 | M29: 0.6 | N29: 0.01587301587
A30: Fixed Rate Riders | E30: 10.6 | F30: 1 | G30: =F30*E30 -> 10.6 | I30: 4.66 | J30: 1 | K30: =J30*I30 -> 4.66 | M30: -5.94 | N30: -0.5603773585
A31: Volumetric Rate Riders | E31: 0.0009 | F31: 2000 | G31: =F31*E31 -> 1.8 | I31: 0 | J31: =F31 -> 2000 | K31: =J31*I31 -> 0 | M31: -1.8 | N31: -1
A32: Sub-Total A (excluding pass through) | G32: =SUM(G28:G31) -> 77.17 | K32: =SUM(K28:K31) -> 70.41 | M32: -6.76 | N32: -0.08759880783
A33: Line Losses on Cost of Power | E33: =E45*0.64+E46*0.18+E47*0.18 -> 0.09246 | F33: =E18*(E16-1) -> 84.2 | G33: =E33*F33 -> 7.785132 | I33: =I45*0.64+I46*0.18+I47*0.18 -> 0.09246 | J33: =F33 -> 84.2 | K33: =I33*J33 -> 7.785132 | M33: 0 | N33: 0
A34: Total Deferral/Variance Account Rate Riders | E34: -0.0036 | F34: 2000 | G34: =F34*E34 -> -7.2 | I34: -0.0017 | J34: =F34 -> 2000 | K34: =J34*I34 -> -3.4 | M34: 3.8 | N34: -0.5277777778
A35: Low Voltage Service Charge | E35: 0.0002 | F35: 2000 | G35: =F35*E35 -> 0.4 | I35: 0.0002 | J35: =F35 -> 2000 | K35: =J35*I35 -> 0.4 | M35: 0 | N35: 0
A36: Smart Meter Entity Charge | E36: 0.79 | F36: 1 | G36: =F36*E36 -> 0.79 | I36: 0.79 | J36: =F36 -> 1 | K36: =J36*I36 -> 0.79 | M36: 0 | N36: 0
A37: Sub-Total B - Distribution (includes Sub-Total A) | G37: =SUM(G32:G36) -> 78.945132 | K37: =SUM(K32:K36) -> 75.985132 | M37: -2.96 | N37: -0.03749439547
A38: RTSR - Network | E38: 0.0063 | F38: 2084.2 | G38: =F38*E38 -> 13.13046 | I38: 0.0064 | J38: =F38 -> 2084.2 | K38: =J38*I38 -> 13.33888 | M38: 0.20842 | N38: 0.01587301587
A39: RTSR - Connection and/or Line and Transformation Connection | E39: 0.005 | F39: 2084.2 | G39: =F39*E39 -> 10.421 | I39: 0.005 | J39: =F39 -> 2084.2 | K39: =J39*I39 -> 10.421 | M39: 0 | N39: 0
A40: Sub-Total C - Delivery (including Sub-Total B) | G40: =SUM(G37:G39) -> 102.496592 | K40: =SUM(K37:K39) -> 99.745012 | M40: -2.75158 | N40: -0.02684557551
A41: Wholesale Market Service Charge (WMSC) | E41: 0.0044 | F41: =E18*E16 -> 2084.2 | G41: =F41*E41 -> 9.17048 | I41: 0.0044 | J41: =E18*E16 -> 2084.2 | K41: =J41*I41 -> 9.17048 | M41: 0 | N41: 0
A42: Rural and Remote Rate Protection (RRRP) | E42: 0.0013 | F42: =E18*E16 -> 2084.2 | G42: 2.70946 | I42: 0.0013 | J42: =E18*E16 -> 2084.2 | K42: 2.70946 | M42: 0 | N42: 0
A43: Standard Supply Service Charge | E43: 0.25 | F43: 1 | G43: 0.25 | I43: 0.25 | J43: 1 | K43: 0.25 | M43: 0 | N43: 0
A44: Debt Retirement Charge (DRC) | E44: 0.007 | F44: =E18 -> 2000 | G44: 14 | I44: 0.007 | J44: =E18 -> 2000 | K44: 14 | M44: 0 | N44: 0
A45: TOU - Off Peak | E45: 0.075 | F45: 1280 | G45: 96 | I45: 0.075 | J45: =F45 -> 1280 | K45: 96 | M45: 0 | N45: 0
A46: TOU - Mid Peak | E46: 0.112 | F46: 360 | G46: 40.32 | I46: 0.112 | J46: =F46 -> 360 | K46: 40.32 | M46: 0 | N46: 0
A47: TOU - On Peak | E47: 0.135 | F47: 360 | G47: 48.6 | I47: 0.135 | J47: =F47 -> 360 | K47: 48.6 | M47: 0 | N47: 0
A49: Total Bill on TOU (before Taxes) | G49: =SUM(G40:G44,G45:G47) -> 313.546532 | K49: =SUM(K40:K44,K45:K47) -> 310.794952 | M49: =K49-G49 -> -2.75158 | N49: =IF((G49)=0,"",(M49/G49)) -> -0.008775667147
A50: HST | E50: 0.13 | G50: =G49*E50 -> 40.76104916 | I50: 0.13 | K50: =K49*I50 -> 40.40334376 | M50: -0.3577054 | N50: -0.008775667147
A51: Total Bill (including HST) | G51: =G49+G50 -> 354.3075812 | K51: =K49+K50 -> 351.1982958 | M51: -3.1092854 | N51: -0.008775667147
A52: Ontario Clean Energy Benefit 1 | G52: =ROUND(-G51*10%,2) -> -35.43 | K52: =ROUND(-K51*10%,2) -> -35.12 | M52: 0.31 | N52: -0.008749647192
A53: Total Bill on TOU (including OCEB) | G53: =G51+G52 -> 318.8775812 | K53: =K51+K52 -> 316.0782958 | M53: -2.7992854 | N53: -0.008778558185
A58: Note: For distributors who have a majority of customers on Tiered pricing, please provide a separate bill impact for such customers.

Sheet GS>50
S1: 1 | Z1: =MATCH(C14, '3. Rate Class Selection'!B19:B40,0) -> 3 | AA1: =VLOOKUP(C14, lists!AO:AP,2,0) -> kW
A14: Rate Class | C14: GENERAL SERVICE 50 TO 999 KW
A16: Loss Factor | E16: 1.0421
A18: Consumption | C18: kWh | E18: 42490
A20: If Billed on a kW basis:
A21: Demand | C21: kW | E21: 121
E25: Current Board-Approved | I25: Proposed | M25: Impact
E26: Rate | F26: Volume | G26: Charge | I26: Rate | J26: Volume | K26: Charge | M26: $ Change | N26: % Change
E27: ($) | G27: ($) | I27: ($) | K27: ($)
A28: Monthly Service Charge | E28: 143.99 | F28: 1 | G28: =F28*E28 -> 143.99 | I28: 146.01 | J28: 1 | K28: =J28*I28 -> 146.01 | M28: =K28-G28 -> 2.02 | N28: =IF((G28)=0,"",(M28/G28)) -> 0.014028752
A29: Distribution Volumetric Rate | E29: 4.1847 | F29: 121 | G29: =F29*E29 -> 506.3487 | I29: 4.2433 | J29: =F29 -> 121 | K29: =J29*I29 -> 513.4393 | M29: 7.0906 | N29: 0.01400339331
A30: Fixed Rate Riders | E30: 0 | F30: 1 | G30: =F30*E30 -> 0 | I30: 0 | J30: 1 | K30: =J30*I30 -> 0 | M30: 0
A31: Volumetric Rate Riders | E31: 0.1041 | F31: 121 | G31: =F31*E31 -> 12.5961 | I31: 0 | J31: =F31 -> 121 | K31: =J31*I31 -> 0 | M31: -12.5961 | N31: -1
A32: Sub-Total A (excluding pass through) | G32: =SUM(G28:G31) -> 662.9348 | K32: =SUM(K28:K31) -> 659.4493 | M32: -3.4855 | N32: -0.005257681449
A33: Line Losses on Cost of Power | E33: =E45*0.64+E46*0.18+E47*0.18 -> 0.09246 | F33: =E18*(E16-1) -> 1788.829 | G33: =E33*F33 -> 165.3951293 | I33: =I45*0.64+I46*0.18+I47*0.18 -> 0.09246 | J33: =F33 -> 1788.829 | K33: =I33*J33 -> 165.3951293 | M33: 0 | N33: 0
